Workbook

Sheet Navigation Pane
B2: Brisbane City Council
B3: Local Government Infrastructure Plan (LGIP)
B6: Version No | D6: 1 | F6: Date | G6: 2021-12-10 | J6: Author | K6: BCC
B8: Comments | D8: Version for LGIP amendment 1a adoption. Effective as at 10 December 2021.
D10: Inputs | I10: Calculation | N10: Outputs
C12: General Input Sheet | H12: Calculation Function | M12: Summary Cost Schedule
C13: l Financial Inputs l Other "generic" inputs | H13: Catchment based summary of demand, infrastructure (existing and new) and cost allocation Infrastructure Cost calculation for each catchment Optional Discounted Cashflow | M13: l Summary of demand and cost allocation by catchment l Final costs by catchment
M15: Summary Cash flow Projections
C16: l Unit Cost of Passive Assets l Unit Cost of Land | M16: l Summary of forecast Cap X and anticipated IC revenues. Refer to Revenue and Cash Flow model for output.
C19: l Estimates of current and future demand (per cost catchment)
C21: Asset Inputs
C22: Existing Trunk Assets (& Catchments Served)
C23: Future Trunk Assets (& Catchments Served)

Sheet General Input Sheet
B2: ='Navigation Pane'!B2 -> Brisbane City Council
A3: Return to Navigation Pane
B4: General Input Sheet
B6: General Inputs | E6: Reference | G6: Value | I6: Comments
C8: Base Year | E8: YEAR | G8: 2016
G9: =YEAR -> 2016
C10: Term (between 15 and 30 years) | E10: TERM | G10: 10
B12: Application of Discounted Cash flow
C14: Calculate charges using Discounted Cash flow? (Y/N) | E14: DCFTRIGGER | G14: Yes
B16: General Financial Inputs
B18: Discount Rate (WACC):
C19: Average 10 Year Bond Rate | E19: TenYr
B21: Option 1 | C21: Basic Margin on 10 Yr. Bond Rate | E21: Margin | I21: 3.5% is the baseline figure quoted in LG Bulletin 06/01
C23: WACC: | E23: WACC1 | G23: 0.0591
B25: Option 2 | C25: Capital Structure (% Debt) | E25: Capstr
C26: Market Risk Premium | E26: Risk
C27: Asset Beta | E27: AssetBeta
C28: Cost of Debt | E28: Debt
C30: WACC: | E30: WACC2 | G30: 0.0591
C32: WACC Option to be applied in the calculation? | E32: WACC1 | G32: =IF(G14="No",0,IF(E32="WACC1",WACC1,IF(E32="WACC2",WACC2,"Error"))) -> 0.0591
B34: Escalation Rates
C35: Capital Escalation - Future Cap X | E35: PPI | G35: =(G38/G43)^(1/(E38-E43))-1 -> 0.01871653255 | I35: ten (10) yr. average Roads and Bridges Index (ABS 6427, Table 15, Index 3101)
C37: Capital Indexation Rates - Historical (June Qtr.)
E38: =YEAR -> 2016 | G38: 110.56 | I38: Roads and Bridges Index (ABS 6427, Table 15, Index 3101)
E39: =E38-1 -> 2015
E40: =E39-1 -> 2014
E41: 2013
E42: 2012
E43: 2011 | G43: 100.77
E44: 2010
C46: Land Escalation | E46: LandInd | G46: 0.025
C48: Charges Escalation Rate | E48: Chargeind | G48: 0
G49: =Chargeind -> 0
G51: =Chargeind -> 0

Sheet Existing Trunk Assets - Pathway
B2: ='Navigation Pane'!B2 -> Brisbane City Council
B3: Pathway
B5: EXISTING TRUNK ASSETS
B7: Land Valuation Type | D7: Location
H9: Asset Data | U9: Catchment Asset Allocation
B10: Basic Asset Data | G10: Asset Attributes | J10: Basic Asset Valuation | O10: Land Attributes | S10: Refined Asset Value | U10: Citywide
B11: Asset ID | C11: LGIP ID | D11: Asset Class | E11: Asset Name | F11: Description | G11: Unit Rate Type (*) | H11: Surface Area (m2) | I11: Hiercahy/name | J11: Unit Rate | K11: Baseline Valuation | L11: Site/Condition | M11: Multiplier | N11: Gross Value | O11: Land Location/Type | P11: Size of land (ha) (*) | Q11: Unit Cost | R11: Land Value | S11: Valuation Year | T11: Escalation | U11: Current Replacement Cost
B12: Councils ID (from GIS, FAR, AMA etc.) | C12: ID from the LGIP drawings | D12: Arterial, Subarterial, Collector | K12: May be calculated from unit rates OR unique values can be direct entered
B13: BK9001S00164 | D13: Primary cycle route | E13: ALICE ST | G13: PAVER | H13: 17.436582 | J13: 151.88 | K13: =J13*H13 -> 2648.268074 | P13: 0 | Q13: =IFERROR(R13/P13,0) -> 0 | R13: 0 | S13: 2016 | T13: 1 | U13: =R13+K13 -> 2648.268074
B14: BK9001S00165 | D14: Primary cycle route | E14: ALICE ST | G14: PAVER | H14: 7.83257 | J14: 151.88 | K14: =J14*H14 -> 1189.610732 | P14: 0 | Q14: =IFERROR(R14/P14,0) -> 0 | R14: 0 | S14: 2016 | T14: 1 | U14: =R14+K14 -> 1189.610732
B15: BK9001S00166 | D15: Primary cycle route | E15: ALICE ST | G15: CONCRETE | H15: 124.402067 | J15: 148.52 | K15: 18476.19499 | P15: 0 | Q15: 0 | R15: 0 | S15: 2016 | T15: 1 | U15: 18476.19499
B16: BK9001S00167 | D16: Primary cycle route | E16: ALICE ST | G16: PAVER | H16: 622.83127 | J16: 151.88 | K16: 94595.61329 | P16: 0 | Q16: 0 | R16: 0 | S16: 2016 | T16: 1 | U16: 94595.61329
B17: BK9001S00168 | D17: Primary cycle route | E17: ALICE ST | G17: PAVER | H17: 208.009307 | J17: 151.88 | K17: 31592.45355 | P17: 0 | Q17: 0 | R17: 0 | S17: 2016 | T17: 1 | U17: 31592.45355
B18: BK9001S00343 | D18: Primary cycle route | E18: ALICE ST | G18: CONCRETE | H18: 15.086657 | J18: 148.52 | K18: 2240.670298 | P18: 0 | Q18: 0 | R18: 0 | S18: 2016 | T18: 1 | U18: 2240.670298
B19: BK9001S00344 | D19: Primary cycle route | E19: ALICE ST | G19: CONCRETE | H19: 317.579447 | J19: 148.52 | K19: 47166.89947 | P19: 0 | Q19: 0 | R19: 0 | S19: 2016 | T19: 1 | U19: 47166.89947
B20: BK9001S00345 | D20: Primary cycle route | E20: ALICE ST | G20: ASHPALT | H20: 65.35129 | J20: 148.52 | K20: 9705.973591 | P20: 0 | Q20: 0 | R20: 0 | S20: 2016 | T20: 1 | U20: 9705.973591
B21: BK9001S00346 | D21: Primary cycle route | E21: ALICE ST | G21: PAVER | H21: 2799.765142 | J21: 151.88 | K21: 425228.3298 | P21: 0 | Q21: 0 | R21: 0 | S21: 2016 | T21: 1 | U21: 425228.3298
B22: BK9001S00347 | D22: Primary cycle route | E22: ALICE ST | G22: PAVER | H22: 21.876001 | J22: 151.88 | K22: 3322.527032 | P22: 0 | Q22: 0 | R22: 0 | S22: 2016 | T22: 1 | U22: 3322.527032
B23: BK9001S00627 | D23: Primary cycle route | E23: ANDERSON ST | G23: CONCRETE | H23: 50.259333 | J23: 148.52 | K23: 7464.516137 | P23: 0 | Q23: 0 | R23: 0 | S23: 2016 | T23: 1 | U23: 7464.516137
B24: BK9001S00628 | D24: Primary cycle route | E24: ANDERSON ST | G24: CONCRETE | H24: 133.068813 | J24: 148.52 | K24: 19763.38011 | P24: 0 | Q24: 0 | R24: 0 | S24: 2016 | T24: 1 | U24: 19763.38011
B25: BK9001S00629 | D25: Primary cycle route | E25: ANDERSON ST | G25: CONCRETE | H25: 340.623944 | J25: 148.52 | K25: 50589.46816 | P25: 0 | Q25: 0 | R25: 0 | S25: 2016 | T25: 1 | U25: 50589.46816
B26: BK9001S00469 | D26: Primary cycle route | E26: ANNIE ST | G26: CONCRETE | H26: 58.038825 | J26: 148.52 | K26: 8619.926289 | P26: 0 | Q26: 0 | R26: 0 | S26: 2016 | T26: 1 | U26: 8619.926289
B27: BK9001S00152 | D27: Primary cycle route | E27: BOOMERANG ST | G27: ASHPALT | H27: 214.66652 | J27: 148.52 | K27: 31882.27155 | P27: 0 | Q27: 0 | R27: 0 | S27: 2016 | T27: 1 | U27: 31882.27155
B28: BK9001S00090 | D28: Secondary cycle route | E28: BOWEN TCE | G28: CONCRETE | H28: 487.023848 | J28: 148.52 | K28: 72332.7819 | P28: 68.5254207 | Q28: 11241.17328 | R28: 770306.128 | S28: 2016 | T28: 1 | U28: 842638.9099
B29: BK9001S00093 | D29: Primary cycle route | E29: BRIDGE ST | G29: CONCRETE | H29: 43.311435 | J29: 148.52 | K29: 6432.614326 | P29: 0 | Q29: 0 | R29: 0 | S29: 2016 | T29: 1 | U29: 6432.614326
B30: BK9001S00287 | D30: Secondary cycle route | E30: BRIDGE ST | G30: CONCRETE | H30: 46.407452 | J30: 148.52 | K30: 6892.434771 | P30: 0 | Q30: 0 | R30: 0 | S30: 2016 | T30: 1 | U30: 6892.434771
B31: BK9001S00543 | D31: Primary cycle route | E31: BRIGHT STREET | G31: CONCRETE | H31: 187.382473 | J31: 148.52 | K31: 27830.04489 | P31: 0 | Q31: 0 | R31: 0 | S31: 2016 | T31: 1 | U31: 27830.04489
B32: BK9001S00625 | D32: Primary cycle route | E32: CAIRNS ST | G32: CONCRETE | H32: 408.948325 | J32: 148.52 | K32: 60737.00523 | P32: 0 | Q32: 0 | R32: 0 | S32: 2016 | T32: 1 | U32: 60737.00523
B33: BK9001S00639 | D33: Primary cycle route | E33: CAIRNS ST | G33: CONCRETE | H33: 196.966187 | J33: 148.52 | K33: 29253.41809 | P33: 0 | Q33: 0 | R33: 0 | S33: 2016 | T33: 1 | U33: 29253.41809
B34: BK9001S00576 | D34: Primary cycle route | E34: CORONATION DR | G34: ASHPALT | H34: 508.056083 | J34: 148.52 | K34: 75456.48945 | P34: 0 | Q34: 0 | R34: 0 | S34: 2016 | T34: 1 | U34: 75456.48945
B35: BK9001S00575 | D35: Primary cycle route | E35: CORONATION DR | G35: ASHPALT | H35: 547.139127 | J35: 148.52 | K35: 81261.10314 | P35: 0 | Q35: 0 | R35: 0 | S35: 2016 | T35: 1 | U35: 81261.10314
B36: BK9001S00492 | D36: Primary cycle route | E36: CORONATION DR | G36: ASHPALT | H36: 176.90238 | J36: 148.52 | K36: 26273.54148 | P36: 0 | Q36: 0 | R36: 0 | S36: 2016 | T36: 1 | U36: 26273.54148
B37: BK9001S00073 | D37: Primary cycle route | E37: CORONATION DR | G37: CONCRETE | H37: 27.061472 | J37: 148.52 | K37: 4019.169821 | P37: 0 | Q37: 0 | R37: 0 | S37: 2016 | T37: 1 | U37: 4019.169821
B38: BK9001S00095 | D38: Primary cycle route | E38: CORONATION DR | G38: CONCRETE | H38: 117.245854 | J38: 148.52 | K38: 17413.35424 | P38: 0 | Q38: 0 | R38: 0 | S38: 2016 | T38: 1 | U38: 17413.35424
B39: BK9001S00333 | D39: Primary cycle route | E39: CORONATION DR | G39: CONCRETE | H39: 22.12742 | J39: 148.52 | K39: 3286.364418 | P39: 0 | Q39: 0 | R39: 0 | S39: 2016 | T39: 1 | U39: 3286.364418
B40: BK9001S00567 | D40: Primary cycle route | E40: CORONATION DR | G40: ASHPALT | H40: 1419.599249 | J40: 148.52 | K40: 210838.8805 | P40: 0 | Q40: 0 | R40: 0 | S40: 2016 | T40: 1 | U40: 210838.8805
B41: BK9001S00687 | D41: Primary cycle route | E41: CORONATION DR | G41: ASHPALT | H41: 516.618791 | J41: 148.52 | K41: 76728.22284 | P41: 0 | Q41: 0 | R41: 0 | S41: 2016 | T41: 1 | U41: 76728.22284
B42: BK9001S00689 | D42: Primary cycle route | E42: CORONATION DR | G42: ASHPALT | H42: 793.822394 | J42: 148.52 | K42: 117898.502 | P42: 0 | Q42: 0 | R42: 0 | S42: 2016 | T42: 1 | U42: 117898.502
B43: BK9001S00692 | D43: Primary cycle route | E43: CORONATION DR | G43: ASHPALT | H43: 379.851295 | J43: 148.52 | K43: 56415.51433 | P43: 0 | Q43: 0 | R43: 0 | S43: 2016 | T43: 1 | U43: 56415.51433
B44: BK9001S00763 | D44: Primary cycle route | E44: CORONATION DR | G44: ASHPALT | H44: 2078.022889 | J44: 148.52 | K44: 308627.9595 | P44: 0 | Q44: 0 | R44: 0 | S44: 2016 | T44: 1 | U44: 308627.9595
B45: BK9001S00637 | D45: Primary cycle route | E45: DARRAGH ST | G45: CONCRETE | H45: 298.059708 | J45: 148.52 | K45: 44267.82783 | P45: 0 | Q45: 0 | R45: 0 | S45: 2016 | T45: 1 | U45: 44267.82783
B46: BK9001S00087 | D46: Primary cycle route | E46: EVANS ST | G46: CONCRETE | H46: 67.61287 | J46: 148.52 | K46: 10041.86345 | P46: 0 | Q46: 0 | R46: 0 | S46: 2016 | T46: 1 | U46: 10041.86345
B47: BK9001S00746 | D47: Primary cycle route | E47: EVANS ST | G47: CONCRETE | H47: 0.012575 | J47: 148.52 | K47: 1.867639 | P47: 0 | Q47: 0 | R47: 0 | S47: 2016 | T47: 1 | U47: 1.867639
B48: BK9001S00160 | D48: Primary cycle route | E48: GARDENS POINT RD | G48: ASHPALT | H48: 126.98112 | J48: 148.52 | K48: 18859.23594 | P48: 0 | Q48: 0 | R48: 0 | S48: 2016 | T48: 1 | U48: 18859.23594
B49: BK9001S00341 | D49: Primary cycle route | E49: GARDENS POINT RD | G49: ASHPALT | H49: 243.756627 | J49: 148.52 | K49: 36202.73424 | P49: 0 | Q49: 0 | R49: 0 | S49: 2016 | T49: 1 | U49: 36202.73424
B50: BK9001S00162 | D50: Primary cycle route | E50: GARDENS POINT RD | G50: ASHPALT | H50: 502.2612 | J50: 148.52 | K50: 74595.83342 | P50: 0 | Q50: 0 | R50: 0 | S50: 2016 | T50: 1 | U50: 74595.83342
B51: BK9001S00342 | D51: Primary cycle route | E51: GARDENS POINT RD | G51: ASHPALT | H51: 231.183106 | J51: 148.52 | K51: 34335.3149 | P51: 0 | Q51: 0 | R51: 0 | S51: 2016 | T51: 1 | U51: 34335.3149
B52: BK9001S00413 | D52: Primary cycle route | E52: GARDENS POINT RD | G52: CONCRETE | H52: 1100.792357 | J52: 148.52 | K52: 163489.6809 | P52: 0 | Q52: 0 | R52: 0 | S52: 2016 | T52: 1 | U52: 163489.6809
B53: BK9001S00427 | D53: Primary cycle route | E53: GILCHRIST AVE | G53: CONCRETE | H53: 1727.033312 | J53: 148.52 | K53: 256498.9875 | P53: 0 | Q53: 0 | R53: 0 | S53: 2016 | T53: 1 | U53: 256498.9875
B54: BK9001S00077 | D54: Primary cycle route | E54: GILCHRIST AVE | G54: CONCRETE | H54: 524.962506 | J54: 148.52 | K54: 77967.43139 | P54: 0 | Q54: 0 | R54: 0 | S54: 2016 | T54: 1 | U54: 77967.43139
B55: BK9001S00075 | D55: Primary cycle route | E55: GILCHRIST AVE | G55: CONCRETE | H55: 1079.323508 | J55: 148.52 | K55: 160301.1274 | P55: 0 | Q55: 0 | R55: 0 | S55: 2016 | T55: 1 | U55: 160301.1274
B56: BK9001S00272 | D56: Primary cycle route | E56: GILCHRIST AVE | G56: CONCRETE | H56: 70.994753 | J56: 148.52 | K56: 10544.14072 | P56: 0 | Q56: 0 | R56: 0 | S56: 2016 | T56: 1 | U56: 10544.14072
B57: BK9001S00211 | D57: Primary cycle route | E57: GILCHRIST AVE | G57: CONCRETE | H57: 150.028403 | J57: 148.52 | K57: 22282.21841 | P57: 0 | Q57: 0 | R57: 0 | S57: 2016 | T57: 1 | U57: 22282.21841
B58: BK9001S00212 | D58: Primary cycle route | E58: GILCHRIST AVE | G58: CONCRETE | H58: 164.431844 | J58: 148.52 | K58: 24421.41747 | P58: 0 | Q58: 0 | R58: 0 | S58: 2016 | T58: 1 | U58: 24421.41747
B59: BK9001S00092 | D59: Primary cycle route | E59: GLENROSA RD | G59: CONCRETE | H59: 109.907683 | J59: 148.52 | K59: 16323.48908 | P59: 0 | Q59: 0 | R59: 0 | S59: 2016 | T59: 1 | U59: 16323.48908
B60: BK9001S00183 | D60: Primary cycle route | E60: GLENROSA RD | G60: CONCRETE | H60: 177.788374 | J60: 148.52 | K60: 26405.12931 | P60: 0 | Q60: 0 | R60: 0 | S60: 2016 | T60: 1 | U60: 26405.12931
B61: BK9001S00286 | D61: Primary cycle route | E61: GLENROSA RD | G61: CONCRETE | H61: 216.766246 | J61: 148.52 | K61: 32194.12286 | P61: 0 | Q61: 0 | R61: 0 | S61: 2016 | T61: 1 | U61: 32194.12286
B62: BK9001S00745 | D62: Primary cycle route | E62: GLENROSA RD | G62: CONCRETE | H62: 0.009471 | J62: 148.52 | K62: 1.40663292 | P62: 0 | Q62: 0 | R62: 0 | S62: 2016 | T62: 1 | U62: 1.40663292
B63: BK9001S00359 | D63: Secondary cycle route | E63: GREGORY TCE | G63: PAVER | H63: 169.025793 | J63: 151.88 | K63: 25671.63744 | P63: 0 | Q63: 0 | R63: 0 | S63: 2016 | T63: 1 | U63: 25671.63744
B64: BK9001S00443 | D64: Secondary cycle route | E64: GREGORY TCE | G64: CONCRETE | H64: 615.344835 | J64: 148.52 | K64: 91391.01489 | P64: 0 | Q64: 0 | R64: 0 | S64: 2016 | T64: 1 | U64: 91391.01489
B65: BK9001S00217 | D65: Secondary cycle route | E65: GREGORY TCE | G65: CONCRETE | H65: 91.133368 | J65: 148.52 | K65: 13535.12782 | P65: 0 | Q65: 0 | R65: 0 | S65: 2016 | T65: 1 | U65: 13535.12782
B66: BK9001S00179 | D66: Secondary cycle route | E66: GREGORY TCE | G66: CONCRETE | H66: 49.4535 | J66: 148.52 | K66: 7344.83382 | P66: 0 | Q66: 0 | R66: 0 | S66: 2016 | T66: 1 | U66: 7344.83382
B67: BK9001S00380 | D67: Secondary cycle route | E67: GREGORY TCE | G67: CONCRETE | H67: 208.549601 | J67: 148.52 | K67: 30973.78674 | P67: 0 | Q67: 0 | R67: 0 | S67: 2016 | T67: 1 | U67: 30973.78674
B68: BK9001S00429 | D68: Secondary cycle route | E68: GREGORY TCE | G68: CONCRETE | H68: 892.810976 | J68: 148.52 | K68: 132600.2862 | P68: 0 | Q68: 0 | R68: 0 | S68: 2016 | T68: 1 | U68: 132600.2862
B69: BK9001S00216 | D69: Secondary cycle route | E69: GREGORY TCE | G69: ASHPALT | H69: 325.767284 | J69: 148.52 | K69: 48382.95702 | P69: 0 | Q69: 0 | R69: 0 | S69: 2016 | T69: 1 | U69: 48382.95702
B70: BK9001S00021 | D70: Primary cycle route | E70: HOLMAN ST | G70: CONCRETE | H70: 37.723217 | J70: 148.52 | K70: 5602.652189 | P70: 27.912422 | Q70: 148.0000001 | R70: 4131.03846 | S70: 2016 | T70: 1 | U70: 9733.690649
B71: BK9001S00235 | D71: Primary cycle route | E71: HOLMAN ST | G71: CONCRETE | H71: 916.581482 | J71: 148.52 | K71: 136130.6817 | P71: 0 | Q71: 0 | S71: 2016 | T71: 1 | U71: 136130.6817
B72: BK9001S00386 | D72: Primary cycle route | E72: HOLMAN ST | G72: PAVER | H72: 132.832913 | J72: 151.88 | K72: 20174.66283 | P72: 0 | Q72: 0 | S72: 2016 | T72: 1 | U72: 20174.66283
B73: BK9001S00626 | D73: Primary cycle route | E73: HOLMAN ST | G73: CONCRETE | H73: 137.338433 | J73: 148.52 | K73: 20397.50407 | P73: 0 | Q73: 0 | S73: 2016 | T73: 1 | U73: 20397.50407
B74: BK9001S00193 | D74: Secondary cycle route | E74: ITHACA ST | G74: CONCRETE | H74: 521.588124 | J74: 148.52 | K74: 77466.26818 | P74: 720.980561 | Q74: 2593.000007 | R74: 1869502.6 | S74: 2016 | T74: 1 | U74: 1946968.868
B75: BK9001S00194 | D75: Secondary cycle route | E75: ITHACA ST | G75: CONCRETE | H75: 314.215727 | J75: 148.52 | K75: 46667.31977 | P75: 0 | Q75: 0 | S75: 2016 | T75: 1 | U75: 46667.31977
B76: BK9001S00367 | D76: Secondary cycle route | E76: ITHACA ST | G76: CONCRETE | H76: 102.831497 | J76: 148.52 | K76: 15272.53393 | P76: 0 | Q76: 0 | S76: 2016 | T76: 1 | U76: 15272.53393
B77: BK9001S00289 | D77: Primary cycle route | E77: JANE ST | G77: CONCRETE | H77: 1308.226854 | J77: 148.52 | K77: 194297.8524 | P77: 0 | Q77: 0 | R77: 0 | S77: 2016 | T77: 1 | U77: 194297.8524
B78: BK9001S00129 | D78: Primary cycle route | E78: LOWER RIVER TCE | G78: CONCRETE | H78: 125.415728 | J78: 148.52 | K78: =J78*H78 -> 18626.74392 | P78: 0 | Q78: =IFERROR(R78/P78,0) -> 0 | R78: 0 | S78: 2016 | T78: 1 | U78: =R78+K78 -> 18626.74392
B79: BK9001S00131 | D79: Primary cycle route | E79: LOWER RIVER TCE | G79: CONCRETE | H79: 243.91575 | J79: 148.52 | K79: 36226.36719 | P79: 0 | Q79: 0 | R79: 0 | S79: 2016 | T79: 1 | U79: 36226.36719
B80: BK9001S00132 | D80: Primary cycle route | E80: LOWER RIVER TCE | G80: CONCRETE | H80: 140.077957 | J80: 148.52 | K80: 20804.37817 | P80: 0 | Q80: 0 | R80: 0 | S80: 2016 | T80: 1 | U80: 20804.37817
B81: BK9001S00133 | D81: Primary cycle route | E81: LOWER RIVER TCE | G81: CONCRETE | H81: 6.552882 | J81: 148.52 | K81: 973.2340346 | P81: 0 | Q81: 0 | R81: 0 | S81: 2016 | T81: 1 | U81: 973.2340346
B82: BK9001S00316 | D82: Primary cycle route | E82: LOWER RIVER TCE | G82: CONCRETE | H82: 581.929687 | J82: 148.52 | K82: 86428.19711 | P82: 0 | Q82: 0 | R82: 0 | S82: 2016 | T82: 1 | U82: 86428.19711
B83: BK9001S00317 | D83: Primary cycle route | E83: LOWER RIVER TCE | G83: CONCRETE | H83: 152.624161 | J83: 148.52 | K83: 22667.74039 | P83: 0 | Q83: 0 | R83: 0 | S83: 2016 | T83: 1 | U83: 22667.74039
B84: BK9001S00318 | D84: Primary cycle route | E84: LOWER RIVER TCE | G84: CONCRETE | H84: 506.52676 | J84: 148.52 | K84: 75229.3544 | P84: 0 | Q84: 0 | R84: 0 | S84: 2016 | T84: 1 | U84: 75229.3544
B85: BK9001S00319 | D85: Primary cycle route | E85: LOWER RIVER TCE | G85: CONCRETE | H85: 50.256332 | J85: 148.52 | K85: 7464.070429 | P85: 0 | Q85: 0 | R85: 0 | S85: 2016 | T85: 1 | U85: 7464.070429
B86: BK9001S00472 | D86: Primary cycle route | E86: MACDONALD ST | G86: CONCRETE | H86: 896.844489 | J86: 148.52 | K86: 133199.3435 | P86: 0 | Q86: 0 | R86: 0 | S86: 2016 | T86: 1 | U86: 133199.3435
B87: BK9001S00569 | D87: Primary cycle route | E87: MACDONALD ST | G87: CONCRETE | H87: 201.229117 | J87: 148.52 | K87: 29886.54846 | P87: 0 | Q87: 0 | R87: 0 | S87: 2016 | T87: 1 | U87: 29886.54846
B88: BK9001S00533 | D88: Primary cycle route | E88: MONTAGUE RD | G88: CONCRETE | H88: 267.512143 | J88: 148.52 | K88: 39730.90348 | P88: 0 | Q88: 0 | R88: 0 | S88: 2016 | T88: 1 | U88: 39730.90348
B89: BK9001S00532 | D89: Primary cycle route | E89: MONTAGUE RD | G89: CONCRETE | H89: 232.481815 | J89: 148.52 | K89: 34528.19916 | P89: 0 | Q89: 0 | R89: 0 | S89: 2016 | T89: 1 | U89: 34528.19916
B90: BK9001S00571 | D90: Primary cycle route | E90: MONTAGUE RD | G90: CONCRETE | H90: 668.73456 | J90: 148.52 | K90: 99320.45685 | P90: 0 | Q90: 0 | R90: 0 | S90: 2016 | T90: 1 | U90: 99320.45685
B91: BK9001S00572 | D91: Primary cycle route | E91: MONTAGUE RD | G91: CONCRETE | H91: 115.459362 | J91: 148.52 | K91: 17148.02444 | P91: 0 | Q91: 0 | R91: 0 | S91: 2016 | T91: 1 | U91: 17148.02444
B92: BK9001S00573 | D92: Primary cycle route | E92: MONTAGUE RD | G92: CONCRETE | H92: 71.666651 | J92: 148.52 | K92: 10643.93101 | P92: 0 | Q92: 0 | R92: 0 | S92: 2016 | T92: 1 | U92: 10643.93101
B93: BK9001S00442 | D93: Primary cycle route | E93: NORTH QUAY | G93: ASHPALT | H93: 1240.895958 | J93: 148.52 | K93: 184297.8677 | P93: 0 | Q93: 0 | R93: 0 | S93: 2016 | T93: 1 | U93: 184297.8677
B94: BK9001S00641 | D94: Primary cycle route | E94: PROSPECT ST | G94: CONCRETE | H94: 26.560343 | J94: 148.52 | K94: 3944.742142 | P94: 0 | Q94: 0 | R94: 0 | S94: 2016 | T94: 1 | U94: 3944.742142
B95: BK9001S00159 | D95: Primary cycle route | E95: QUEENS WHARF RD | G95: ASHPALT | H95: 68.304555 | J95: 148.52 | K95: 10144.59251 | P95: 0 | Q95: 0 | R95: 0 | S95: 2016 | T95: 1 | U95: 10144.59251
B96: BK9001S00340 | D96: Primary cycle route | E96: QUEENS WHARF RD | G96: CONCRETE | H96: 674.831371 | J96: 148.52 | K96: 100225.9552 | P96: 0 | Q96: 0 | R96: 0 | S96: 2016 | T96: 1 | U96: 100225.9552
B97: BK9001S00134 | D97: Primary cycle route | E97: RIVER TCE | G97: CONCRETE | H97: 269.887886 | J97: 148.52 | K97: 40083.74883 | P97: 0 | Q97: 0 | R97: 0 | S97: 2016 | T97: 1 | U97: 40083.74883
B98: BK9001S00136 | D98: Primary cycle route | E98: RIVER TCE | G98: CONCRETE | H98: 215.763293 | J98: 148.52 | K98: 32045.16428 | P98: 0 | Q98: 0 | R98: 0 | S98: 2016 | T98: 1 | U98: 32045.16428
B99: BK9001S00139 | D99: Primary cycle route | E99: RIVER TCE | G99: CONCRETE | H99: 331.410556 | J99: 148.52 | K99: 49221.09578 | P99: 0 | Q99: 0 | R99: 0 | S99: 2016 | T99: 1 | U99: 49221.09578
B100: BK9001S00322 | D100: Primary cycle route | E100: RIVER TCE | G100: CONCRETE | H100: 49.344416 | J100: 148.52 | K100: 7328.632664 | P100: 0 | Q100: 0 | R100: 0 | S100: 2016 | T100: 1 | U100: 7328.632664
B101: BK9001S00727 | D101: Primary cycle route | E101: RIVERVIEW COURT | G101: CONCRETE | H101: 50.144568 | J101: 148.52 | K101: 7447.471239 | P101: 0 | Q101: 0 | R101: 0 | S101: 2016 | T101: 1 | U101: 7447.471239
B102: BK9001S00634 | D102: Primary cycle route | E102: ROTHERHAM ST | G102: CONCRETE | H102: 926.298275 | J102: 148.52 | K102: 137573.8198 | P102: 0 | Q102: 0 | R102: 0 | S102: 2016 | T102: 1 | U102: 137573.8198
B103: BK9001S00635 | D103: Primary cycle route | E103: ROTHERHAM ST | G103: CONCRETE | H103: 235.943291 | J103: 148.52 | K103: 35042.29758 | P103: 0 | Q103: 0 | R103: 0 | S103: 2016 | T103: 1 | U103: 35042.29758
B104: BK9001S00125 | D104: Primary cycle route | E104: STANLEY ST | G104: CONCRETE | H104: 43.163953 | J104: 148.52 | K104: 6410.7103 | P104: 0 | Q104: 0 | R104: 0 | S104: 2016 | T104: 1 | U104: 6410.7103
B105: BK9001S00126 | D105: Primary cycle route | E105: STANLEY ST | G105: CONCRETE | H105: 38.306352 | J105: 148.52 | K105: 5689.259399 | P105: 0 | Q105: 0 | R105: 0 | S105: 2016 | T105: 1 | U105: 5689.259399
B106: BK9001S00313 | D106: Primary cycle route | E106: STANLEY ST | G106: ASHPALT | H106: 35.96541 | J106: 148.52 | K106: 5341.582693 | P106: 0 | Q106: 0 | R106: 0 | S106: 2016 | T106: 1 | U106: 5341.582693
B107: BK9001S00314 | D107: Primary cycle route | E107: STANLEY ST | G107: CONCRETE | H107: 82.19182 | J107: 148.52 | K107: 12207.12911 | P107: 0 | Q107: 0 | R107: 0 | S107: 2016 | T107: 1 | U107: 12207.12911
B108: BK9001S00128 | D108: Primary cycle route | E108: STANLEY ST | G108: CONCRETE | H108: 277.293178 | J108: 148.52 | K108: 41183.5828 | P108: 0 | Q108: 0 | R108: 0 | S108: 2016 | T108: 1 | U108: 41183.5828
B109: BK9001S00315 | D109: Primary cycle route | E109: STANLEY ST | G109: CONCRETE | H109: 42.356307 | J109: 148.52 | K109: 6290.758716 | P109: 0 | Q109: 0 | R109: 0 | S109: 2016 | T109: 1 | U109: 6290.758716
B110: BK9001S00699 | D110: Primary cycle route | E110: STANLEY ST | G110: CONCRETE | H110: 230.078649 | J110: 148.52 | K110: 34171.28095 | P110: 0 | Q110: 0 | R110: 0 | S110: 2016 | T110: 1 | U110: 34171.28095
B111: BK9001S00700 | D111: Primary cycle route | E111: STANLEY ST | G111: CONCRETE | H111: 96.786964 | J111: 148.52 | K111: 14374.79989 | P111: 0 | Q111: 0 | R111: 0 | S111: 2016 | T111: 1 | U111: 14374.79989
B112: BK9001S00681 | D112: Primary cycle route | E112: STANLEY ST | G112: CONCRETE | H112: 110.495778 | J112: 148.52 | K112: 16410.83295 | P112: 0 | Q112: 0 | R112: 0 | S112: 2016 | T112: 1 | U112: 16410.83295
B113: BK9001S00682 | D113: Primary cycle route | E113: STANLEY ST | G113: CONCRETE | H113: 33.876594 | J113: 148.52 | K113: 5031.351741 | P113: 0 | Q113: 0 | R113: 0 | S113: 2016 | T113: 1 | U113: 5031.351741
B114: BK9001S00698 | D114: Primary cycle route | E114: STANLEY ST | G114: CONCRETE | H114: 30.153938 | J114: 148.52 | K114: 4478.462872 | P114: 0 | Q114: 0 | R114: 0 | S114: 2016 | T114: 1 | U114: 4478.462872
B115: BK9001S00096 | D115: Primary cycle route | E115: WATERWORKS RD | G115: ASHPALT | H115: 40.094596 | J115: 148.52 | K115: 5954.849398 | P115: 0 | Q115: 0 | R115: 0 | S115: 2016 | T115: 1 | U115: 5954.849398
B116: BK9001S00094 | D116: Secondary cycle route | E116: WATERWORKS RD | G116: CONCRETE | H116: 59.357168 | J116: 148.52 | K116: 8815.726591 | P116: 0 | Q116: 0 | R116: 0 | S116: 2016 | T116: 1 | U116: 8815.726591
B117: BK9001S00630 | D117: Primary cycle route | E117: WHARF ST | G117: CONCRETE | H117: 396.19885 | J117: 148.52 | K117: 58843.4532 | P117: 0 | Q117: 0 | R117: 0 | S117: 2016 | T117: 1 | U117: 58843.4532
B118: BK9001S00631 | D118: Primary cycle route | E118: WHARF ST | G118: CONCRETE | H118: 81.937721 | J118: 148.52 | K118: 12169.39032 | P118: 0 | Q118: 0 | R118: 0 | S118: 2016 | T118: 1 | U118: 12169.39032
B119: BK9001S00632 | D119: Primary cycle route | E119: WHARF ST | G119: CONCRETE | H119: 26.142856 | J119: 148.52 | K119: 3882.736973 | P119: 0 | Q119: 0 | R119: 0 | S119: 2016 | T119: 1 | U119: 3882.736973
B120: BK9002S00208 | D120: Primary cycle route | E120: ADDISON ST | G120: CONCRETE | H120: 317.553111 | J120: 148.52 | K120: 47162.98805 | P120: 29.5610153 | Q120: 15.00000002 | R120: 443.41523 | S120: 2016 | T120: 1 | U120: 47606.40328
B121: BK9002S00465 | D121: Primary cycle route | E121: BISHOP ST | G121: CONCRETE | H121: 598.495508 | J121: 148.52 | K121: 88888.55285 | P121: 323.363071 | Q121: 14.99999998 | R121: 4850.44606 | S121: 2016 | T121: 1 | U121: 93738.99891
B122: BK9002S00461 | D122: Primary cycle route | E122: BISHOP ST | G122: CONCRETE | H122: 578.918177 | J122: 148.52 | K122: 85980.92765 | P122: 0 | Q122: 0 | R122: 0 | S122: 2016 | T122: 1 | U122: 85980.92765
B123: BK9002S00462 | D123: Primary cycle route | E123: BISHOP ST | G123: CONCRETE | H123: 31.127721 | J123: 148.52 | K123: 4623.089123 | P123: 0 | Q123: 0 | R123: 0 | S123: 2016 | T123: 1 | U123: 4623.089123
B124: BK9002S00463 | D124: Primary cycle route | E124: BISHOP ST | G124: CONCRETE | H124: 79.889159 | J124: 148.52 | K124: 11865.13789 | P124: 0 | Q124: 0 | R124: 0 | S124: 2016 | T124: 1 | U124: 11865.13789
B125: BK9002S00464 | D125: Primary cycle route | E125: BISHOP ST | G125: CONCRETE | H125: 31.999916 | J125: 148.52 | K125: 4752.627524 | P125: 0 | Q125: 0 | R125: 0 | S125: 2016 | T125: 1 | U125: 4752.627524
B126: BK9002S00164 | D126: Secondary cycle route | E126: BLANDFORD ST | G126: CONCRETE | H126: 73.351043 | J126: 148.52 | K126: 10894.09691 | P126: 0 | Q126: 0 | R126: 0 | S126: 2016 | T126: 1 | U126: 10894.09691
B127: BK9002S00165 | D127: Secondary cycle route | E127: BLANDFORD ST | G127: CONCRETE | H127: 247.083981 | J127: 148.52 | K127: 36696.91286 | P127: 0 | Q127: 0 | R127: 0 | S127: 2016 | T127: 1 | U127: 36696.91286
B128: BK9002S00025 | D128: Secondary cycle route | E128: BLANDFORD ST | G128: CONCRETE | H128: 294.875564 | J128: 148.52 | K128: 43794.91877 | P128: 0 | Q128: 0 | R128: 0 | S128: 2016 | T128: 1 | U128: 43794.91877
B129: BK9002S00053 | D129: Secondary cycle route | E129: BLANDFORD ST | G129: CONCRETE | H129: 46.240955 | J129: 148.52 | K129: 6867.706637 | P129: 0 | Q129: 0 | R129: 0 | S129: 2016 | T129: 1 | U129: 6867.706637
B130: BK9002S00054 | D130: Secondary cycle route | E130: BLANDFORD ST | G130: CONCRETE | H130: 29.048113 | J130: 148.52 | K130: 4314.225743 | P130: 0 | Q130: 0 | R130: 0 | S130: 2016 | T130: 1 | U130: 4314.225743
B131: BK9002S00166 | D131: Secondary cycle route | E131: BLANDFORD ST | G131: CONCRETE | H131: 78.390111 | J131: 148.52 | K131: 11642.49929 | P131: 0 | Q131: 0 | R131: 0 | S131: 2016 | T131: 1 | U131: 11642.49929
B132: BK9002S00167 | D132: Secondary cycle route | E132: BLANDFORD ST | G132: CONCRETE | H132: 190.059891 | J132: 148.52 | K132: 28227.69501 | P132: 0 | Q132: 0 | R132: 0 | S132: 2016 | T132: 1 | U132: 28227.69501
B133: BK9002S00407 | D133: Primary cycle route | E133: CAMPBELL ST | G133: CONCRETE | H133: 271.392067 | J133: 148.52 | K133: 40307.14979 | P133: 0 | Q133: 0 | R133: 0 | S133: 2016 | T133: 1 | U133: 40307.14979
B134: BK9002S00041 | D134: Primary cycle route | E134: CHEVIOT ST | G134: CONCRETE | H134: 8.75249 | J134: 148.52 | K134: 1299.919815 | P134: 0 | Q134: 0 | R134: 0 | S134: 2016 | T134: 1 | U134: 1299.919815
B135: BK9002S00292 | D135: Primary cycle route | E135: DAMON RD | G135: CONCRETE | H135: 1270.008847 | J135: 148.52 | K135: 188621.714 | P135: 374.571693 | Q135: 14.99999999 | R135: 5618.57539 | S135: 2016 | T135: 1 | U135: 194240.2893
B136: BK9002S00173 | D136: Primary cycle route | E136: DAMON RD | G136: CONCRETE | H136: 189.38428 | J136: 148.52 | K136: 28127.35327 | P136: 0 | Q136: 0 | R136: 0 | S136: 2016 | T136: 1 | U136: 28127.35327
B137: BK9002S00009 | D137: Primary cycle route | E137: DAVIDSON ST | G137: CONCRETE | H137: 534.127264 | J137: 148.52 | K137: 79328.58125 | P137: 0 | Q137: 0 | R137: 0 | S137: 2016 | T137: 1 | U137: 79328.58125
B138: BK9002S00227 | D138: Primary cycle route | E138: DAVIDSON ST | G138: CONCRETE | H138: 31.964423 | J138: 148.52 | K138: 4747.356104 | P138: 0 | Q138: 0 | R138: 0 | S138: 2016 | T138: 1 | U138: 4747.356104
B139: BK9002S00068 | D139: Primary cycle route | E139: EDGAR ST | G139: CONCRETE | H139: 913.107743 | J139: 148.52 | K139: 135614.762 | P139: 0 | Q139: 0 | R139: 0 | S139: 2016 | T139: 1 | U139: 135614.762
B140: BK9002S00383 | D140: Primary cycle route | E140: EVANS ST | G140: CONCRETE | H140: 41.314122 | J140: 148.52 | K140: 6135.973399 | P140: 0 | Q140: 0 | R140: 0 | S140: 2016 | T140: 1 | U140: 6135.973399
B141: BK9002S00280 | D141: Secondary cycle route | E141: FERRES STREET | G141: CONCRETE | H141: 96.384544 | J141: 148.52 | K141: 14315.03247 | P141: 0 | Q141: 0 | R141: 0 | S141: 2016 | T141: 1 | U141: 14315.03247
B142: BK9002S00340 | D142: Primary cycle route | E142: FIFTH AVE | G142: CONCRETE | H142: 960.675643 | J142: 148.52 | K142: =J142*H142 -> 142679.5465 | P142: 774.62094 | Q142: =IFERROR(R142/P142,0) -> 15 | R142: 11619.3141 | S142: 2016 | T142: 1 | U142: =R142+K142 -> 154298.8606
B143: BK9002S00209 | D143: Primary cycle route | E143: GALLWAY ST | G143: CONCRETE | H143: 593.687779 | J143: 148.52 | K143: 88174.50894 | P143: 4.77239884 | Q143: 299.9999996 | R143: 1431.71965 | S143: 2016 | T143: 1 | U143: 89606.22859
B144: BK9002S00252 | D144: Primary cycle route | E144: GAMELIN CRES | G144: CONCRETE | H144: 1050.93943 | J144: 148.52 | K144: 156085.5241 | P144: 0 | Q144: 0 | R144: 0 | S144: 2016 | T144: 1 | U144: 156085.5241
B145: BK9002S00003 | D145: Secondary cycle route | E145: GAMELIN CRES | G145: CONCRETE | H145: 379.103558 | J145: 148.52 | K145: 56304.46043 | P145: 0 | Q145: 0 | R145: 0 | S145: 2016 | T145: 1 | U145: 56304.46043
B146: BK9002S00042 | D146: Secondary cycle route | E146: GAMELIN CRES | G146: CONCRETE | H146: 83.19243 | J146: 148.52 | K146: 12355.7397 | P146: 0 | Q146: 0 | R146: 0 | S146: 2016 | T146: 1 | U146: 12355.7397
B147: BK9002S00161 | D147: Secondary cycle route | E147: GAMELIN CRES | G147: CONCRETE | H147: 114.757885 | J147: 148.52 | K147: 17043.84108 | P147: 0 | Q147: 0 | R147: 0 | S147: 2016 | T147: 1 | U147: 17043.84108
B148: BK9002S00229 | D148: Secondary cycle route | E148: GAMELIN CRES | G148: CONCRETE | H148: 1111.694787 | J148: 148.52 | K148: 165108.9098 | P148: 0 | Q148: 0 | R148: 0 | S148: 2016 | T148: 1 | U148: 165108.9098
B149: BK9002S00045 | D149: Secondary cycle route | E149: GAMELIN CRES | G149: CONCRETE | H149: 38.089352 | J149: 148.52 | K149: 5657.030559 | P149: 0 | Q149: 0 | R149: 0 | S149: 2016 | T149: 1 | U149: 5657.030559
B150: BK9002S00160 | D150: Secondary cycle route | E150: GAMELIN CRES | G150: CONCRETE | H150: 97.080534 | J150: 148.52 | K150: 14418.40091 | P150: 0 | Q150: 0 | R150: 0 | S150: 2016 | T150: 1 | U150: 14418.40091
B151: BK9002S00381 | D151: Primary cycle route | E151: GLENROSA RD | G151: CONCRETE | H151: 303.089343 | J151: 148.52 | K151: 45014.82922 | P151: 0 | Q151: 0 | R151: 0 | S151: 2016 | T151: 1 | U151: 45014.82922
B152: BK9002S00262 | D152: Primary cycle route | E152: GOULD RD | G152: CONCRETE | H152: 170.596385 | J152: 148.52 | K152: 25336.9751 | P152: 0 | Q152: 0 | R152: 0 | S152: 2016 | T152: 1 | U152: 25336.9751
B153: BK9002S00346 | D153: Primary cycle route | E153: GYMPIE RD | G153: CONCRETE | H153: 316.929464 | J153: 148.52 | K153: 47070.36399 | P153: 18.2374729 | Q153: 15.00000003 | R153: 273.562094 | S153: 2016 | T153: 1 | U153: 47343.92609
B154: BK9002S00347 | D154: Primary cycle route | E154: GYMPIE RD | G154: CONCRETE | H154: 195.820077 | J154: 148.52 | K154: 29083.19784 | P154: 0 | Q154: 0 | R154: 0 | S154: 2016 | T154: 1 | U154: 29083.19784
B155: BK9002S00343 | D155: Primary cycle route | E155: GYMPIE RD | G155: CONCRETE | H155: 174.880191 | J155: 148.52 | K155: 25973.20597 | P155: 0 | Q155: 0 | R155: 0 | S155: 2016 | T155: 1 | U155: 25973.20597
B156: BK9002S00345 | D156: Primary cycle route | E156: GYMPIE RD | G156: CONCRETE | H156: 116.68939 | J156: 148.52 | K156: 17330.7082 | P156: 0 | Q156: 0 | R156: 0 | S156: 2016 | T156: 1 | U156: 17330.7082
B157: BK9002S00344 | D157: Primary cycle route | E157: GYMPIE RD | G157: CONCRETE | H157: 96.231511 | J157: 148.52 | K157: 14292.30401 | P157: 0 | Q157: 0 | R157: 0 | S157: 2016 | T157: 1 | U157: 14292.30401
B158: BK9002S00348 | D158: Primary cycle route | E158: GYMPIE RD | G158: CONCRETE | H158: 537.459232 | J158: 148.52 | K158: 79823.44514 | P158: 0 | Q158: 0 | R158: 0 | S158: 2016 | T158: 1 | U158: 79823.44514
B159: BK9002S00452 | D159: Primary cycle route | E159: HULME ST | G159: CONCRETE | H159: 368.352473 | J159: 148.52 | K159: 54707.70929 | P159: 0 | Q159: 0 | R159: 0 | S159: 2016 | T159: 1 | U159: 54707.70929
B160: BK9002S00453 | D160: Primary cycle route | E160: HULME ST | G160: CONCRETE | H160: 18.430319 | J160: 148.52 | K160: 2737.270978 | P160: 0 | Q160: 0 | R160: 0 | S160: 2016 | T160: 1 | U160: 2737.270978
B161: BK9002S00437 | D161: Primary cycle route | E161: JEAN ST | G161: CONCRETE | H161: 713.320626 | J161: 148.52 | K161: 105942.3794 | P161: 3984.94157 | Q161: 14.99999999 | R161: 59774.1235 | S161: 2016 | T161: 1 | U161: 165716.5029
B162: BK9002S00301 | D162: Primary cycle route | E162: JEAN ST | G162: CONCRETE | H162: 1524.252997 | J162: 148.52 | K162: 226382.0551 | P162: 0 | Q162: 0 | R162: 0 | S162: 2016 | T162: 1 | U162: 226382.0551
B163: BK9002S00300 | D163: Primary cycle route | E163: JEAN ST | G163: CONCRETE | H163: 28.964242 | J163: 148.52 | K163: 4301.769222 | P163: 0 | Q163: 0 | R163: 0 | S163: 2016 | T163: 1 | U163: 4301.769222
B164: BK9002S00189 | D164: Secondary cycle route | E164: JEAN ST | G164: CONCRETE | H164: 1686.718071 | J164: 148.52 | K164: 250511.3679 | P164: 149.970859 | Q164: 15.00000003 | R164: 2249.56289 | S164: 2016 | T164: 1 | U164: 252760.9308
B165: BK9002S00408 | D165: Primary cycle route | E165: M3 | G165: CONCRETE | H165: 53.171695 | J165: 148.52 | K165: 7897.060141 | P165: 0 | Q165: 0 | R165: 0 | S165: 2016 | T165: 1 | U165: 7897.060141
B166: BK9002S00409 | D166: Primary cycle route | E166: M3 | G166: CONCRETE | H166: 24.340056 | J166: 148.52 | K166: 3614.985117 | P166: 0 | Q166: 0 | R166: 0 | S166: 2016 | T166: 1 | U166: 3614.985117
B167: BK9002S00410 | D167: Primary cycle route | E167: M3 | G167: CONCRETE | H167: 30.428077 | J167: 148.52 | K167: 4519.177996 | P167: 0 | Q167: 0 | R167: 0 | S167: 2016 | T167: 1 | U167: 4519.177996
B168: BK9002S00411 | D168: Primary cycle route | E168: M3 | G168: CONCRETE | H168: 65.77241 | J168: 148.52 | K168: 9768.518333 | P168: 0 | Q168: 0 | R168: 0 | S168: 2016 | T168: 1 | U168: 9768.518333
B169: BK9002S00412 | D169: Primary cycle route | E169: M3 | G169: CONCRETE | H169: 38.538243 | J169: 148.52 | K169: 5723.69985 | P169: 0 | Q169: 0 | R169: 0 | S169: 2016 | T169: 1 | U169: 5723.69985
B170: BK9002S00428 | D170: Primary cycle route | E170: M7 | G170: CONCRETE | H170: 1037.516666 | J170: 148.52 | K170: 154091.9752 | P170: 0 | Q170: 0 | R170: 0 | S170: 2016 | T170: 1 | U170: 154091.9752
B171: BK9002S00434 | D171: Primary cycle route | E171: M7 | G171: CONCRETE | H171: 52.435208 | J171: 148.52 | K171: 7787.677092 | P171: 0 | Q171: 0 | R171: 0 | S171: 2016 | T171: 1 | U171: 7787.677092
B172: BK9002S00413 | D172: Primary cycle route | E172: M7 | G172: CONCRETE | H172: 123.167655 | J172: 148.52 | K172: 18292.86012 | P172: 0 | Q172: 0 | R172: 0 | S172: 2016 | T172: 1 | U172: 18292.86012
B173: BK9002S00418 | D173: Primary cycle route | E173: M7 | G173: CONCRETE | H173: 104.457897 | J173: 148.52 | K173: 15514.08686 | P173: 0 | Q173: 0 | R173: 0 | S173: 2016 | T173: 1 | U173: 15514.08686
B174: BK9002S00419 | D174: Primary cycle route | E174: M7 | G174: CONCRETE | H174: 51.295759 | J174: 148.52 | K174: 7618.446127 | P174: 0 | Q174: 0 | R174: 0 | S174: 2016 | T174: 1 | U174: 7618.446127
B175: BK9002S00420 | D175: Primary cycle route | E175: M7 | G175: CONCRETE | H175: 22.705838 | J175: 148.52 | K175: 3372.27106 | P175: 0 | Q175: 0 | R175: 0 | S175: 2016 | T175: 1 | U175: 3372.27106
B176: BK9002S00421 | D176: Primary cycle route | E176: M7 | G176: CONCRETE | H176: 49.976759 | J176: 148.52 | K176: 7422.548247 | P176: 0 | Q176: 0 | R176: 0 | S176: 2016 | T176: 1 | U176: 7422.548247
B177: BK9002S00422 | D177: Primary cycle route | E177: M7 | G177: CONCRETE | H177: 31.490474 | J177: 148.52 | K177: 4676.965198 | P177: 0 | Q177: 0 | R177: 0 | S177: 2016 | T177: 1 | U177: 4676.965198
B178: BK9002S00423 | D178: Primary cycle route | E178: M7 | G178: CONCRETE | H178: 117.603805 | J178: 148.52 | K178: 17466.51712 | P178: 0 | Q178: 0 | R178: 0 | S178: 2016 | T178: 1 | U178: 17466.51712
B179: BK9002S00424 | D179: Primary cycle route | E179: M7 | G179: CONCRETE | H179: 63.997697 | J179: 148.52 | K179: 9504.937958 | P179: 0 | Q179: 0 | R179: 0 | S179: 2016 | T179: 1 | U179: 9504.937958
B180: BK9002S00425 | D180: Primary cycle route | E180: M7 | G180: CONCRETE | H180: 133.052566 | J180: 148.52 | K180: 19760.9671 | P180: 0 | Q180: 0 | R180: 0 | S180: 2016 | T180: 1 | U180: 19760.9671
B181: BK9002S00426 | D181: Primary cycle route | E181: M7 | G181: CONCRETE | H181: 55.253211 | J181: 148.52 | K181: 8206.206898 | P181: 0 | Q181: 0 | R181: 0 | S181: 2016 | T181: 1 | U181: 8206.206898
B182: BK9002S00427 | D182: Primary cycle route | E182: M7 | G182: CONCRETE | H182: 33.867519 | J182: 148.52 | K182: 5030.003922 | P182: 0 | Q182: 0 | R182: 0 | S182: 2016 | T182: 1 | U182: 5030.003922
B183: BK9002S00028 | D183: Primary cycle route | E183: MARK ST | G183: CONCRETE | H183: 34.861714 | J183: 148.52 | K183: 5177.661763 | P183: 0 | Q183: 0 | R183: 0 | S183: 2016 | T183: 1 | U183: 5177.661763
B184: BK9002S00342 | D184: Primary cycle route | E184: MCCORD ST | G184: CONCRETE | H184: 797.012247 | J184: 148.52 | K184: 118372.2589 | P184: 0 | Q184: 0 | R184: 0 | S184: 2016 | T184: 1 | U184: 118372.2589
B185: BK9002S00095 | D185: Secondary cycle route | E185: MCCORD ST | G185: CONCRETE | H185: 87.403662 | J185: 148.52 | K185: 12981.19188 | P185: 0 | Q185: 0 | R185: 0 | S185: 2016 | T185: 1 | U185: 12981.19188
B186: BK9002S00196 | D186: Secondary cycle route | E186: MCCORD ST | G186: CONCRETE | H186: 69.044997 | J186: 148.52 | K186: 10254.56295 | P186: 0 | Q186: 0 | R186: 0 | S186: 2016 | T186: 1 | U186: 10254.56295
B187: BK9002S00239 | D187: Secondary cycle route | E187: MCCORD ST | G187: CONCRETE | H187: 161.143243 | J187: 148.52 | K187: 23932.99445 | P187: 0 | Q187: 0 | R187: 0 | S187: 2016 | T187: 1 | U187: 23932.99445
B188: BK9002S00102 | D188: Primary cycle route | E188: MCDONALD RD | G188: CONCRETE | H188: 53.948787 | J188: 148.52 | K188: 8012.473845 | P188: 8.94296173 | Q188: 148.0000004 | R188: 1323.55834 | S188: 2016 | T188: 1 | U188: 9336.032185
B189: BK9002S00324 | D189: Secondary cycle route | E189: MORNINGTON ST | G189: CONCRETE | H189: 387.923795 | J189: 148.52 | K189: 57614.44203 | P189: 0 | Q189: 0 | R189: 0 | S189: 2016 | T189: 1 | U189: 57614.44203
B190: BK9002S00325 | D190: Secondary cycle route | E190: MORNINGTON ST | G190: CONCRETE | H190: 456.604455 | J190: 148.52 | K190: 67814.89366 | P190: 0 | Q190: 0 | R190: 0 | S190: 2016 | T190: 1 | U190: 67814.89366
B191: BK9002S00234 | D191: Primary cycle route | E191: MURRAY ST | G191: CONCRETE | H191: 2299.841787 | J191: 148.52 | K191: 341572.5022 | P191: 0 | Q191: 0 | R191: 0 | S191: 2016 | T191: 1 | U191: 341572.5022
B192: BK9002S00179 | D192: Primary cycle route | E192: NOBLE ST | G192: CONCRETE | H192: 1329.274506 | J192: 148.52 | K192: 197423.8496 | P192: 0 | Q192: 0 | R192: 0 | S192: 2016 | T192: 1 | U192: 197423.8496
B193: BK9002S00377 | D193: Primary cycle route | E193: NOBLE ST | G193: CONCRETE | H193: 368.718245 | J193: 148.52 | K193: 54762.03375 | P193: 0 | Q193: 0 | R193: 0 | S193: 2016 | T193: 1 | U193: 54762.03375
B194: BK9002S00439 | D194: Primary cycle route | E194: NORMAN AVE | G194: CONCRETE | H194: 443.714982 | J194: 148.52 | K194: 65900.54913 | P194: 0 | Q194: 0 | R194: 0 | S194: 2016 | T194: 1 | U194: 65900.54913
B195: BK9002S00438 | D195: Primary cycle route | E195: NORMAN AVE | G195: CONCRETE | H195: 1045.972734 | J195: 148.52 | K195: 155347.8705 | P195: 0 | Q195: 0 | R195: 0 | S195: 2016 | T195: 1 | U195: 155347.8705
B196: BK9002S00100 | D196: Secondary cycle route | E196: NORMAN AVE | G196: CONCRETE | H196: 72.517719 | J196: 148.52 | K196: 10770.33163 | P196: 0 | Q196: 0 | R196: 0 | S196: 2016 | T196: 1 | U196: 10770.33163
B197: BK9002S00002 | D197: Primary cycle route | E197: SHAND ST | G197: CONCRETE | H197: 94.635077 | J197: 148.52 | K197: 14055.20164 | P197: 0 | Q197: 0 | R197: 0 | S197: 2016 | T197: 1 | U197: 14055.20164
B198: BK9002S00131 | D198: Primary cycle route | E198: SHAND ST | G198: CONCRETE | H198: 129.739579 | J198: 148.52 | K198: 19268.92227 | P198: 0 | Q198: 0 | R198: 0 | S198: 2016 | T198: 1 | U198: 19268.92227
B199: BK9002S00058 | D199: Secondary cycle route | E199: SHAND ST | G199: CONCRETE | H199: 101.555519 | J199: 148.52 | K199: 15083.02568 | P199: 0 | Q199: 0 | R199: 0 | S199: 2016 | T199: 1 | U199: 15083.02568
B200: BK9002S00282 | D200: Secondary cycle route | E200: SHAND STREET | G200: CONCRETE | H200: 91.525923 | J200: 148.52 | K200: 13593.43008 | P200: 0 | Q200: 0 | R200: 0 | S200: 2016 | T200: 1 | U200: 13593.43008
B201: BK9002S00283 | D201: Secondary cycle route | E201: SHAND STREET | G201: CONCRETE | H201: 38.993899 | J201: 148.52 | K201: 5791.373879 | P201: 0 | Q201: 0 | R201: 0 | S201: 2016 | T201: 1 | U201: 5791.373879
B202: BK9002S00284 | D202: Secondary cycle route | E202: SHAND STREET | G202: CONCRETE | H202: 171.903986 | J202: 148.52 | K202: 25531.18 | P202: 0 | Q202: 0 | R202: 0 | S202: 2016 | T202: 1 | U202: 25531.18
B203: BK9002S00285 | D203: Secondary cycle route | E203: SHAND STREET | G203: CONCRETE | H203: 87.63112 | J203: 148.52 | K203: 13014.97394 | P203: 0 | Q203: 0 | R203: 0 | S203: 2016 | T203: 1 | U203: 13014.97394
B204: BK9002S00286 | D204: Secondary cycle route | E204: SHAND STREET | G204: CONCRETE | H204: 213.481915 | J204: 148.52 | K204: 31706.33402 | P204: 0 | Q204: 0 | R204: 0 | S204: 2016 | T204: 1 | U204: 31706.33402
... 1334 more rows

Sheet Exist Trunk Assets - Ferry
B2: Brisbane City Council
B3: Ferry
B5: EXISTING TRUNK ASSETS
B8: Land Valuation Type | D8: Location
H10: Asset Data | U10: Catchment Asset Allocation | X10: Asset Usage | Z10: Cost Allocation
B11: Basic Asset Data | G11: Asset Attributes | J11: Basic Asset Valuation | O11: Land Attributes | S11: Refined Asset Value | U11: Catchment | V11: Totals | X11: Catchment | Z11: =V11 -> Totals | AA11: Check
B12: Asset ID | C12: LGIP ID | D12: Asset Class | E12: Asset Name | F12: Description | G12: Unit Rate Type (*) | H12: Length/unit (*) | I12: Hiercahy/name | J12: Unit Rate | K12: Baseline Valuation | L12: Site/Condition | M12: Multiplier | N12: Gross Value | O12: Land Location/Type | P12: Size of land (ha) (*) | Q12: Unit Cost | R12: Land Value | S12: Valuation Year | T12: Escalation | U12: Current Replacement Cost
B13: Councils ID (from GIS, FAR, AMA etc.) | C13: ID from the LGIP drawings | D13: Arterial, Subarterial, Collector | K13: May be calculated from unit rates OR unique values can be direct entered | U13: CRC | V13: =IFERROR(VLOOKUP(V11,Roadcatch,6,FALSE),"") ->  | X13: =V13 ->  | Z13: =SUM(Z14:Z39) -> 136452500
B14: Apollo Road | F14: Apollo Rd, Bulimba (CityCat) | K14: 1750000 | M14: =IF(L14="",1,VLOOKUP(L14,Roadsitecond,2,FALSE)) -> 1 | N14: =IF(K14="","",K14*M14) -> 1750000 | S14: 2016 | T14: 1 | U14: =IFERROR((N14+R14)*T14,0) -> 1750000 | V14: y | X14: 1 | Z14: =IF(X14="","",(X14/$X14)*$U14) -> 1750000
B15: Bretts Wharf | F15: Kingsford Smith Drive, Hamilton (CityCat) | K15: 6435000 | M15: 1 | N15: =IF(K15="","",K15*M15) -> 6435000 | S15: 2016 | T15: 1 | U15: =IFERROR((N15+R15)*T15,0) -> 6435000 | V15: y | X15: 1 | Z15: 6435000 | AA15: =IF(SUM(Z15:Z15)=U15,"","ERROR") -> 
B16: Bulimba | F16: Oxford St, Bulimba (CityCat & Ferry) | K16: 7800000 | M16: 1 | N16: 7800000 | S16: 2016 | T16: 1 | U16: 7800000 | V16: y | X16: 1 | Z16: 7800000
B17: Teneriffe (new) | F17: Commercial Rd, Teneriffe (City Cat & Ferry) | K17: 1111000 | M17: 1 | N17: 1111000 | S17: 2016 | T17: 1 | U17: 1111000 | V17: y | X17: 1 | Z17: 1111000
B18: Gardens Point (QUT) | F18: Alice Street, Brisbane City (CityCat & Ferry) | K18: 11407500 | M18: 1 | N18: 11407500 | S18: 2016 | T18: 1 | U18: 11407500 | V18: y | X18: 1 | Z18: 11407500
B19: Guyatt Park | F19: Macquarie St, St Lucia (CityCat) | K19: 2455000 | M19: 1 | N19: 2455000 | S19: 2016 | T19: 1 | U19: 2455000 | V19: y | X19: 1 | Z19: 2455000
B20: Hawthorne | F20: Gordon St, Hawthorne (CityCat) | K20: 7800000 | M20: 1 | N20: 7800000 | S20: 2016 | T20: 1 | U20: 7800000 | V20: y | X20: 1 | Z20: 7800000
B21: Holman Street | F21: Holman St, Kangaroo Point (Ferry) | K21: 9360000 | M21: 1 | N21: 9360000 | S21: 2016 | T21: 1 | U21: 9360000 | V21: y | X21: 1 | Z21: 9360000
B22: Mowbray Park | F22: Park Avenue, East Brisbane (CityCat & Ferry) | K22: 3006000 | M22: 1 | N22: 3006000 | S22: 2016 | T22: 1 | U22: 3006000 | V22: y | X22: 1 | Z22: 3006000
B23: New Farm Park | F23: Brunswick Street, New Farm (CityCat) | K23: 2767000 | M23: 1 | N23: 2767000 | S23: 2016 | T23: 1 | U23: 2767000 | V23: y | X23: 1 | Z23: 2767000
B24: Norman Park | F24: Wynnum Rd, Norman Park (Ferry only) | K24: 769000 | M24: 1 | N24: 769000 | S24: 2016 | T24: 1 | U24: 769000 | V24: y | X24: 1 | Z24: 769000
B25: North Quay 1 & 2 | F25: Queens Wharf Rd, North Quay (CityCat & Ferry) | K25: 11017500 | M25: 1 | N25: 11017500 | S25: 2016 | T25: 1 | U25: 11017500 | V25: y | X25: 1 | Z25: 11017500
B26: Regatta | F26: Coronation Drive, Toowong (CityCat) | K26: 9067500 | M26: 1 | N26: 9067500 | S26: 2016 | T26: 1 | U26: 9067500 | V26: y | X26: 1 | Z26: 9067500
B27: River Plaza (Maritime Museum) | F27: Dock Street, South Brisbane (Ferry) | K27: 6142500 | M27: 1 | N27: 6142500 | S27: 2016 | T27: 1 | U27: 6142500 | V27: y | X27: 1 | Z27: 6142500
B28: Riverside 1 & 2 | F28: Eagle Street, Brisbane (CityCat) | K28: 9330000 | M28: 1 | N28: 9330000 | S28: 2016 | T28: 1 | U28: 9330000 | V28: y | X28: 1 | Z28: 9330000
B29: South Bank 1 & 2 | F29: Southbank Parklands (City Cat) | K29: 2598000 | M29: 1 | N29: 2598000 | S29: 2016 | T29: 1 | U29: 2598000 | V29: y | X29: 1 | Z29: 2598000
B30: Sydney Street | F30: Sydney Street, New Farm (CityCat & Ferry) | K30: 9262500 | M30: 1 | N30: 9262500 | S30: 2016 | T30: 1 | U30: 9262500 | V30: y | X30: 1 | Z30: 9262500
B31: Thornton Street | F31: Thornton Street, Kangaroo Point (Ferry) | K31: 1010000 | M31: 1 | N31: 1010000 | S31: 2016 | T31: 1 | U31: 1010000 | V31: y | X31: 1 | Z31: 1010000
B32: The University of Queensland | F32: Sir William Macgregor Drive, St Lucia (CityCat) | K32: 12090000 | M32: 1 | N32: 12090000 | S32: 2016 | T32: 1 | U32: 12090000 | V32: y | X32: 1 | Z32: 12090000
B33: West End | F33: Hoogley Street, West End (CityCat) | K33: 4777000 | M33: 1 | N33: 4777000 | S33: 2016 | T33: 1 | U33: 4777000 | V33: y | X33: 1 | Z33: 4777000
B34: Dockside* | F34: Ferry Street, Kangaroo Point (Ferry) | K34: 691000 | M34: 1 | N34: 691000 | S34: 2016 | T34: 1 | U34: 691000 | V34: y | X34: 1 | Z34: 691000
B35: Eagle Street | F35: Eagle Street, Brisbane City (Ferry) | K35: 696000 | M35: 1 | N35: 696000 | S35: 2016 | T35: 1 | U35: 696000 | V35: y | X35: 1 | Z35: 696000
B36: South Bank 3 | F36: Southbank Parklands (Ferry) | K36: 1156000 | M36: 1 | N36: 1156000 | S36: 2016 | T36: 1 | U36: 1156000 | V36: y | X36: 1 | Z36: 1156000
B37: Northshore Hamilton | F37: Macarthur Ave, Hamilton (CityCat) | K37: 4712000 | M37: 1 | N37: 4712000 | S37: 2016 | T37: 1 | U37: 4712000 | V37: y | X37: 1 | Z37: 4712000
B38: Marine Straddle Carrier | F38: Rivergate Marina, Rivergate Pl, Murrarie | K38: 367000 | M38: 1 | N38: 367000 | S38: 2016 | T38: 1 | U38: 367000 | V38: y | X38: 1 | Z38: 367000
B39: Milton Ferry Terminal (18/1/15) | F39: Coronation Drive, Milton | K39: 8875000 | M39: 1 | N39: 8875000 | S39: 2016 | T39: 1 | U39: 8875000 | V39: y | X39: 1 | Z39: 8875000
K40: =SUM(K14:K39) -> 136452500 | N40: =SUM(N14:N39) -> 136452500

Sheet Future Trunk Assets - Pathway
B2: ='Navigation Pane'!B2 -> Brisbane City Council
B4: Pathway
A5: Return to "Future Trunk Assets"
B6: Future Trunk Assets - Pathway
B8: Data Refernces | E8: Insert references to relevant data sources which support the scope, values and timing entered in the Spreadsheet below
B11: Land Valuation Type | D11: Location
H13: Asset Data | AJ13: Catchment Asset Allocation
B14: Basic Asset Data | G14: Asset Attributes | J14: Land Attributes | N14: Basic Asset Valuation | Y14: Refined Asset Value | AJ14: Citywide
B15: Asset ID | C15: LGIP ID | D15: Project Type | E15: Service Catchment | F15: Description | G15: Unit Rate Type (*) | H15: Length/unit (*) | I15: Hiercahy/name | J15: Land Location/Type | K15: Size of land (m2) (*) | L15: Unit Cost | M15: Land Value | N15: Unit Rate | O15: Baseline Valuation | P15: Valuation Year | Q15: Base Est Escalation | R15: Site/Condition | S15: Indirect costs - indirect and overhead costs to deliver the project (17%of construction cost) ($) | T15: Project owners costs – master planning, survey, geotechnical, design, project management, environments (13% of indirect and construction costs) ($) | U15: Construction Contingency Rate | V15: Construction Contingency Cost ($) | W15: Grants and Subsidies ($) | X15: Gross Value | Y15: Year provided (*) | Z15: Escalation | AA15: Total construction cost | AB15: Spare Capacity % | AC15: Share of the total Cost with the same year of provision % | AD15: Terminal Value Analysis | AE15: Final Terminal value adjustment % | AF15: Gross Cost of the trunk infrastructure | AG15: Gross Cost (escalated) | AH15: Present Day Value | AI15: NPV Total Asset Cost after Terminal Value Adjustment | AJ15: Cost Allocation | AK15: Cost Allocation for Service Cost Schedule
B16: Councils ID (from GIS, FAR, AMA etc.) | C16: ID from the LGIP drawings | O16: May be calculated from unit rates OR unique values can be direct entered | AB16: Applicable to project year of provision at 2024 | AC16: =_xlfn.IFS(Table3[[#This Row],[Year provided (*)]]=2019,0,Table3[[#This Row],[Year provided (*)]]=2024,Table3[[#This Row],[Gross Cost of the trunk infrastructure]]/SUMIFS($AH$17:$AH$107,$Y$17:$Y$107,"2024",$E$17:$E$107,Table3[[#This Row],[Service Catchment]])) ->  | AE16: % of cost which is relevant for Summary Cost Calculation | AG16: Gross cost (used for CF forecasts) | AH16: Adjusted Current Day Value | AI16: For Summary Cost Calculation
B17: APT153 | C17: ALB-SP-002 | D17: Cycle Route (Secondary) | E17: Citywide | F17: Albion Bikeway (Bogan Street to Yulestar Street) | H17: 548 | M17: 1342380 | O17: 372231 | P17: 2016 | Q17: 0.01 | S17: =ROUND(O17*17%,0) -> 63279 | T17: =ROUND((O17+S17)*13%,0) -> 56616 | U17: =IF(Y17="","",IF(Y17<=YEAR+5,0.075,IF(AND(Y17>YEAR+5,Y17<=YEAR+10),0.15,IF(AND(Y17>YEAR+10,Y17<=YEAR+20),0.2,IF(Y17>YEAR+20,0.25,""))))) -> 0.15 | V17: =ROUND((O17+S17+T17)*U17,0) -> 73819 | Y17: 2024 | Z17: =(1+PPI)^(Y17-YEAR) -> 1.159916788 | AA17: =ROUND(V17+T17+S17+O17,0) -> 565945 | AB17: =IFERROR(IF(Table3[[#This Row],[Year provided (*)]]>2019,VLOOKUP(Table3[[#This Row],[Service Catchment]],'Catchment Demand - Pathway'!$C$8:$M$8,11,FALSE),""),"") -> 0.4045644831 | AC17: =_xlfn.IFS(Table3[[#This Row],[Year provided (*)]]=2019,0,Table3[[#This Row],[Year provided (*)]]=2024,Table3[[#This Row],[Gross Cost of the trunk infrastructure]]/SUMIFS($AH$17:$AH$107,$Y$17:$Y$107,"2024",$E$17:$E$107,Table3[[#This Row],[Service Catchment]])) -> 0.009703543124 | AD17: =IF(AND(Table3[[#This Row],[Spare Capacity %]]>30%,Table3[[#This Row],[Share of the total Cost with the same year of provision %]]>20%),(1-Table3[[#This Row],[Spare Capacity %]]),1) -> 1 | AE17: =IF(Table3[[#This Row],[ Terminal Value Analysis]]<0,0,Table3[[#This Row],[ Terminal Value Analysis]]) -> 1 | AF17: =ROUND(AA17+M17,0) -> 1908325 | AG17: =IFERROR(ROUND((AA17*Z17+(M17*((1+Landind)^(Y17-YEAR)))),0),0) -> 2292009 | AH17: =ROUND((AG17*(1/(1+WACC))^(Y17-YEAR)),0) -> 1447840 | AI17: =Table3[[#This Row],[Present Day Value]]*Table3[[#This Row],[Final Terminal value adjustment %]] -> 1447840 | AJ17: =AH17 -> 1447840 | AK17: =Table3[[#This Row],[Present Day Value]]*Table3[[#This Row],[Final Terminal value adjustment %]] -> 1447840
B18: APT153 | C18: ALB-SP-004 | D18: Cycle Route (Secondary) | E18: Citywide | F18: Albion Bikeway (Cooksley Street to Crosby Park) | H18: 171 | M18: 704857 | O18: 128709 | P18: 2016 | Q18: 0.01 | S18: =ROUND(O18*17%,0) -> 21881 | T18: =ROUND((O18+S18)*13%,0) -> 19577 | U18: 0.15 | V18: =ROUND((O18+S18+T18)*U18,0) -> 25525 | Y18: 2024 | Z18: 1.159916788 | AA18: =ROUND(V18+T18+S18+O18,0) -> 195692 | AB18: =IFERROR(IF(Table3[[#This Row],[Year provided (*)]]>2019,VLOOKUP(Table3[[#This Row],[Service Catchment]],'Catchment Demand - Pathway'!$C$8:$M$8,11,FALSE),""),"") -> 0.4045644831 | AC18: =_xlfn.IFS(Table3[[#This Row],[Year provided (*)]]=2019,0,Table3[[#This Row],[Year provided (*)]]=2024,Table3[[#This Row],[Gross Cost of the trunk infrastructure]]/SUMIFS($AH$17:$AH$107,$Y$17:$Y$107,"2024",$E$17:$E$107,Table3[[#This Row],[Service Catchment]])) -> 0.004579155048 | AD18: =IF(AND(Table3[[#This Row],[Spare Capacity %]]>30%,Table3[[#This Row],[Share of the total Cost with the same year of provision %]]>20%),(1-Table3[[#This Row],[Spare Capacity %]]),1) -> 1 | AE18: =IF(Table3[[#This Row],[ Terminal Value Analysis]]<0,0,Table3[[#This Row],[ Terminal Value Analysis]]) -> 1 | AF18: 900549 | AG18: 1085786 | AH18: 685881 | AI18: =Table3[[#This Row],[Present Day Value]]*Table3[[#This Row],[Final Terminal value adjustment %]] -> 685881 | AJ18: =AH18 -> 685881 | AK18: =Table3[[#This Row],[Present Day Value]]*Table3[[#This Row],[Final Terminal value adjustment %]] -> 685881
B19: APT32 | C19: BHI-SP-002 | D19: Cycle Route (Secondary) | E19: Citywide | F19: South Pine River Bikeway (Wyampa Road to Kluver Street) | H19: 399 | M19: 36775 | O19: 271218 | P19: 2016 | Q19: 0.01 | S19: 46107 | T19: 41252 | U19: 0.15 | V19: 53787 | Y19: 2024 | Z19: 1.159916788 | AA19: 412364 | AB19: =IFERROR(IF(Table3[[#This Row],[Year provided (*)]]>2019,VLOOKUP(Table3[[#This Row],[Service Catchment]],'Catchment Demand - Pathway'!$C$8:$M$8,11,FALSE),""),"") -> 0.4045644831 | AC19: =_xlfn.IFS(Table3[[#This Row],[Year provided (*)]]=2019,0,Table3[[#This Row],[Year provided (*)]]=2024,Table3[[#This Row],[Gross Cost of the trunk infrastructure]]/SUMIFS($AH$17:$AH$107,$Y$17:$Y$107,"2024",$E$17:$E$107,Table3[[#This Row],[Service Catchment]])) -> 0.002283803679 | AD19: =IF(AND(Table3[[#This Row],[Spare Capacity %]]>30%,Table3[[#This Row],[Share of the total Cost with the same year of provision %]]>20%),(1-Table3[[#This Row],[Spare Capacity %]]),1) -> 1 | AE19: =IF(Table3[[#This Row],[ Terminal Value Analysis]]<0,0,Table3[[#This Row],[ Terminal Value Analysis]]) -> 1 | AF19: 449139 | AG19: 523115 | AH19: 330447 | AI19: =Table3[[#This Row],[Present Day Value]]*Table3[[#This Row],[Final Terminal value adjustment %]] -> 330447 | AJ19: 330447 | AK19: =Table3[[#This Row],[Present Day Value]]*Table3[[#This Row],[Final Terminal value adjustment %]] -> 330447
B20: APT92, APT91 | C20: BRD-SP-001 | D20: Cycle Route (Secondary) | E20: Citywide | F20: Cabbage Tree Creek Bikeway (Kensington Place Park to Albany Creek Road) | H20: 307 | M20: 18721 | O20: 208531 | P20: 2016 | Q20: 0.01 | S20: 35450 | T20: 31718 | U20: 0.075 | V20: 20677 | Y20: 2019 | Z20: 1.05720708 | AA20: 296376 | AB20: =IFERROR(IF(Table3[[#This Row],[Year provided (*)]]>2019,VLOOKUP(Table3[[#This Row],[Service Catchment]],'Catchment Demand - Pathway'!$C$8:$M$8,11,FALSE),""),"") ->  | AC20: =_xlfn.IFS(Table3[[#This Row],[Year provided (*)]]=2019,0,Table3[[#This Row],[Year provided (*)]]=2024,Table3[[#This Row],[Gross Cost of the trunk infrastructure]]/SUMIFS($AH$17:$AH$107,$Y$17:$Y$107,"2024",$E$17:$E$107,Table3[[#This Row],[Service Catchment]])) -> 0 | AD20: =IF(AND(Table3[[#This Row],[Spare Capacity %]]>30%,Table3[[#This Row],[Share of the total Cost with the same year of provision %]]>20%),(1-Table3[[#This Row],[Spare Capacity %]]),1) -> 1 | AE20: =IF(Table3[[#This Row],[ Terminal Value Analysis]]<0,0,Table3[[#This Row],[ Terminal Value Analysis]]) -> 1 | AF20: 315097 | AG20: 333491 | AH20: 280720 | AI20: =Table3[[#This Row],[Present Day Value]]*Table3[[#This Row],[Final Terminal value adjustment %]] -> 280720 | AJ20: 280720 | AK20: =Table3[[#This Row],[Present Day Value]]*Table3[[#This Row],[Final Terminal value adjustment %]] -> 280720
B21: APT91, APT92 | C21: BRD-SP-002 | D21: Cycle Route (Primary) | E21: Citywide | F21: Cabbage Tree Creek Bikeway (Albany Creek Road to Coolabah Crescent Park) | H21: 278 | M21: 19786 | O21: 188832 | P21: 2016 | Q21: 0.01 | S21: 32101 | T21: 28721 | U21: 0.15 | V21: 37448 | Y21: 2024 | Z21: 1.159916788 | AA21: 287102 | AB21: =IFERROR(IF(Table3[[#This Row],[Year provided (*)]]>2019,VLOOKUP(Table3[[#This Row],[Service Catchment]],'Catchment Demand - Pathway'!$C$8:$M$8,11,FALSE),""),"") -> 0.4045644831 | AC21: =_xlfn.IFS(Table3[[#This Row],[Year provided (*)]]=2019,0,Table3[[#This Row],[Year provided (*)]]=2024,Table3[[#This Row],[Gross Cost of the trunk infrastructure]]/SUMIFS($AH$17:$AH$107,$Y$17:$Y$107,"2024",$E$17:$E$107,Table3[[#This Row],[Service Catchment]])) -> 0.001560478924 | AD21: =IF(AND(Table3[[#This Row],[Spare Capacity %]]>30%,Table3[[#This Row],[Share of the total Cost with the same year of provision %]]>20%),(1-Table3[[#This Row],[Spare Capacity %]]),1) -> 1 | AE21: =IF(Table3[[#This Row],[ Terminal Value Analysis]]<0,0,Table3[[#This Row],[ Terminal Value Analysis]]) -> 1 | AF21: 306888 | AG21: 357122 | AH21: 225591 | AI21: =Table3[[#This Row],[Present Day Value]]*Table3[[#This Row],[Final Terminal value adjustment %]] -> 225591 | AJ21: 225591 | AK21: =Table3[[#This Row],[Present Day Value]]*Table3[[#This Row],[Final Terminal value adjustment %]] -> 225591
B22: APT174, APT154, APT153 | C22: BUL-RW-001 | D22: RiverWalk | E22: Citywide | F22: Bulimba (Riverside of 1-7 McConnell Street, and 3-69 Byron Street, Bulimba) | H22: 396 | M22: 0 | O22: 1113750 | P22: 2016 | Q22: 0.01 | S22: 189338 | T22: 169401 | U22: 0.15 | V22: 220873 | Y22: 2024 | Z22: 1.159916788 | AA22: 1693362 | AB22: =IFERROR(IF(Table3[[#This Row],[Year provided (*)]]>2019,VLOOKUP(Table3[[#This Row],[Service Catchment]],'Catchment Demand - Pathway'!$C$8:$M$8,11,FALSE),""),"") -> 0.4045644831 | AC22: =_xlfn.IFS(Table3[[#This Row],[Year provided (*)]]=2019,0,Table3[[#This Row],[Year provided (*)]]=2024,Table3[[#This Row],[Gross Cost of the trunk infrastructure]]/SUMIFS($AH$17:$AH$107,$Y$17:$Y$107,"2024",$E$17:$E$107,Table3[[#This Row],[Service Catchment]])) -> 0.00861048888 | AD22: =IF(AND(Table3[[#This Row],[Spare Capacity %]]>30%,Table3[[#This Row],[Share of the total Cost with the same year of provision %]]>20%),(1-Table3[[#This Row],[Spare Capacity %]]),1) -> 1 | AE22: =IF(Table3[[#This Row],[ Terminal Value Analysis]]<0,0,Table3[[#This Row],[ Terminal Value Analysis]]) -> 1 | AF22: 1693362 | AG22: 1964159 | AH22: 1240740 | AI22: =Table3[[#This Row],[Present Day Value]]*Table3[[#This Row],[Final Terminal value adjustment %]] -> 1240740 | AJ22: 1240740 | AK22: =Table3[[#This Row],[Present Day Value]]*Table3[[#This Row],[Final Terminal value adjustment %]] -> 1240740
B23: APT173 | C23: BUL-RW-003 | D23: RiverWalk | E23: Citywide | F23: Bulimba (Bulimba Riverside Park) | H23: 137 | M23: 0 | O23: 415356 | P23: 2016 | Q23: 0.01 | S23: 70611 | T23: 63176 | U23: 0.15 | V23: 82371 | Y23: 2024 | Z23: 1.159916788 | AA23: 631514 | AB23: =IFERROR(IF(Table3[[#This Row],[Year provided (*)]]>2019,VLOOKUP(Table3[[#This Row],[Service Catchment]],'Catchment Demand - Pathway'!$C$8:$M$8,11,FALSE),""),"") -> 0.4045644831 | AC23: =_xlfn.IFS(Table3[[#This Row],[Year provided (*)]]=2019,0,Table3[[#This Row],[Year provided (*)]]=2024,Table3[[#This Row],[Gross Cost of the trunk infrastructure]]/SUMIFS($AH$17:$AH$107,$Y$17:$Y$107,"2024",$E$17:$E$107,Table3[[#This Row],[Service Catchment]])) -> 0.003211152887 | AD23: =IF(AND(Table3[[#This Row],[Spare Capacity %]]>30%,Table3[[#This Row],[Share of the total Cost with the same year of provision %]]>20%),(1-Table3[[#This Row],[Spare Capacity %]]),1) -> 1 | AE23: =IF(Table3[[#This Row],[ Terminal Value Analysis]]<0,0,Table3[[#This Row],[ Terminal Value Analysis]]) -> 1 | AF23: 631514 | AG23: 732504 | AH23: 462716 | AI23: =Table3[[#This Row],[Present Day Value]]*Table3[[#This Row],[Final Terminal value adjustment %]] -> 462716 | AJ23: 462716 | AK23: =Table3[[#This Row],[Present Day Value]]*Table3[[#This Row],[Final Terminal value adjustment %]] -> 462716
B24: APT215, APT195 | C24: CAR-SP-002 | D24: Cycle Route (Secondary) | E24: Citywide | F24: Carina Bikeway (Fursden Road to Meadowlands Road) | H24: 836 | M24: 506214 | O24: 567856 | P24: 2016 | Q24: 0.01 | S24: 96536 | T24: 86371 | U24: 0.15 | V24: 112614 | Y24: 2024 | Z24: 1.159916788 | AA24: 863377 | AB24: =IFERROR(IF(Table3[[#This Row],[Year provided (*)]]>2019,VLOOKUP(Table3[[#This Row],[Service Catchment]],'Catchment Demand - Pathway'!$C$8:$M$8,11,FALSE),""),"") -> 0.4045644831 | AC24: =_xlfn.IFS(Table3[[#This Row],[Year provided (*)]]=2019,0,Table3[[#This Row],[Year provided (*)]]=2024,Table3[[#This Row],[Gross Cost of the trunk infrastructure]]/SUMIFS($AH$17:$AH$107,$Y$17:$Y$107,"2024",$E$17:$E$107,Table3[[#This Row],[Service Catchment]])) -> 0.006964162462 | AD24: =IF(AND(Table3[[#This Row],[Spare Capacity %]]>30%,Table3[[#This Row],[Share of the total Cost with the same year of provision %]]>20%),(1-Table3[[#This Row],[Spare Capacity %]]),1) -> 1 | AE24: =IF(Table3[[#This Row],[ Terminal Value Analysis]]<0,0,Table3[[#This Row],[ Terminal Value Analysis]]) -> 1 | AF24: 1369591 | AG24: 1618218 | AH24: 1022213 | AI24: =Table3[[#This Row],[Present Day Value]]*Table3[[#This Row],[Final Terminal value adjustment %]] -> 1022213 | AJ24: 1022213 | AK24: =Table3[[#This Row],[Present Day Value]]*Table3[[#This Row],[Final Terminal value adjustment %]] -> 1022213
B25: APT92 | C25: CDE-SP-001 | D25: Cycle Route (Secondary) | E25: Citywide | F25: Cabbage Tree Creek Bikeway (Coonawarra Drive to Kentia Street Park) | H25: 66 | M25: 4853 | O25: 60558 | P25: 2016 | Q25: 0.01 | S25: 10295 | T25: 9211 | U25: 0.075 | V25: 6005 | Y25: 2019 | Z25: 1.05720708 | AA25: 86069 | AB25: =IFERROR(IF(Table3[[#This Row],[Year provided (*)]]>2019,VLOOKUP(Table3[[#This Row],[Service Catchment]],'Catchment Demand - Pathway'!$C$8:$M$8,11,FALSE),""),"") ->  | AC25: =_xlfn.IFS(Table3[[#This Row],[Year provided (*)]]=2019,0,Table3[[#This Row],[Year provided (*)]]=2024,Table3[[#This Row],[Gross Cost of the trunk infrastructure]]/SUMIFS($AH$17:$AH$107,$Y$17:$Y$107,"2024",$E$17:$E$107,Table3[[#This Row],[Service Catchment]])) -> 0 | AD25: =IF(AND(Table3[[#This Row],[Spare Capacity %]]>30%,Table3[[#This Row],[Share of the total Cost with the same year of provision %]]>20%),(1-Table3[[#This Row],[Spare Capacity %]]),1) -> 1 | AE25: =IF(Table3[[#This Row],[ Terminal Value Analysis]]<0,0,Table3[[#This Row],[ Terminal Value Analysis]]) -> 1 | AF25: 90922 | AG25: 96219 | AH25: 80993 | AI25: =Table3[[#This Row],[Present Day Value]]*Table3[[#This Row],[Final Terminal value adjustment %]] -> 80993 | AJ25: 80993 | AK25: =Table3[[#This Row],[Present Day Value]]*Table3[[#This Row],[Final Terminal value adjustment %]] -> 80993
B26: APT92 | C26: CDE-SP-002 | D26: Cycle Route (Secondary) | E26: Citywide | F26: Cabbage Tree Creek Bikeway (Kentia Street Park to Kensington Place Park) | H26: 190 | M26: 6177 | O26: 143010 | P26: 2016 | Q26: 0.01 | S26: 24312 | T26: 21752 | U26: 0.075 | V26: 14181 | Y26: 2019 | Z26: 1.05720708 | AA26: 203255 | AB26: =IFERROR(IF(Table3[[#This Row],[Year provided (*)]]>2019,VLOOKUP(Table3[[#This Row],[Service Catchment]],'Catchment Demand - Pathway'!$C$8:$M$8,11,FALSE),""),"") ->  | AC26: =_xlfn.IFS(Table3[[#This Row],[Year provided (*)]]=2019,0,Table3[[#This Row],[Year provided (*)]]=2024,Table3[[#This Row],[Gross Cost of the trunk infrastructure]]/SUMIFS($AH$17:$AH$107,$Y$17:$Y$107,"2024",$E$17:$E$107,Table3[[#This Row],[Service Catchment]])) -> 0 | AD26: =IF(AND(Table3[[#This Row],[Spare Capacity %]]>30%,Table3[[#This Row],[Share of the total Cost with the same year of provision %]]>20%),(1-Table3[[#This Row],[Spare Capacity %]]),1) -> 1 | AE26: =IF(Table3[[#This Row],[ Terminal Value Analysis]]<0,0,Table3[[#This Row],[ Terminal Value Analysis]]) -> 1 | AF26: 209432 | AG26: 221535 | AH26: 186480 | AI26: =Table3[[#This Row],[Present Day Value]]*Table3[[#This Row],[Final Terminal value adjustment %]] -> 186480 | AJ26: 186480 | AK26: =Table3[[#This Row],[Present Day Value]]*Table3[[#This Row],[Final Terminal value adjustment %]] -> 186480
B27: APT235 | C27: CDL-SP-010 | D27: Cycle Route (Secondary) | E27: Citywide | F27: Bulimba Creek Bikeway (Scrub Road to Eromanga Street Park) | H27: 442 | M27: 877398 | O27: 300230 | P27: 2016 | Q27: 0.01 | S27: 51039 | T27: 45665 | U27: 0.15 | V27: 59540 | Y27: 2024 | Z27: 1.159916788 | AA27: 456474 | AB27: =IFERROR(IF(Table3[[#This Row],[Year provided (*)]]>2019,VLOOKUP(Table3[[#This Row],[Service Catchment]],'Catchment Demand - Pathway'!$C$8:$M$8,11,FALSE),""),"") -> 0.4045644831 | AC27: =_xlfn.IFS(Table3[[#This Row],[Year provided (*)]]=2019,0,Table3[[#This Row],[Year provided (*)]]=2024,Table3[[#This Row],[Gross Cost of the trunk infrastructure]]/SUMIFS($AH$17:$AH$107,$Y$17:$Y$107,"2024",$E$17:$E$107,Table3[[#This Row],[Service Catchment]])) -> 0.006782536766 | AD27: =IF(AND(Table3[[#This Row],[Spare Capacity %]]>30%,Table3[[#This Row],[Share of the total Cost with the same year of provision %]]>20%),(1-Table3[[#This Row],[Spare Capacity %]]),1) -> 1 | AE27: =IF(Table3[[#This Row],[ Terminal Value Analysis]]<0,0,Table3[[#This Row],[ Terminal Value Analysis]]) -> 1 | AF27: 1333872 | AG27: 1598496 | AH27: 1009755 | AI27: =Table3[[#This Row],[Present Day Value]]*Table3[[#This Row],[Final Terminal value adjustment %]] -> 1009755 | AJ27: 1009755 | AK27: =Table3[[#This Row],[Present Day Value]]*Table3[[#This Row],[Final Terminal value adjustment %]] -> 1009755
B28: APT112 | C28: CHE-SP-005 | D28: Cycle Route (Secondary) | E28: Citywide | F28: Chermside Bikeway (Yiada Street to Valente Close) | H28: 157 | M28: 575984 | O28: 118172 | P28: 2016 | Q28: 0.01 | S28: 20089 | T28: 17974 | U28: 0.15 | V28: 23435 | Y28: 2024 | Z28: 1.159916788 | AA28: 179670 | AB28: =IFERROR(IF(Table3[[#This Row],[Year provided (*)]]>2019,VLOOKUP(Table3[[#This Row],[Service Catchment]],'Catchment Demand - Pathway'!$C$8:$M$8,11,FALSE),""),"") -> 0.4045644831 | AC28: =_xlfn.IFS(Table3[[#This Row],[Year provided (*)]]=2019,0,Table3[[#This Row],[Year provided (*)]]=2024,Table3[[#This Row],[Gross Cost of the trunk infrastructure]]/SUMIFS($AH$17:$AH$107,$Y$17:$Y$107,"2024",$E$17:$E$107,Table3[[#This Row],[Service Catchment]])) -> 0.003842385954 | AD28: =IF(AND(Table3[[#This Row],[Spare Capacity %]]>30%,Table3[[#This Row],[Share of the total Cost with the same year of provision %]]>20%),(1-Table3[[#This Row],[Spare Capacity %]]),1) -> 1 | AE28: =IF(Table3[[#This Row],[ Terminal Value Analysis]]<0,0,Table3[[#This Row],[ Terminal Value Analysis]]) -> 1 | AF28: 755654 | AG28: 910183 | AH28: 574954 | AI28: =Table3[[#This Row],[Present Day Value]]*Table3[[#This Row],[Final Terminal value adjustment %]] -> 574954 | AJ28: 574954 | AK28: =Table3[[#This Row],[Present Day Value]]*Table3[[#This Row],[Final Terminal value adjustment %]] -> 574954
B29: APT112 | C29: CHE-SP-010 | D29: Cycle Route (Primary) | E29: Citywide | F29: Downfall Creek Bikeway (Gympie Road Underpass) | H29: 145 | M29: 1487 | O29: 108801 | P29: 2016 | Q29: 0.01 | S29: 18496 | T29: 16549 | U29: 0.075 | V29: 10788 | Y29: 2019 | Z29: 1.05720708 | AA29: 154634 | AB29: =IFERROR(IF(Table3[[#This Row],[Year provided (*)]]>2019,VLOOKUP(Table3[[#This Row],[Service Catchment]],'Catchment Demand - Pathway'!$C$8:$M$8,11,FALSE),""),"") ->  | AC29: =_xlfn.IFS(Table3[[#This Row],[Year provided (*)]]=2019,0,Table3[[#This Row],[Year provided (*)]]=2024,Table3[[#This Row],[Gross Cost of the trunk infrastructure]]/SUMIFS($AH$17:$AH$107,$Y$17:$Y$107,"2024",$E$17:$E$107,Table3[[#This Row],[Service Catchment]])) -> 0 | AD29: =IF(AND(Table3[[#This Row],[Spare Capacity %]]>30%,Table3[[#This Row],[Share of the total Cost with the same year of provision %]]>20%),(1-Table3[[#This Row],[Spare Capacity %]]),1) -> 1 | AE29: =IF(Table3[[#This Row],[ Terminal Value Analysis]]<0,0,Table3[[#This Row],[ Terminal Value Analysis]]) -> 1 | AF29: 156121 | AG29: 165081 | AH29: 138959 | AI29: =Table3[[#This Row],[Present Day Value]]*Table3[[#This Row],[Final Terminal value adjustment %]] -> 138959 | AJ29: 138959 | AK29: =Table3[[#This Row],[Present Day Value]]*Table3[[#This Row],[Final Terminal value adjustment %]] -> 138959
B30: APT112 | C30: CHW-SP-002 | D30: Cycle Route (Secondary) | E30: Citywide | F30: Chermside West Bikeway (Maundrell Terrace to Chital Place) | H30: 148 | M30: 195979 | O30: 111398 | P30: 2016 | Q30: 0.01 | S30: 18938 | T30: 16944 | U30: 0.075 | V30: 11046 | Y30: 2019 | Z30: 1.05720708 | AA30: 158326 | AB30: =IFERROR(IF(Table3[[#This Row],[Year provided (*)]]>2019,VLOOKUP(Table3[[#This Row],[Service Catchment]],'Catchment Demand - Pathway'!$C$8:$M$8,11,FALSE),""),"") ->  | AC30: =_xlfn.IFS(Table3[[#This Row],[Year provided (*)]]=2019,0,Table3[[#This Row],[Year provided (*)]]=2024,Table3[[#This Row],[Gross Cost of the trunk infrastructure]]/SUMIFS($AH$17:$AH$107,$Y$17:$Y$107,"2024",$E$17:$E$107,Table3[[#This Row],[Service Catchment]])) -> 0 | AD30: =IF(AND(Table3[[#This Row],[Spare Capacity %]]>30%,Table3[[#This Row],[Share of the total Cost with the same year of provision %]]>20%),(1-Table3[[#This Row],[Spare Capacity %]]),1) -> 1 | AE30: =IF(Table3[[#This Row],[ Terminal Value Analysis]]<0,0,Table3[[#This Row],[ Terminal Value Analysis]]) -> 1 | AF30: 354305 | AG30: 378431 | AH30: 318549 | AI30: =Table3[[#This Row],[Present Day Value]]*Table3[[#This Row],[Final Terminal value adjustment %]] -> 318549 | AJ30: 318549 | AK30: =Table3[[#This Row],[Present Day Value]]*Table3[[#This Row],[Final Terminal value adjustment %]] -> 318549
B31: APT214 | C31: COO-SP-004 | D31: Cycle Route (Secondary) | E31: Citywide | F31: Wembley Park Bikeway (Old Cleveland Road and Wembley Park) | H31: 40 | M31: 605200 | O31: 42224 | P31: 2016 | Q31: 0.01 | S31: 7178 | T31: 6422 | U31: 0.15 | V31: 8374 | Y31: 2024 | Z31: 1.159916788 | AA31: 64198 | AB31: =IFERROR(IF(Table3[[#This Row],[Year provided (*)]]>2019,VLOOKUP(Table3[[#This Row],[Service Catchment]],'Catchment Demand - Pathway'!$C$8:$M$8,11,FALSE),""),"") -> 0.4045644831 | AC31: =_xlfn.IFS(Table3[[#This Row],[Year provided (*)]]=2019,0,Table3[[#This Row],[Year provided (*)]]=2024,Table3[[#This Row],[Gross Cost of the trunk infrastructure]]/SUMIFS($AH$17:$AH$107,$Y$17:$Y$107,"2024",$E$17:$E$107,Table3[[#This Row],[Service Catchment]])) -> 0.003403787279 | AD31: =IF(AND(Table3[[#This Row],[Spare Capacity %]]>30%,Table3[[#This Row],[Share of the total Cost with the same year of provision %]]>20%),(1-Table3[[#This Row],[Spare Capacity %]]),1) -> 1 | AE31: =IF(Table3[[#This Row],[ Terminal Value Analysis]]<0,0,Table3[[#This Row],[ Terminal Value Analysis]]) -> 1 | AF31: 669398 | AG31: 811842 | AH31: 512833 | AI31: =Table3[[#This Row],[Present Day Value]]*Table3[[#This Row],[Final Terminal value adjustment %]] -> 512833 | AJ31: 512833 | AK31: =Table3[[#This Row],[Present Day Value]]*Table3[[#This Row],[Final Terminal value adjustment %]] -> 512833
B32: APT313 | C32: CVE-SB-001 | D32: Cycle Route (Secondary) | E32: Citywide | F32: Calamvale Bikeway (Bundabah Drive to Benhiam Street (bridge over creek)) | H32: 60 | M32: 4417 | O32: 720000 | P32: 2016 | Q32: 0.01 | S32: 122400 | T32: 109512 | U32: 0.15 | V32: 142787 | Y32: 2024 | Z32: 1.159916788 | AA32: 1094699 | AB32: =IFERROR(IF(Table3[[#This Row],[Year provided (*)]]>2019,VLOOKUP(Table3[[#This Row],[Service Catchment]],'Catchment Demand - Pathway'!$C$8:$M$8,11,FALSE),""),"") -> 0.4045644831 | AC32: =_xlfn.IFS(Table3[[#This Row],[Year provided (*)]]=2019,0,Table3[[#This Row],[Year provided (*)]]=2024,Table3[[#This Row],[Gross Cost of the trunk infrastructure]]/SUMIFS($AH$17:$AH$107,$Y$17:$Y$107,"2024",$E$17:$E$107,Table3[[#This Row],[Service Catchment]])) -> 0.005588838119 | AD32: =IF(AND(Table3[[#This Row],[Spare Capacity %]]>30%,Table3[[#This Row],[Share of the total Cost with the same year of provision %]]>20%),(1-Table3[[#This Row],[Spare Capacity %]]),1) -> 1 | AE32: =IF(Table3[[#This Row],[ Terminal Value Analysis]]<0,0,Table3[[#This Row],[ Terminal Value Analysis]]) -> 1 | AF32: 1099116 | AG32: 1275141 | AH32: 805494 | AI32: =Table3[[#This Row],[Present Day Value]]*Table3[[#This Row],[Final Terminal value adjustment %]] -> 805494 | AJ32: 805494 | AK32: =Table3[[#This Row],[Present Day Value]]*Table3[[#This Row],[Final Terminal value adjustment %]] -> 805494
B33: APT313 | C33: CVE-SP-002 | D33: Cycle Route (Secondary) | E33: Citywide | F33: Calamvale Bikeway (Ormskirk Street to Highlands Drive Park) | H33: 1051 | M33: 105907 | O33: 713692 | P33: 2016 | Q33: 0.01 | S33: 121328 | T33: 108553 | U33: 0.15 | V33: 141536 | Y33: 2024 | Z33: 1.159916788 | AA33: 1085109 | AB33: =IFERROR(IF(Table3[[#This Row],[Year provided (*)]]>2019,VLOOKUP(Table3[[#This Row],[Service Catchment]],'Catchment Demand - Pathway'!$C$8:$M$8,11,FALSE),""),"") -> 0.4045644831 | AC33: =_xlfn.IFS(Table3[[#This Row],[Year provided (*)]]=2019,0,Table3[[#This Row],[Year provided (*)]]=2024,Table3[[#This Row],[Gross Cost of the trunk infrastructure]]/SUMIFS($AH$17:$AH$107,$Y$17:$Y$107,"2024",$E$17:$E$107,Table3[[#This Row],[Service Catchment]])) -> 0.006056135678 | AD33: =IF(AND(Table3[[#This Row],[Spare Capacity %]]>30%,Table3[[#This Row],[Share of the total Cost with the same year of provision %]]>20%),(1-Table3[[#This Row],[Spare Capacity %]]),1) -> 1 | AE33: =IF(Table3[[#This Row],[ Terminal Value Analysis]]<0,0,Table3[[#This Row],[ Terminal Value Analysis]]) -> 1 | AF33: 1191016 | AG33: 1387674 | AH33: 876580 | AI33: =Table3[[#This Row],[Present Day Value]]*Table3[[#This Row],[Final Terminal value adjustment %]] -> 876580 | AJ33: 876580 | AK33: =Table3[[#This Row],[Present Day Value]]*Table3[[#This Row],[Final Terminal value adjustment %]] -> 876580
B34: APT313 | C34: CVE-SP-003 | D34: Cycle Route (Secondary) | E34: Citywide | F34: Calamvale Bikeway (Bundabah Drive to Benhiam Street) | H34: 212 | M34: 238292 | O34: 159569 | P34: 2016 | Q34: 0.01 | S34: 27127 | T34: 24270 | U34: 0.15 | V34: 31645 | Y34: 2024 | Z34: 1.159916788 | AA34: 242611 | AB34: =IFERROR(IF(Table3[[#This Row],[Year provided (*)]]>2019,VLOOKUP(Table3[[#This Row],[Service Catchment]],'Catchment Demand - Pathway'!$C$8:$M$8,11,FALSE),""),"") -> 0.4045644831 | AC34: =_xlfn.IFS(Table3[[#This Row],[Year provided (*)]]=2019,0,Table3[[#This Row],[Year provided (*)]]=2024,Table3[[#This Row],[Gross Cost of the trunk infrastructure]]/SUMIFS($AH$17:$AH$107,$Y$17:$Y$107,"2024",$E$17:$E$107,Table3[[#This Row],[Service Catchment]])) -> 0.0024453188 | AD34: =IF(AND(Table3[[#This Row],[Spare Capacity %]]>30%,Table3[[#This Row],[Share of the total Cost with the same year of provision %]]>20%),(1-Table3[[#This Row],[Spare Capacity %]]),1) -> 1 | AE34: =IF(Table3[[#This Row],[ Terminal Value Analysis]]<0,0,Table3[[#This Row],[ Terminal Value Analysis]]) -> 1 | AF34: 480903 | AG34: 571744 | AH34: 361165 | AI34: =Table3[[#This Row],[Present Day Value]]*Table3[[#This Row],[Final Terminal value adjustment %]] -> 361165 | AJ34: 361165 | AK34: =Table3[[#This Row],[Present Day Value]]*Table3[[#This Row],[Final Terminal value adjustment %]] -> 361165
B35: APT270 | C35: DAR-SP-004 | D35: Cycle Route (Secondary) | E35: Citywide | F35: Oxley Bikeway (Harcourt Road to Englefield Road (southern side of railway line)) | H35: 789 | M35: 175488 | O35: 535931 | P35: 2016 | Q35: 0.01 | S35: 91108 | T35: 81515 | U35: 0.075 | V35: 53142 | Y35: 2019 | Z35: 1.05720708 | AA35: 761696 | AB35: =IFERROR(IF(Table3[[#This Row],[Year provided (*)]]>2019,VLOOKUP(Table3[[#This Row],[Service Catchment]],'Catchment Demand - Pathway'!$C$8:$M$8,11,FALSE),""),"") ->  | AC35: =_xlfn.IFS(Table3[[#This Row],[Year provided (*)]]=2019,0,Table3[[#This Row],[Year provided (*)]]=2024,Table3[[#This Row],[Gross Cost of the trunk infrastructure]]/SUMIFS($AH$17:$AH$107,$Y$17:$Y$107,"2024",$E$17:$E$107,Table3[[#This Row],[Service Catchment]])) -> 0 | AD35: =IF(AND(Table3[[#This Row],[Spare Capacity %]]>30%,Table3[[#This Row],[Share of the total Cost with the same year of provision %]]>20%),(1-Table3[[#This Row],[Spare Capacity %]]),1) -> 1 | AE35: =IF(Table3[[#This Row],[ Terminal Value Analysis]]<0,0,Table3[[#This Row],[ Terminal Value Analysis]]) -> 1 | AF35: 937184 | AG35: 994252 | AH35: 836923 | AI35: =Table3[[#This Row],[Present Day Value]]*Table3[[#This Row],[Final Terminal value adjustment %]] -> 836923 | AJ35: 836923 | AK35: =Table3[[#This Row],[Present Day Value]]*Table3[[#This Row],[Final Terminal value adjustment %]] -> 836923
B36: APT311 | C36: DOO-SP-001 | D36: Cycle Route (Secondary) | E36: Citywide | F36: Blunder Creek Bikeway (Armisfield Street to Peacock Street) | H36: 420 | M36: 91651 | O36: 285286 | P36: 2016 | Q36: 0.01 | S36: 48499 | T36: 43392 | U36: 0.15 | V36: 56577 | Y36: 2024 | Z36: 1.159916788 | AA36: 433754 | AB36: =IFERROR(IF(Table3[[#This Row],[Year provided (*)]]>2019,VLOOKUP(Table3[[#This Row],[Service Catchment]],'Catchment Demand - Pathway'!$C$8:$M$8,11,FALSE),""),"") -> 0.4045644831 | AC36: =_xlfn.IFS(Table3[[#This Row],[Year provided (*)]]=2019,0,Table3[[#This Row],[Year provided (*)]]=2024,Table3[[#This Row],[Gross Cost of the trunk infrastructure]]/SUMIFS($AH$17:$AH$107,$Y$17:$Y$107,"2024",$E$17:$E$107,Table3[[#This Row],[Service Catchment]])) -> 0.002671604719 | AD36: =IF(AND(Table3[[#This Row],[Spare Capacity %]]>30%,Table3[[#This Row],[Share of the total Cost with the same year of provision %]]>20%),(1-Table3[[#This Row],[Spare Capacity %]]),1) -> 1 | AE36: =IF(Table3[[#This Row],[ Terminal Value Analysis]]<0,0,Table3[[#This Row],[ Terminal Value Analysis]]) -> 1 | AF36: 525405 | AG36: 614786 | AH36: 388354 | AI36: =Table3[[#This Row],[Present Day Value]]*Table3[[#This Row],[Final Terminal value adjustment %]] -> 388354 | AJ36: 388354 | AK36: =Table3[[#This Row],[Present Day Value]]*Table3[[#This Row],[Final Terminal value adjustment %]] -> 388354
B37: APT291 | C37: DUR-SP-002 | D37: Cycle Route (Secondary) | E37: Citywide | F37: Blunder Creek Bikeway (Adeline Street to Messara Circuit) | H37: 550 | M37: 1456697 | O37: 373589 | P37: 2016 | Q37: 0.01 | S37: 63510 | T37: 56823 | U37: 0.15 | V37: 74088 | Y37: 2024 | Z37: 1.159916788 | AA37: 568010 | AB37: =IFERROR(IF(Table3[[#This Row],[Year provided (*)]]>2019,VLOOKUP(Table3[[#This Row],[Service Catchment]],'Catchment Demand - Pathway'!$C$8:$M$8,11,FALSE),""),"") -> 0.4045644831 | AC37: =_xlfn.IFS(Table3[[#This Row],[Year provided (*)]]=2019,0,Table3[[#This Row],[Year provided (*)]]=2024,Table3[[#This Row],[Gross Cost of the trunk infrastructure]]/SUMIFS($AH$17:$AH$107,$Y$17:$Y$107,"2024",$E$17:$E$107,Table3[[#This Row],[Service Catchment]])) -> 0.01029532794 | AD37: =IF(AND(Table3[[#This Row],[Spare Capacity %]]>30%,Table3[[#This Row],[Share of the total Cost with the same year of provision %]]>20%),(1-Table3[[#This Row],[Spare Capacity %]]),1) -> 1 | AE37: =IF(Table3[[#This Row],[ Terminal Value Analysis]]<0,0,Table3[[#This Row],[ Terminal Value Analysis]]) -> 1 | AF37: 2024707 | AG37: 2433688 | AH37: 1537337 | AI37: =Table3[[#This Row],[Present Day Value]]*Table3[[#This Row],[Final Terminal value adjustment %]] -> 1537337 | AJ37: 1537337 | AK37: =Table3[[#This Row],[Present Day Value]]*Table3[[#This Row],[Final Terminal value adjustment %]] -> 1537337
B38: APT291 | C38: DUR-SP-003 | D38: Cycle Route (Secondary) | E38: Citywide | F38: Blunder Creek Bikeway (Messara Circuit to King Avenue) | H38: 289 | M38: 17939 | O38: 196304 | P38: 2016 | Q38: 0.01 | S38: 33372 | T38: 29858 | U38: 0.15 | V38: 38930 | Y38: 2024 | Z38: 1.159916788 | AA38: 298464 | AB38: =IFERROR(IF(Table3[[#This Row],[Year provided (*)]]>2019,VLOOKUP(Table3[[#This Row],[Service Catchment]],'Catchment Demand - Pathway'!$C$8:$M$8,11,FALSE),""),"") -> 0.4045644831 | AC38: =_xlfn.IFS(Table3[[#This Row],[Year provided (*)]]=2019,0,Table3[[#This Row],[Year provided (*)]]=2024,Table3[[#This Row],[Gross Cost of the trunk infrastructure]]/SUMIFS($AH$17:$AH$107,$Y$17:$Y$107,"2024",$E$17:$E$107,Table3[[#This Row],[Service Catchment]])) -> 0.001608861255 | AD38: =IF(AND(Table3[[#This Row],[Spare Capacity %]]>30%,Table3[[#This Row],[Share of the total Cost with the same year of provision %]]>20%),(1-Table3[[#This Row],[Spare Capacity %]]),1) -> 1 | AE38: =IF(Table3[[#This Row],[ Terminal Value Analysis]]<0,0,Table3[[#This Row],[ Terminal Value Analysis]]) -> 1 | AF38: 316403 | AG38: 368050 | AH38: 232494 | AI38: =Table3[[#This Row],[Present Day Value]]*Table3[[#This Row],[Final Terminal value adjustment %]] -> 232494 | AJ38: 232494 | AK38: =Table3[[#This Row],[Present Day Value]]*Table3[[#This Row],[Final Terminal value adjustment %]] -> 232494
B39: APT213 | C39: EAB-SP-001 | D39: Cycle Route (Secondary) | E39: Citywide | F39: Kingfisher Creek Bikeway (Withington Street to Caswell Street) | H39: 471 | M39: 28281 | O39: 319928 | P39: 2016 | Q39: 0.01 | S39: 54388 | T39: 48661 | U39: 0.15 | V39: 63447 | Y39: 2024 | Z39: 1.159916788 | AA39: 486424 | AB39: =IFERROR(IF(Table3[[#This Row],[Year provided (*)]]>2019,VLOOKUP(Table3[[#This Row],[Service Catchment]],'Catchment Demand - Pathway'!$C$8:$M$8,11,FALSE),""),"") -> 0.4045644831 | AC39: =_xlfn.IFS(Table3[[#This Row],[Year provided (*)]]=2019,0,Table3[[#This Row],[Year provided (*)]]=2024,Table3[[#This Row],[Gross Cost of the trunk infrastructure]]/SUMIFS($AH$17:$AH$107,$Y$17:$Y$107,"2024",$E$17:$E$107,Table3[[#This Row],[Service Catchment]])) -> 0.002617196842 | AD39: =IF(AND(Table3[[#This Row],[Spare Capacity %]]>30%,Table3[[#This Row],[Share of the total Cost with the same year of provision %]]>20%),(1-Table3[[#This Row],[Spare Capacity %]]),1) -> 1 | AE39: =IF(Table3[[#This Row],[ Terminal Value Analysis]]<0,0,Table3[[#This Row],[ Terminal Value Analysis]]) -> 1 | AF39: 514705 | AG39: 598669 | AH39: 378173 | AI39: =Table3[[#This Row],[Present Day Value]]*Table3[[#This Row],[Final Terminal value adjustment %]] -> 378173 | AJ39: 378173 | AK39: =Table3[[#This Row],[Present Day Value]]*Table3[[#This Row],[Final Terminal value adjustment %]] -> 378173
B40: APT134, APT154 | C40: EAF-SP-001 | D40: Cycle Route (Primary) | E40: Citywide | F40: Moreton Bay Cycleway (The Boulevard to Trade Coast Drive) | H40: 758 | M40: 820107 | O40: 514874 | P40: 2016 | Q40: 0.01 | S40: 87529 | T40: 78312 | U40: 0.075 | V40: 51054 | Y40: 2019 | Z40: 1.05720708 | AA40: 731769 | AB40: =IFERROR(IF(Table3[[#This Row],[Year provided (*)]]>2019,VLOOKUP(Table3[[#This Row],[Service Catchment]],'Catchment Demand - Pathway'!$C$8:$M$8,11,FALSE),""),"") ->  | AC40: =_xlfn.IFS(Table3[[#This Row],[Year provided (*)]]=2019,0,Table3[[#This Row],[Year provided (*)]]=2024,Table3[[#This Row],[Gross Cost of the trunk infrastructure]]/SUMIFS($AH$17:$AH$107,$Y$17:$Y$107,"2024",$E$17:$E$107,Table3[[#This Row],[Service Catchment]])) -> 0 | AD40: =IF(AND(Table3[[#This Row],[Spare Capacity %]]>30%,Table3[[#This Row],[Share of the total Cost with the same year of provision %]]>20%),(1-Table3[[#This Row],[Spare Capacity %]]),1) -> 1 | AE40: =IF(Table3[[#This Row],[ Terminal Value Analysis]]<0,0,Table3[[#This Row],[ Terminal Value Analysis]]) -> 1 | AF40: 1551876 | AG40: 1656797 | AH40: 1394628 | AI40: =Table3[[#This Row],[Present Day Value]]*Table3[[#This Row],[Final Terminal value adjustment %]] -> 1394628 | AJ40: 1394628 | AK40: =Table3[[#This Row],[Present Day Value]]*Table3[[#This Row],[Final Terminal value adjustment %]] -> 1394628
B41: APT154, APT155 | C41: EAF-SP-003 | D41: Cycle Route (Secondary) | E41: Citywide | F41: Kingsford Smith Drive Bikeway (Schneider Road to Viola Place) | H41: 466 | M41: 788052 | O41: 316586 | P41: 2016 | Q41: 0.01 | S41: 53820 | T41: 48153 | U41: 0.075 | V41: 31392 | Y41: 2019 | Z41: 1.05720708 | AA41: 449951 | AB41: =IFERROR(IF(Table3[[#This Row],[Year provided (*)]]>2019,VLOOKUP(Table3[[#This Row],[Service Catchment]],'Catchment Demand - Pathway'!$C$8:$M$8,11,FALSE),""),"") ->  | AC41: =_xlfn.IFS(Table3[[#This Row],[Year provided (*)]]=2019,0,Table3[[#This Row],[Year provided (*)]]=2024,Table3[[#This Row],[Gross Cost of the trunk infrastructure]]/SUMIFS($AH$17:$AH$107,$Y$17:$Y$107,"2024",$E$17:$E$107,Table3[[#This Row],[Service Catchment]])) -> 0 | AD41: =IF(AND(Table3[[#This Row],[Spare Capacity %]]>30%,Table3[[#This Row],[Share of the total Cost with the same year of provision %]]>20%),(1-Table3[[#This Row],[Spare Capacity %]]),1) -> 1 | AE41: =IF(Table3[[#This Row],[ Terminal Value Analysis]]<0,0,Table3[[#This Row],[ Terminal Value Analysis]]) -> 1 | AF41: 1238003 | AG41: 1324337 | AH41: 1114776 | AI41: =Table3[[#This Row],[Present Day Value]]*Table3[[#This Row],[Final Terminal value adjustment %]] -> 1114776 | AJ41: 1114776 | AK41: =Table3[[#This Row],[Present Day Value]]*Table3[[#This Row],[Final Terminal value adjustment %]] -> 1114776
B42: APT154, APT174 | C42: EAF-SP-005 | D42: Cycle Route (Secondary) | E42: Citywide | F42: Brisbane River Bikeway (Northshore Riverside Park to Curtin Avenue) | H42: 824 | M42: 1278076 | O42: 559929 | P42: 2016 | Q42: 0.01 | S42: 95188 | T42: 85165 | U42: 0.15 | V42: 111042 | Y42: 2024 | Z42: 1.159916788 | AA42: 851324 | AB42: =IFERROR(IF(Table3[[#This Row],[Year provided (*)]]>2019,VLOOKUP(Table3[[#This Row],[Service Catchment]],'Catchment Demand - Pathway'!$C$8:$M$8,11,FALSE),""),"") -> 0.4045644831 | AC42: =_xlfn.IFS(Table3[[#This Row],[Year provided (*)]]=2019,0,Table3[[#This Row],[Year provided (*)]]=2024,Table3[[#This Row],[Gross Cost of the trunk infrastructure]]/SUMIFS($AH$17:$AH$107,$Y$17:$Y$107,"2024",$E$17:$E$107,Table3[[#This Row],[Service Catchment]])) -> 0.01082767596 | AD42: =IF(AND(Table3[[#This Row],[Spare Capacity %]]>30%,Table3[[#This Row],[Share of the total Cost with the same year of provision %]]>20%),(1-Table3[[#This Row],[Spare Capacity %]]),1) -> 1 | AE42: =IF(Table3[[#This Row],[ Terminal Value Analysis]]<0,0,Table3[[#This Row],[ Terminal Value Analysis]]) -> 1 | AF42: 2129400 | AG42: 2544677 | AH42: 1607448 | AI42: =Table3[[#This Row],[Present Day Value]]*Table3[[#This Row],[Final Terminal value adjustment %]] -> 1607448 | AJ42: 1607448 | AK42: =Table3[[#This Row],[Present Day Value]]*Table3[[#This Row],[Final Terminal value adjustment %]] -> 1607448
B43: APT310 | C43: ELG-SP-002 | D43: Cycle Route (Secondary) | E43: Citywide | F43: Bullockhead Creek Bikeway (Waterford Road to Roxwell Street - along eastern side of creek) | H43: 1383 | M43: 0 | O43: 939407 | P43: 2016 | Q43: 0.01 | S43: 159699 | T43: 142884 | U43: 0.15 | V43: 186299 | Y43: 2024 | Z43: 1.159916788 | AA43: 1428289 | AB43: =IFERROR(IF(Table3[[#This Row],[Year provided (*)]]>2019,VLOOKUP(Table3[[#This Row],[Service Catchment]],'Catchment Demand - Pathway'!$C$8:$M$8,11,FALSE),""),"") -> 0.4045644831 | AC43: =_xlfn.IFS(Table3[[#This Row],[Year provided (*)]]=2019,0,Table3[[#This Row],[Year provided (*)]]=2024,Table3[[#This Row],[Gross Cost of the trunk infrastructure]]/SUMIFS($AH$17:$AH$107,$Y$17:$Y$107,"2024",$E$17:$E$107,Table3[[#This Row],[Service Catchment]])) -> 0.007262632887 | AD43: =IF(AND(Table3[[#This Row],[Spare Capacity %]]>30%,Table3[[#This Row],[Share of the total Cost with the same year of provision %]]>20%),(1-Table3[[#This Row],[Spare Capacity %]]),1) -> 1 | AE43: =IF(Table3[[#This Row],[ Terminal Value Analysis]]<0,0,Table3[[#This Row],[ Terminal Value Analysis]]) -> 1 | AF43: 1428289 | AG43: 1656696 | AH43: 1046519 | AI43: =Table3[[#This Row],[Present Day Value]]*Table3[[#This Row],[Final Terminal value adjustment %]] -> 1046519 | AJ43: 1046519 | AK43: =Table3[[#This Row],[Present Day Value]]*Table3[[#This Row],[Final Terminal value adjustment %]] -> 1046519
B44: APT275, APT274 | C44: EMP-SP-001 | D44: Cycle Route (Secondary) | E44: Citywide | F44: Bulimba Creek Bikeway (Maisie Dixon Park to Holmead Road) | H44: 766 | M44: 1044751 | O44: 520308 | P44: 2016 | Q44: 0.01 | S44: 88452 | T44: 79139 | U44: 0.075 | V44: 51592 | Y44: 2019 | Z44: 1.05720708 | AA44: 739491 | AB44: =IFERROR(IF(Table3[[#This Row],[Year provided (*)]]>2019,VLOOKUP(Table3[[#This Row],[Service Catchment]],'Catchment Demand - Pathway'!$C$8:$M$8,11,FALSE),""),"") ->  | AC44: =_xlfn.IFS(Table3[[#This Row],[Year provided (*)]]=2019,0,Table3[[#This Row],[Year provided (*)]]=2024,Table3[[#This Row],[Gross Cost of the trunk infrastructure]]/SUMIFS($AH$17:$AH$107,$Y$17:$Y$107,"2024",$E$17:$E$107,Table3[[#This Row],[Service Catchment]])) -> 0 | AD44: =IF(AND(Table3[[#This Row],[Spare Capacity %]]>30%,Table3[[#This Row],[Share of the total Cost with the same year of provision %]]>20%),(1-Table3[[#This Row],[Spare Capacity %]]),1) -> 1 | AE44: =IF(Table3[[#This Row],[ Terminal Value Analysis]]<0,0,Table3[[#This Row],[ Terminal Value Analysis]]) -> 1 | AF44: 1784242 | AG44: 1906878 | AH44: 1605137 | AI44: =Table3[[#This Row],[Present Day Value]]*Table3[[#This Row],[Final Terminal value adjustment %]] -> 1605137 | AJ44: 1605137 | AK44: =Table3[[#This Row],[Present Day Value]]*Table3[[#This Row],[Final Terminal value adjustment %]] -> 1605137
B45: APT295 | C45: EMP-SP-004 | D45: Cycle Route (Primary) | E45: Citywide | F45: Bulimba Creek Bikeway (Underwood Road to Logan Road (western side of Gateway Motorway)) | H45: 1047 | M45: 293086 | O45: 711178 | P45: 2016 | Q45: 0.01 | S45: 120900 | T45: 108170 | U45: 0.15 | V45: 141037 | Y45: 2024 | Z45: 1.159916788 | AA45: 1081285 | AB45: =IFERROR(IF(Table3[[#This Row],[Year provided (*)]]>2019,VLOOKUP(Table3[[#This Row],[Service Catchment]],'Catchment Demand - Pathway'!$C$8:$M$8,11,FALSE),""),"") -> 0.4045644831 | AC45: =_xlfn.IFS(Table3[[#This Row],[Year provided (*)]]=2019,0,Table3[[#This Row],[Year provided (*)]]=2024,Table3[[#This Row],[Gross Cost of the trunk infrastructure]]/SUMIFS($AH$17:$AH$107,$Y$17:$Y$107,"2024",$E$17:$E$107,Table3[[#This Row],[Service Catchment]])) -> 0.006988468037 | AD45: =IF(AND(Table3[[#This Row],[Spare Capacity %]]>30%,Table3[[#This Row],[Share of the total Cost with the same year of provision %]]>20%),(1-Table3[[#This Row],[Spare Capacity %]]),1) -> 1 | AE45: =IF(Table3[[#This Row],[ Terminal Value Analysis]]<0,0,Table3[[#This Row],[ Terminal Value Analysis]]) -> 1 | AF45: 1374371 | AG45: 1611297 | AH45: 1017841 | AI45: =Table3[[#This Row],[Present Day Value]]*Table3[[#This Row],[Final Terminal value adjustment %]] -> 1017841 | AJ45: 1017841 | AK45: =Table3[[#This Row],[Present Day Value]]*Table3[[#This Row],[Final Terminal value adjustment %]] -> 1017841
B46: APT131 | C46: ENG-SB-001 | D46: Cycle Route (Secondary) | E46: Citywide | F46: Kedron Brook Bikeway (Enoggera Memorial Park to northern side of creek) | H46: 79 | M46: 3272 | O46: 948000 | P46: 2016 | Q46: 0.01 | S46: 161160 | T46: 144191 | U46: 0.15 | V46: 188003 | Y46: 2024 | Z46: 1.159916788 | AA46: 1441354 | AB46: =IFERROR(IF(Table3[[#This Row],[Year provided (*)]]>2019,VLOOKUP(Table3[[#This Row],[Service Catchment]],'Catchment Demand - Pathway'!$C$8:$M$8,11,FALSE),""),"") -> 0.4045644831 | AC46: =_xlfn.IFS(Table3[[#This Row],[Year provided (*)]]=2019,0,Table3[[#This Row],[Year provided (*)]]=2024,Table3[[#This Row],[Gross Cost of the trunk infrastructure]]/SUMIFS($AH$17:$AH$107,$Y$17:$Y$107,"2024",$E$17:$E$107,Table3[[#This Row],[Service Catchment]])) -> 0.007345704054 | AD46: =IF(AND(Table3[[#This Row],[Spare Capacity %]]>30%,Table3[[#This Row],[Share of the total Cost with the same year of provision %]]>20%),(1-Table3[[#This Row],[Spare Capacity %]]),1) -> 1 | AE46: =IF(Table3[[#This Row],[ Terminal Value Analysis]]<0,0,Table3[[#This Row],[ Terminal Value Analysis]]) -> 1 | AF46: 1444626 | AG46: 1675837 | AH46: 1058610 | AI46: =Table3[[#This Row],[Present Day Value]]*Table3[[#This Row],[Final Terminal value adjustment %]] -> 1058610 | AJ46: 1058610 | AK46: =Table3[[#This Row],[Present Day Value]]*Table3[[#This Row],[Final Terminal value adjustment %]] -> 1058610
B47: APT111 | C47: EVP-SP-001 | D47: Cycle Route (Primary) | E47: Citywide | F47: Downfall Creek Bikeway (Trouts Road to Flockton Street) | H47: 439 | M47: 1447645 | O47: 298192 | P47: 2016 | Q47: 0.01 | S47: 50693 | T47: 45355 | U47: 0.15 | V47: 59136 | Y47: 2024 | Z47: 1.159916788 | AA47: 453376 | AB47: =IFERROR(IF(Table3[[#This Row],[Year provided (*)]]>2019,VLOOKUP(Table3[[#This Row],[Service Catchment]],'Catchment Demand - Pathway'!$C$8:$M$8,11,FALSE),""),"") -> 0.4045644831 | AC47: =_xlfn.IFS(Table3[[#This Row],[Year provided (*)]]=2019,0,Table3[[#This Row],[Year provided (*)]]=2024,Table3[[#This Row],[Gross Cost of the trunk infrastructure]]/SUMIFS($AH$17:$AH$107,$Y$17:$Y$107,"2024",$E$17:$E$107,Table3[[#This Row],[Service Catchment]])) -> 0.009666403392 | AD47: =IF(AND(Table3[[#This Row],[Spare Capacity %]]>30%,Table3[[#This Row],[Share of the total Cost with the same year of provision %]]>20%),(1-Table3[[#This Row],[Spare Capacity %]]),1) -> 1 | AE47: =IF(Table3[[#This Row],[ Terminal Value Analysis]]<0,0,Table3[[#This Row],[ Terminal Value Analysis]]) -> 1 | AF47: 1901021 | AG47: 2289693 | AH47: 1446377 | AI47: =Table3[[#This Row],[Present Day Value]]*Table3[[#This Row],[Final Terminal value adjustment %]] -> 1446377 | AJ47: 1446377 | AK47: =Table3[[#This Row],[Present Day Value]]*Table3[[#This Row],[Final Terminal value adjustment %]] -> 1446377
B48: APT129 | C48: FGR-SP-003 | D48: Cycle Route (Secondary) | E48: Citywide | F48: Cedar Creek Bikeway (Keperra Picnic Ground Park to Nelson Place Park - Ferny Grove) | H48: 662 | M48: 1130628 | O48: 449666 | P48: 2016 | Q48: 0.01 | S48: 76443 | T48: 68394 | U48: 0.15 | V48: 89175 | Y48: 2024 | Z48: 1.159916788 | AA48: 683678 | AB48: =IFERROR(IF(Table3[[#This Row],[Year provided (*)]]>2019,VLOOKUP(Table3[[#This Row],[Service Catchment]],'Catchment Demand - Pathway'!$C$8:$M$8,11,FALSE),""),"") -> 0.4045644831 | AC48: =_xlfn.IFS(Table3[[#This Row],[Year provided (*)]]=2019,0,Table3[[#This Row],[Year provided (*)]]=2024,Table3[[#This Row],[Gross Cost of the trunk infrastructure]]/SUMIFS($AH$17:$AH$107,$Y$17:$Y$107,"2024",$E$17:$E$107,Table3[[#This Row],[Service Catchment]])) -> 0.009225470772 | AD48: =IF(AND(Table3[[#This Row],[Spare Capacity %]]>30%,Table3[[#This Row],[Share of the total Cost with the same year of provision %]]>20%),(1-Table3[[#This Row],[Spare Capacity %]]),1) -> 1 | AE48: =IF(Table3[[#This Row],[ Terminal Value Analysis]]<0,0,Table3[[#This Row],[ Terminal Value Analysis]]) -> 1 | AF48: 1814306 | AG48: 2170570 | AH48: 1371128 | AI48: =Table3[[#This Row],[Present Day Value]]*Table3[[#This Row],[Final Terminal value adjustment %]] -> 1371128 | AJ48: 1371128 | AK48: =Table3[[#This Row],[Present Day Value]]*Table3[[#This Row],[Final Terminal value adjustment %]] -> 1371128
B49: APT129 | C49: FGR-SP-004 | D49: Cycle Route (Secondary) | E49: Citywide | F49: Ferny Grove Bikeway (McAlroy Road to Hogarth Road) | H49: 275 | M49: 16866 | O49: 186795 | P49: 2016 | Q49: 0.01 | S49: 31755 | T49: 28412 | U49: 0.15 | V49: 37044 | Y49: 2024 | Z49: 1.159916788 | AA49: 284006 | AB49: =IFERROR(IF(Table3[[#This Row],[Year provided (*)]]>2019,VLOOKUP(Table3[[#This Row],[Service Catchment]],'Catchment Demand - Pathway'!$C$8:$M$8,11,FALSE),""),"") -> 0.4045644831 | AC49: =_xlfn.IFS(Table3[[#This Row],[Year provided (*)]]=2019,0,Table3[[#This Row],[Year provided (*)]]=2024,Table3[[#This Row],[Gross Cost of the trunk infrastructure]]/SUMIFS($AH$17:$AH$107,$Y$17:$Y$107,"2024",$E$17:$E$107,Table3[[#This Row],[Service Catchment]])) -> 0.001529888476 | AD49: =IF(AND(Table3[[#This Row],[Spare Capacity %]]>30%,Table3[[#This Row],[Share of the total Cost with the same year of provision %]]>20%),(1-Table3[[#This Row],[Spare Capacity %]]),1) -> 1 | AE49: =IF(Table3[[#This Row],[ Terminal Value Analysis]]<0,0,Table3[[#This Row],[ Terminal Value Analysis]]) -> 1 | AF49: =ROUND(AA49+M49,0) -> 300872 | AG49: =IFERROR(ROUND((AA49*Z49+(M49*((1+Landind)^(Y49-YEAR)))),0),0) -> 349973 | AH49: =ROUND((AG49*(1/(1+WACC))^(Y49-YEAR)),0) -> 221075 | AI49: =Table3[[#This Row],[Present Day Value]]*Table3[[#This Row],[Final Terminal value adjustment %]] -> 221075 | AJ49: 221075 | AK49: =Table3[[#This Row],[Present Day Value]]*Table3[[#This Row],[Final Terminal value adjustment %]] -> 221075
B50: APT310 | C50: FLK-SP-002 | D50: Cycle Route (Secondary) | E50: Citywide | F50: Bullockhead Creek Bikeway (Lilydale Place to Waterford Road) | H50: 964 | M50: 36990 | O50: 654800 | P50: 2016 | Q50: 0.01 | S50: 111316 | T50: 99595 | U50: 0.15 | V50: 129857 | Y50: 2024 | Z50: 1.159916788 | AA50: 995568 | AB50: =IFERROR(IF(Table3[[#This Row],[Year provided (*)]]>2019,VLOOKUP(Table3[[#This Row],[Service Catchment]],'Catchment Demand - Pathway'!$C$8:$M$8,11,FALSE),""),"") -> 0.4045644831 | AC50: =_xlfn.IFS(Table3[[#This Row],[Year provided (*)]]=2019,0,Table3[[#This Row],[Year provided (*)]]=2024,Table3[[#This Row],[Gross Cost of the trunk infrastructure]]/SUMIFS($AH$17:$AH$107,$Y$17:$Y$107,"2024",$E$17:$E$107,Table3[[#This Row],[Service Catchment]])) -> 0.005250400786 | AD50: =IF(AND(Table3[[#This Row],[Spare Capacity %]]>30%,Table3[[#This Row],[Share of the total Cost with the same year of provision %]]>20%),(1-Table3[[#This Row],[Spare Capacity %]]),1) -> 1 | AE50: =IF(Table3[[#This Row],[ Terminal Value Analysis]]<0,0,Table3[[#This Row],[ Terminal Value Analysis]]) -> 1 | AF50: 1032558 | AG50: 1199845 | AH50: 757931 | AI50: =Table3[[#This Row],[Present Day Value]]*Table3[[#This Row],[Final Terminal value adjustment %]] -> 757931 | AJ50: 757931 | AK50: =Table3[[#This Row],[Present Day Value]]*Table3[[#This Row],[Final Terminal value adjustment %]] -> 757931
B51: APT331 | C51: HEA-SP-001 | D51: Cycle Route (Secondary) | E51: Citywide | F51: Heathwood Bikeway (Stapylton Road to Euengella Terrace Park) | H51: 477 | M51: 2058570 | O51: 324180 | P51: 2016 | Q51: 0.01 | S51: 55111 | T51: 49308 | U51: 0.075 | V51: 32145 | Y51: 2019 | Z51: 1.05720708 | AA51: 460744 | AB51: =IFERROR(IF(Table3[[#This Row],[Year provided (*)]]>2019,VLOOKUP(Table3[[#This Row],[Service Catchment]],'Catchment Demand - Pathway'!$C$8:$M$8,11,FALSE),""),"") ->  | AC51: =_xlfn.IFS(Table3[[#This Row],[Year provided (*)]]=2019,0,Table3[[#This Row],[Year provided (*)]]=2024,Table3[[#This Row],[Gross Cost of the trunk infrastructure]]/SUMIFS($AH$17:$AH$107,$Y$17:$Y$107,"2024",$E$17:$E$107,Table3[[#This Row],[Service Catchment]])) -> 0 | AD51: =IF(AND(Table3[[#This Row],[Spare Capacity %]]>30%,Table3[[#This Row],[Share of the total Cost with the same year of provision %]]>20%),(1-Table3[[#This Row],[Spare Capacity %]]),1) -> 1 | AE51: =IF(Table3[[#This Row],[ Terminal Value Analysis]]<0,0,Table3[[#This Row],[ Terminal Value Analysis]]) -> 1 | AF51: 2519314 | AG51: 2703957 | AH51: 2276087 | AI51: =Table3[[#This Row],[Present Day Value]]*Table3[[#This Row],[Final Terminal value adjustment %]] -> 2276087 | AJ51: 2276087 | AK51: =Table3[[#This Row],[Present Day Value]]*Table3[[#This Row],[Final Terminal value adjustment %]] -> 2276087
B52: APT152 | C52: HER-SP-001 | D52: Cycle Route (Secondary) | E52: Citywide | F52: Enoggera Creek Bikeway (Clyde Road to Gould Road Park) | H52: 621 | M52: 17987 | O52: 421816 | P52: 2016 | Q52: 0.01 | S52: 71709 | T52: 64158 | U52: 0.15 | V52: 83652 | Y52: 2024 | Z52: 1.159916788 | AA52: 641335 | AB52: =IFERROR(IF(Table3[[#This Row],[Year provided (*)]]>2019,VLOOKUP(Table3[[#This Row],[Service Catchment]],'Catchment Demand - Pathway'!$C$8:$M$8,11,FALSE),""),"") -> 0.4045644831 | AC52: =_xlfn.IFS(Table3[[#This Row],[Year provided (*)]]=2019,0,Table3[[#This Row],[Year provided (*)]]=2024,Table3[[#This Row],[Gross Cost of the trunk infrastructure]]/SUMIFS($AH$17:$AH$107,$Y$17:$Y$107,"2024",$E$17:$E$107,Table3[[#This Row],[Service Catchment]])) -> 0.003352552348 | AD52: =IF(AND(Table3[[#This Row],[Spare Capacity %]]>30%,Table3[[#This Row],[Share of the total Cost with the same year of provision %]]>20%),(1-Table3[[#This Row],[Spare Capacity %]]),1) -> 1 | AE52: =IF(Table3[[#This Row],[ Terminal Value Analysis]]<0,0,Table3[[#This Row],[ Terminal Value Analysis]]) -> 1 | AF52: 659322 | AG52: 765811 | AH52: 483755 | AI52: =Table3[[#This Row],[Present Day Value]]*Table3[[#This Row],[Final Terminal value adjustment %]] -> 483755 | AJ52: 483755 | AK52: =Table3[[#This Row],[Present Day Value]]*Table3[[#This Row],[Final Terminal value adjustment %]] -> 483755
B53: APT233 | C53: HPW-SP-001 | D53: Cycle Route (Secondary) | E53: Citywide | F53: Norman Creek Bikeway (Roseglen Street Park (no. 30) to Birdwood Road (north of 103 Birdwood Road)) | H53: 427 | M53: 200341 | O53: 289780 | P53: 2016 | Q53: 0.01 | S53: 49263 | T53: 44076 | U53: 0.15 | V53: 57468 | Y53: 2024 | Z53: 1.159916788 | AA53: 440587 | AB53: =IFERROR(IF(Table3[[#This Row],[Year provided (*)]]>2019,VLOOKUP(Table3[[#This Row],[Service Catchment]],'Catchment Demand - Pathway'!$C$8:$M$8,11,FALSE),""),"") -> 0.4045644831 | AC53: =_xlfn.IFS(Table3[[#This Row],[Year provided (*)]]=2019,0,Table3[[#This Row],[Year provided (*)]]=2024,Table3[[#This Row],[Gross Cost of the trunk infrastructure]]/SUMIFS($AH$17:$AH$107,$Y$17:$Y$107,"2024",$E$17:$E$107,Table3[[#This Row],[Service Catchment]])) -> 0.003259021648 | AD53: =IF(AND(Table3[[#This Row],[Spare Capacity %]]>30%,Table3[[#This Row],[Share of the total Cost with the same year of provision %]]>20%),(1-Table3[[#This Row],[Spare Capacity %]]),1) -> 1 | AE53: =IF(Table3[[#This Row],[ Terminal Value Analysis]]<0,0,Table3[[#This Row],[ Terminal Value Analysis]]) -> 1 | AF53: 640928 | AG53: 755140 | AH53: 477015 | AI53: =Table3[[#This Row],[Present Day Value]]*Table3[[#This Row],[Final Terminal value adjustment %]] -> 477015 | AJ53: 477015 | AK53: =Table3[[#This Row],[Present Day Value]]*Table3[[#This Row],[Final Terminal value adjustment %]] -> 477015
B54: APT233 | C54: HPW-SP-002 | D54: Cycle Route (Secondary) | E54: Citywide | F54: Norman Creek Bikeway (existing bridge over Norman Creek to Birdwood Road / Esher Street Intersection) | H54: 182 | M54: 0 | O54: 136989 | P54: 2016 | Q54: 0.01 | S54: 23288 | T54: 20836 | U54: 0.15 | V54: 27167 | Y54: 2024 | Z54: 1.159916788 | AA54: 208280 | AB54: =IFERROR(IF(Table3[[#This Row],[Year provided (*)]]>2019,VLOOKUP(Table3[[#This Row],[Service Catchment]],'Catchment Demand - Pathway'!$C$8:$M$8,11,FALSE),""),"") -> 0.4045644831 | AC54: =_xlfn.IFS(Table3[[#This Row],[Year provided (*)]]=2019,0,Table3[[#This Row],[Year provided (*)]]=2024,Table3[[#This Row],[Gross Cost of the trunk infrastructure]]/SUMIFS($AH$17:$AH$107,$Y$17:$Y$107,"2024",$E$17:$E$107,Table3[[#This Row],[Service Catchment]])) -> 0.001059072203 | AD54: =IF(AND(Table3[[#This Row],[Spare Capacity %]]>30%,Table3[[#This Row],[Share of the total Cost with the same year of provision %]]>20%),(1-Table3[[#This Row],[Spare Capacity %]]),1) -> 1 | AE54: =IF(Table3[[#This Row],[ Terminal Value Analysis]]<0,0,Table3[[#This Row],[ Terminal Value Analysis]]) -> 1 | AF54: 208280 | AG54: 241587 | AH54: 152608 | AI54: =Table3[[#This Row],[Present Day Value]]*Table3[[#This Row],[Final Terminal value adjustment %]] -> 152608 | AJ54: 152608 | AK54: =Table3[[#This Row],[Present Day Value]]*Table3[[#This Row],[Final Terminal value adjustment %]] -> 152608
B55: APT233 | C55: HPW-SP-003 | D55: Cycle Route (Secondary) | E55: Citywide | F55: Mott Creek Bikeway (Mananda Street to Woodford Street) | H55: 165 | M55: 22451 | O55: 124193 | P55: 2016 | Q55: 0.01 | S55: 21113 | T55: 18890 | U55: 0.15 | V55: 24629 | Y55: 2024 | Z55: 1.159916788 | AA55: 188825 | AB55: =IFERROR(IF(Table3[[#This Row],[Year provided (*)]]>2019,VLOOKUP(Table3[[#This Row],[Service Catchment]],'Catchment Demand - Pathway'!$C$8:$M$8,11,FALSE),""),"") -> 0.4045644831 | AC55: =_xlfn.IFS(Table3[[#This Row],[Year provided (*)]]=2019,0,Table3[[#This Row],[Year provided (*)]]=2024,Table3[[#This Row],[Gross Cost of the trunk infrastructure]]/SUMIFS($AH$17:$AH$107,$Y$17:$Y$107,"2024",$E$17:$E$107,Table3[[#This Row],[Service Catchment]])) -> 0.001074306409 | AD55: =IF(AND(Table3[[#This Row],[Spare Capacity %]]>30%,Table3[[#This Row],[Share of the total Cost with the same year of provision %]]>20%),(1-Table3[[#This Row],[Spare Capacity %]]),1) -> 1 | AE55: =IF(Table3[[#This Row],[ Terminal Value Analysis]]<0,0,Table3[[#This Row],[ Terminal Value Analysis]]) -> 1 | AF55: 211276 | AG55: 246376 | AH55: 155633 | AI55: =Table3[[#This Row],[Present Day Value]]*Table3[[#This Row],[Final Terminal value adjustment %]] -> 155633 | AJ55: 155633 | AK55: =Table3[[#This Row],[Present Day Value]]*Table3[[#This Row],[Final Terminal value adjustment %]] -> 155633
B56: APT233 | C56: HPW-SP-004 | D56: Cycle Route (Secondary) | E56: Citywide | F56: Glindemann Creek Bikeway (Birdwood Road Park to Joachim Street Park) | H56: 653 | M56: 1234 | O56: 443552 | P56: 2016 | Q56: 0.01 | S56: 75404 | T56: 67464 | U56: 0.15 | V56: 87963 | Y56: 2024 | Z56: 1.159916788 | AA56: 674383 | AB56: =IFERROR(IF(Table3[[#This Row],[Year provided (*)]]>2019,VLOOKUP(Table3[[#This Row],[Service Catchment]],'Catchment Demand - Pathway'!$C$8:$M$8,11,FALSE),""),"") -> 0.4045644831 | AC56: =_xlfn.IFS(Table3[[#This Row],[Year provided (*)]]=2019,0,Table3[[#This Row],[Year provided (*)]]=2024,Table3[[#This Row],[Gross Cost of the trunk infrastructure]]/SUMIFS($AH$17:$AH$107,$Y$17:$Y$107,"2024",$E$17:$E$107,Table3[[#This Row],[Service Catchment]])) -> 0.003435409951 | AD56: =IF(AND(Table3[[#This Row],[Spare Capacity %]]>30%,Table3[[#This Row],[Share of the total Cost with the same year of provision %]]>20%),(1-Table3[[#This Row],[Spare Capacity %]]),1) -> 1 | AE56: =IF(Table3[[#This Row],[ Terminal Value Analysis]]<0,0,Table3[[#This Row],[ Terminal Value Analysis]]) -> 1 | AF56: 675617 | AG56: 783732 | AH56: 495076 | AI56: =Table3[[#This Row],[Present Day Value]]*Table3[[#This Row],[Final Terminal value adjustment %]] -> 495076 | AJ56: 495076 | AK56: =Table3[[#This Row],[Present Day Value]]*Table3[[#This Row],[Final Terminal value adjustment %]] -> 495076
B57: APT193, APT192 | C57: KAN-SP-002 | D57: Cycle Route (Primary) | E57: Citywide | F57: Kangaroo Point Bikeway (Goodwill Bridge to Thornton Street) | H57: 1982 | M57: 2082297 | O57: 1346206 | P57: 2016 | Q57: 0.01 | S57: 228855 | T57: 204758 | U57: 0.075 | V57: 133486 | Y57: 2019 | Z57: 1.05720708 | AA57: 1913305 | AB57: =IFERROR(IF(Table3[[#This Row],[Year provided (*)]]>2019,VLOOKUP(Table3[[#This Row],[Service Catchment]],'Catchment Demand - Pathway'!$C$8:$M$8,11,FALSE),""),"") ->  | AC57: =_xlfn.IFS(Table3[[#This Row],[Year provided (*)]]=2019,0,Table3[[#This Row],[Year provided (*)]]=2024,Table3[[#This Row],[Gross Cost of the trunk infrastructure]]/SUMIFS($AH$17:$AH$107,$Y$17:$Y$107,"2024",$E$17:$E$107,Table3[[#This Row],[Service Catchment]])) -> 0 | AD57: =IF(AND(Table3[[#This Row],[Spare Capacity %]]>30%,Table3[[#This Row],[Share of the total Cost with the same year of provision %]]>20%),(1-Table3[[#This Row],[Spare Capacity %]]),1) -> 1 | AE57: =IF(Table3[[#This Row],[ Terminal Value Analysis]]<0,0,Table3[[#This Row],[ Terminal Value Analysis]]) -> 1 | AF57: 3995602 | AG57: 4265166 | AH57: 3590253 | AI57: =Table3[[#This Row],[Present Day Value]]*Table3[[#This Row],[Final Terminal value adjustment %]] -> 3590253 | AJ57: 3590253 | AK57: =Table3[[#This Row],[Present Day Value]]*Table3[[#This Row],[Final Terminal value adjustment %]] -> 3590253
B58: APT315 | C58: KUR-SP-003 | D58: Cycle Route (Secondary) | E58: Citywide | F58: Kuraby Bikeway (Millers Road to Saint George Street plus links to Pioneer Drive and Edwin Street) | H58: 1538 | M58: 2119885 | O58: 1045004 | P58: 2016 | Q58: 0.01 | S58: 177651 | T58: 158945 | U58: 0.075 | V58: 103620 | Y58: 2019 | Z58: 1.05720708 | AA58: 1485220 | AB58: =IFERROR(IF(Table3[[#This Row],[Year provided (*)]]>2019,VLOOKUP(Table3[[#This Row],[Service Catchment]],'Catchment Demand - Pathway'!$C$8:$M$8,11,FALSE),""),"") ->  | AC58: =_xlfn.IFS(Table3[[#This Row],[Year provided (*)]]=2019,0,Table3[[#This Row],[Year provided (*)]]=2024,Table3[[#This Row],[Gross Cost of the trunk infrastructure]]/SUMIFS($AH$17:$AH$107,$Y$17:$Y$107,"2024",$E$17:$E$107,Table3[[#This Row],[Service Catchment]])) -> 0 | AD58: =IF(AND(Table3[[#This Row],[Spare Capacity %]]>30%,Table3[[#This Row],[Share of the total Cost with the same year of provision %]]>20%),(1-Table3[[#This Row],[Spare Capacity %]]),1) -> 1 | AE58: =IF(Table3[[#This Row],[ Terminal Value Analysis]]<0,0,Table3[[#This Row],[ Terminal Value Analysis]]) -> 1 | AF58: 3605105 | AG58: 3853069 | AH58: 3243365 | AI58: =Table3[[#This Row],[Present Day Value]]*Table3[[#This Row],[Final Terminal value adjustment %]] -> 3243365 | AJ58: 3243365 | AK58: =Table3[[#This Row],[Present Day Value]]*Table3[[#This Row],[Final Terminal value adjustment %]] -> 3243365
B59: APT111 | C59: MDW-SP-002 | D59: Cycle Route (Secondary) | E59: Citywide | F59: Cabbage Tree Creek Bikeway (Hamilton Road to Old Northern Road) | H59: 411 | M59: 38970 | O59: 278969 | P59: 2016 | Q59: 0.01 | S59: 47425 | T59: 42431 | U59: 0.15 | V59: 55324 | Y59: 2024 | Z59: 1.159916788 | AA59: 424149 | AB59: =IFERROR(IF(Table3[[#This Row],[Year provided (*)]]>2019,VLOOKUP(Table3[[#This Row],[Service Catchment]],'Catchment Demand - Pathway'!$C$8:$M$8,11,FALSE),""),"") -> 0.4045644831 | AC59: =_xlfn.IFS(Table3[[#This Row],[Year provided (*)]]=2019,0,Table3[[#This Row],[Year provided (*)]]=2024,Table3[[#This Row],[Gross Cost of the trunk infrastructure]]/SUMIFS($AH$17:$AH$107,$Y$17:$Y$107,"2024",$E$17:$E$107,Table3[[#This Row],[Service Catchment]])) -> 0.002354889858 | AD59: =IF(AND(Table3[[#This Row],[Spare Capacity %]]>30%,Table3[[#This Row],[Share of the total Cost with the same year of provision %]]>20%),(1-Table3[[#This Row],[Spare Capacity %]]),1) -> 1 | AE59: =IF(Table3[[#This Row],[ Terminal Value Analysis]]<0,0,Table3[[#This Row],[ Terminal Value Analysis]]) -> 1 | AF59: 463119 | AG59: 539459 | AH59: 340771 | AI59: =Table3[[#This Row],[Present Day Value]]*Table3[[#This Row],[Final Terminal value adjustment %]] -> 340771 | AJ59: 340771 | AK59: =Table3[[#This Row],[Present Day Value]]*Table3[[#This Row],[Final Terminal value adjustment %]] -> 340771
B60: APT235 | C60: MGE-SP-001 | D60: Cycle Route (Secondary) | E60: Citywide | F60: Salvin Creek Bikeway (Creek Road to Pine Mountain Road) | H60: 266 | M60: 53475 | O60: 180681 | P60: 2016 | Q60: 0.01 | S60: 30716 | T60: 27482 | U60: 0.15 | V60: 35832 | Y60: 2024 | Z60: 1.159916788 | AA60: 274711 | AB60: =IFERROR(IF(Table3[[#This Row],[Year provided (*)]]>2019,VLOOKUP(Table3[[#This Row],[Service Catchment]],'Catchment Demand - Pathway'!$C$8:$M$8,11,FALSE),""),"") -> 0.4045644831 | AC60: =_xlfn.IFS(Table3[[#This Row],[Year provided (*)]]=2019,0,Table3[[#This Row],[Year provided (*)]]=2024,Table3[[#This Row],[Gross Cost of the trunk infrastructure]]/SUMIFS($AH$17:$AH$107,$Y$17:$Y$107,"2024",$E$17:$E$107,Table3[[#This Row],[Service Catchment]])) -> 0.001668776023 | AD60: =IF(AND(Table3[[#This Row],[Spare Capacity %]]>30%,Table3[[#This Row],[Share of the total Cost with the same year of provision %]]>20%),(1-Table3[[#This Row],[Spare Capacity %]]),1) -> 1 | AE60: =IF(Table3[[#This Row],[ Terminal Value Analysis]]<0,0,Table3[[#This Row],[ Terminal Value Analysis]]) -> 1 | AF60: 328186 | AG60: 383796 | AH60: 242440 | AI60: =Table3[[#This Row],[Present Day Value]]*Table3[[#This Row],[Final Terminal value adjustment %]] -> 242440 | AJ60: 242440 | AK60: =Table3[[#This Row],[Present Day Value]]*Table3[[#This Row],[Final Terminal value adjustment %]] -> 242440
B61: APT130 | C61: MIT-SP-003 | D61: Cycle Route (Secondary) | E61: Citywide | F61: Kedron Brook Bikeway (Cribb Avenue to Oxford Grove Park) | H61: 171 | M61: 11579 | O61: 128709 | P61: 2016 | Q61: 0.01 | S61: 21881 | T61: 19577 | U61: 0.075 | V61: 12763 | Y61: 2019 | Z61: 1.05720708 | AA61: 182930 | AB61: =IFERROR(IF(Table3[[#This Row],[Year provided (*)]]>2019,VLOOKUP(Table3[[#This Row],[Service Catchment]],'Catchment Demand - Pathway'!$C$8:$M$8,11,FALSE),""),"") ->  | AC61: =_xlfn.IFS(Table3[[#This Row],[Year provided (*)]]=2019,0,Table3[[#This Row],[Year provided (*)]]=2024,Table3[[#This Row],[Gross Cost of the trunk infrastructure]]/SUMIFS($AH$17:$AH$107,$Y$17:$Y$107,"2024",$E$17:$E$107,Table3[[#This Row],[Service Catchment]])) -> 0 | AD61: =IF(AND(Table3[[#This Row],[Spare Capacity %]]>30%,Table3[[#This Row],[Share of the total Cost with the same year of provision %]]>20%),(1-Table3[[#This Row],[Spare Capacity %]]),1) -> 1 | AE61: =IF(Table3[[#This Row],[ Terminal Value Analysis]]<0,0,Table3[[#This Row],[ Terminal Value Analysis]]) -> 1 | AF61: 194509 | AG61: 205864 | AH61: 173288 | AI61: =Table3[[#This Row],[Present Day Value]]*Table3[[#This Row],[Final Terminal value adjustment %]] -> 173288 | AJ61: 173288 | AK61: =Table3[[#This Row],[Present Day Value]]*Table3[[#This Row],[Final Terminal value adjustment %]] -> 173288
B62: APT252 | C62: MKA-SP-003 | D62: Cycle Route (Secondary) | E62: Citywide | F62: Rocky Water Holes Creek Bikeway (Muriel Avenue to John Bright Street) | H62: 480 | M62: 3239 | O62: 326042 | P62: 2016 | Q62: 0.01 | S62: 55427 | T62: 49591 | U62: 0.15 | V62: 64659 | Y62: 2024 | Z62: 1.159916788 | AA62: 495719 | AB62: =IFERROR(IF(Table3[[#This Row],[Year provided (*)]]>2019,VLOOKUP(Table3[[#This Row],[Service Catchment]],'Catchment Demand - Pathway'!$C$8:$M$8,11,FALSE),""),"") -> 0.4045644831 | AC62: =_xlfn.IFS(Table3[[#This Row],[Year provided (*)]]=2019,0,Table3[[#This Row],[Year provided (*)]]=2024,Table3[[#This Row],[Gross Cost of the trunk infrastructure]]/SUMIFS($AH$17:$AH$107,$Y$17:$Y$107,"2024",$E$17:$E$107,Table3[[#This Row],[Service Catchment]])) -> 0.002537125736 | AD62: =IF(AND(Table3[[#This Row],[Spare Capacity %]]>30%,Table3[[#This Row],[Share of the total Cost with the same year of provision %]]>20%),(1-Table3[[#This Row],[Spare Capacity %]]),1) -> 1 | AE62: =IF(Table3[[#This Row],[ Terminal Value Analysis]]<0,0,Table3[[#This Row],[ Terminal Value Analysis]]) -> 1 | AF62: 498958 | AG62: 578939 | AH62: 365710 | AI62: =Table3[[#This Row],[Present Day Value]]*Table3[[#This Row],[Final Terminal value adjustment %]] -> 365710 | AJ62: 365710 | AK62: =Table3[[#This Row],[Present Day Value]]*Table3[[#This Row],[Final Terminal value adjustment %]] -> 365710
B63: APT252 | C63: MKA-SP-005 | D63: Cycle Route (Secondary) | E63: Citywide | F63: Rocky Water Holes Creek Bikeway (Gladstone Street to Beaudesert Road) | H63: 89 | M63: 8045 | O63: 81694 | P63: 2016 | Q63: 0.01 | S63: 13888 | T63: 12426 | U63: 0.15 | V63: 16201 | Y63: 2024 | Z63: 1.159916788 | AA63: 124209 | AB63: =IFERROR(IF(Table3[[#This Row],[Year provided (*)]]>2019,VLOOKUP(Table3[[#This Row],[Service Catchment]],'Catchment Demand - Pathway'!$C$8:$M$8,11,FALSE),""),"") -> 0.4045644831 | AC63: =_xlfn.IFS(Table3[[#This Row],[Year provided (*)]]=2019,0,Table3[[#This Row],[Year provided (*)]]=2024,Table3[[#This Row],[Gross Cost of the trunk infrastructure]]/SUMIFS($AH$17:$AH$107,$Y$17:$Y$107,"2024",$E$17:$E$107,Table3[[#This Row],[Service Catchment]])) -> 0.0006724915265 | AD63: =IF(AND(Table3[[#This Row],[Spare Capacity %]]>30%,Table3[[#This Row],[Share of the total Cost with the same year of provision %]]>20%),(1-Table3[[#This Row],[Spare Capacity %]]),1) -> 1 | AE63: =IF(Table3[[#This Row],[ Terminal Value Analysis]]<0,0,Table3[[#This Row],[ Terminal Value Analysis]]) -> 1 | AF63: 132254 | AG63: 153874 | AH63: 97201 | AI63: =Table3[[#This Row],[Present Day Value]]*Table3[[#This Row],[Final Terminal value adjustment %]] -> 97201 | AJ63: 97201 | AK63: =Table3[[#This Row],[Present Day Value]]*Table3[[#This Row],[Final Terminal value adjustment %]] -> 97201
B64: APT174 | C64: MOR-SP-001 | D64: Cycle Route (Secondary) | E64: Citywide | F64: Perrin Creek Bikeway (Algoori Street to Beelarong Street) | H64: 322 | M64: 19204 | O64: 218720 | P64: 2016 | Q64: 0.01 | S64: 37182 | T64: 33267 | U64: 0.15 | V64: 43375 | Y64: 2024 | Z64: 1.159916788 | AA64: 332544 | AB64: =IFERROR(IF(Table3[[#This Row],[Year provided (*)]]>2019,VLOOKUP(Table3[[#This Row],[Service Catchment]],'Catchment Demand - Pathway'!$C$8:$M$8,11,FALSE),""),"") -> 0.4045644831 | AC64: =_xlfn.IFS(Table3[[#This Row],[Year provided (*)]]=2019,0,Table3[[#This Row],[Year provided (*)]]=2024,Table3[[#This Row],[Gross Cost of the trunk infrastructure]]/SUMIFS($AH$17:$AH$107,$Y$17:$Y$107,"2024",$E$17:$E$107,Table3[[#This Row],[Service Catchment]])) -> 0.001788585218 | AD64: =IF(AND(Table3[[#This Row],[Spare Capacity %]]>30%,Table3[[#This Row],[Share of the total Cost with the same year of provision %]]>20%),(1-Table3[[#This Row],[Spare Capacity %]]),1) -> 1 | AE64: =IF(Table3[[#This Row],[ Terminal Value Analysis]]<0,0,Table3[[#This Row],[ Terminal Value Analysis]]) -> 1 | AF64: 351748 | AG64: 409122 | AH64: 258438 | AI64: =Table3[[#This Row],[Present Day Value]]*Table3[[#This Row],[Final Terminal value adjustment %]] -> 258438 | AJ64: 258438 | AK64: =Table3[[#This Row],[Present Day Value]]*Table3[[#This Row],[Final Terminal value adjustment %]] -> 258438
B65: APT174 | C65: MOR-SP-004 | D65: Cycle Route (Secondary) | E65: Citywide | F65: Perrin Creek Bikeway (Algoori Street to Baringa Street) | H65: 213 | M65: 29587 | O65: 160322 | P65: 2016 | Q65: 0.01 | S65: 27255 | T65: 24385 | U65: 0.15 | V65: 31794 | Y65: 2024 | Z65: 1.159916788 | AA65: 243756 | AB65: =IFERROR(IF(Table3[[#This Row],[Year provided (*)]]>2019,VLOOKUP(Table3[[#This Row],[Service Catchment]],'Catchment Demand - Pathway'!$C$8:$M$8,11,FALSE),""),"") -> 0.4045644831 | AC65: =_xlfn.IFS(Table3[[#This Row],[Year provided (*)]]=2019,0,Table3[[#This Row],[Year provided (*)]]=2024,Table3[[#This Row],[Gross Cost of the trunk infrastructure]]/SUMIFS($AH$17:$AH$107,$Y$17:$Y$107,"2024",$E$17:$E$107,Table3[[#This Row],[Service Catchment]])) -> 0.001389907688 | AD65: =IF(AND(Table3[[#This Row],[Spare Capacity %]]>30%,Table3[[#This Row],[Share of the total Cost with the same year of provision %]]>20%),(1-Table3[[#This Row],[Spare Capacity %]]),1) -> 1 | AE65: =IF(Table3[[#This Row],[ Terminal Value Analysis]]<0,0,Table3[[#This Row],[ Terminal Value Analysis]]) -> 1 | AF65: 273343 | AG65: 318786 | AH65: 201374 | AI65: =Table3[[#This Row],[Present Day Value]]*Table3[[#This Row],[Final Terminal value adjustment %]] -> 201374 | AJ65: 201374 | AK65: =Table3[[#This Row],[Present Day Value]]*Table3[[#This Row],[Final Terminal value adjustment %]] -> 201374
B66: APT174 | C66: MOR-SP-008 | D66: Cycle Route (Secondary) | E66: Citywide | F66: Morningside Bikeway (Colmslie Reserve to Colmslie Road) | H66: 498 | M66: 995255 | O66: 337942 | P66: 2016 | Q66: 0.01 | S66: 57450 | T66: 51401 | U66: 0.075 | V66: 33509 | Y66: 2019 | Z66: 1.05720708 | AA66: 480302 | AB66: =IFERROR(IF(Table3[[#This Row],[Year provided (*)]]>2019,VLOOKUP(Table3[[#This Row],[Service Catchment]],'Catchment Demand - Pathway'!$C$8:$M$8,11,FALSE),""),"") ->  | AC66: =_xlfn.IFS(Table3[[#This Row],[Year provided (*)]]=2019,0,Table3[[#This Row],[Year provided (*)]]=2024,Table3[[#This Row],[Gross Cost of the trunk infrastructure]]/SUMIFS($AH$17:$AH$107,$Y$17:$Y$107,"2024",$E$17:$E$107,Table3[[#This Row],[Service Catchment]])) -> 0 | AD66: =IF(AND(Table3[[#This Row],[Spare Capacity %]]>30%,Table3[[#This Row],[Share of the total Cost with the same year of provision %]]>20%),(1-Table3[[#This Row],[Spare Capacity %]]),1) -> 1 | AE66: =IF(Table3[[#This Row],[ Terminal Value Analysis]]<0,0,Table3[[#This Row],[ Terminal Value Analysis]]) -> 1 | AF66: 1475557 | AG66: 1579559 | AH66: 1329612 | AI66: =Table3[[#This Row],[Present Day Value]]*Table3[[#This Row],[Final Terminal value adjustment %]] -> 1329612 | AJ66: 1329612 | AK66: =Table3[[#This Row],[Present Day Value]]*Table3[[#This Row],[Final Terminal value adjustment %]] -> 1329612
B67: APT114 | C67: NOG-SP-001 | D67: Cycle Route (Secondary) | E67: Citywide | F67: Cannery Creek Bikeway (Shultz Canal Bikeway to Nudgee Road) | H67: 878 | M67: 43521 | O67: 596384 | P67: 2016 | Q67: 0.01 | S67: 101385 | T67: 90710 | U67: 0.15 | V67: 118272 | Y67: 2024 | Z67: 1.159916788 | AA67: 906751 | AB67: =IFERROR(IF(Table3[[#This Row],[Year provided (*)]]>2019,VLOOKUP(Table3[[#This Row],[Service Catchment]],'Catchment Demand - Pathway'!$C$8:$M$8,11,FALSE),""),"") -> 0.4045644831 | AC67: =_xlfn.IFS(Table3[[#This Row],[Year provided (*)]]=2019,0,Table3[[#This Row],[Year provided (*)]]=2024,Table3[[#This Row],[Gross Cost of the trunk infrastructure]]/SUMIFS($AH$17:$AH$107,$Y$17:$Y$107,"2024",$E$17:$E$107,Table3[[#This Row],[Service Catchment]])) -> 0.00483198896 | AD67: =IF(AND(Table3[[#This Row],[Spare Capacity %]]>30%,Table3[[#This Row],[Share of the total Cost with the same year of provision %]]>20%),(1-Table3[[#This Row],[Spare Capacity %]]),1) -> 1 | AE67: =IF(Table3[[#This Row],[ Terminal Value Analysis]]<0,0,Table3[[#This Row],[ Terminal Value Analysis]]) -> 1 | AF67: 950272 | AG67: 1104782 | AH67: 697880 | AI67: =Table3[[#This Row],[Present Day Value]]*Table3[[#This Row],[Final Terminal value adjustment %]] -> 697880 | AJ67: 697880 | AK67: =Table3[[#This Row],[Present Day Value]]*Table3[[#This Row],[Final Terminal value adjustment %]] -> 697880
B68: APT270 | C68: OXY-SP-001 | D68: Cycle Route (Secondary) | E68: Citywide | F68: Oxley Bikeway (Englefield Road to Douglas Street - southern side of railway line) | H68: 689 | M68: 283680 | O68: 468006 | P68: 2016 | Q68: 0.01 | S68: 79561 | T68: 71184 | U68: 0.15 | V68: 92813 | Y68: 2024 | Z68: 1.159916788 | AA68: 711564 | AB68: =IFERROR(IF(Table3[[#This Row],[Year provided (*)]]>2019,VLOOKUP(Table3[[#This Row],[Service Catchment]],'Catchment Demand - Pathway'!$C$8:$M$8,11,FALSE),""),"") -> 0.4045644831 | AC68: =_xlfn.IFS(Table3[[#This Row],[Year provided (*)]]=2019,0,Table3[[#This Row],[Year provided (*)]]=2024,Table3[[#This Row],[Gross Cost of the trunk infrastructure]]/SUMIFS($AH$17:$AH$107,$Y$17:$Y$107,"2024",$E$17:$E$107,Table3[[#This Row],[Service Catchment]])) -> 0.005060664757 | AD68: =IF(AND(Table3[[#This Row],[Spare Capacity %]]>30%,Table3[[#This Row],[Share of the total Cost with the same year of provision %]]>20%),(1-Table3[[#This Row],[Spare Capacity %]]),1) -> 1 | AE68: =IF(Table3[[#This Row],[ Terminal Value Analysis]]<0,0,Table3[[#This Row],[ Terminal Value Analysis]]) -> 1 | AF68: 995244 | AG68: 1170992 | AH68: 739704 | AI68: =Table3[[#This Row],[Present Day Value]]*Table3[[#This Row],[Final Terminal value adjustment %]] -> 739704 | AJ68: 739704 | AK68: =Table3[[#This Row],[Present Day Value]]*Table3[[#This Row],[Final Terminal value adjustment %]] -> 739704
B69: APT251, APT270, APT271 | C69: OXY-SP-002 | D69: Cycle Route (Secondary) | E69: Citywide | F69: Oxley Bikeway (Douglas Street to Oxley Station Road - southern side of railway line) | H69: 687 | M69: 561856 | O69: 466647 | P69: 2016 | Q69: 0.01 | S69: 79330 | T69: 70977 | U69: 0.15 | V69: 92543 | Y69: 2024 | Z69: 1.159916788 | AA69: 709497 | AB69: =IFERROR(IF(Table3[[#This Row],[Year provided (*)]]>2019,VLOOKUP(Table3[[#This Row],[Service Catchment]],'Catchment Demand - Pathway'!$C$8:$M$8,11,FALSE),""),"") -> 0.4045644831 | AC69: =_xlfn.IFS(Table3[[#This Row],[Year provided (*)]]=2019,0,Table3[[#This Row],[Year provided (*)]]=2024,Table3[[#This Row],[Gross Cost of the trunk infrastructure]]/SUMIFS($AH$17:$AH$107,$Y$17:$Y$107,"2024",$E$17:$E$107,Table3[[#This Row],[Service Catchment]])) -> 0.006464637135 | AD69: =IF(AND(Table3[[#This Row],[Spare Capacity %]]>30%,Table3[[#This Row],[Share of the total Cost with the same year of provision %]]>20%),(1-Table3[[#This Row],[Spare Capacity %]]),1) -> 1 | AE69: =IF(Table3[[#This Row],[ Terminal Value Analysis]]<0,0,Table3[[#This Row],[ Terminal Value Analysis]]) -> 1 | AF69: 1271353 | AG69: 1507524 | AH69: 952288 | AI69: =Table3[[#This Row],[Present Day Value]]*Table3[[#This Row],[Final Terminal value adjustment %]] -> 952288 | AJ69: 952288 | AK69: =Table3[[#This Row],[Present Day Value]]*Table3[[#This Row],[Final Terminal value adjustment %]] -> 952288
B70: APT251, APT271 | C70: OXY-SP-005 | D70: Cycle Route (Secondary) | E70: Citywide | F70: Oxley Creek Bikeway (Cliveden Avenue to Lawson Street Park) | H70: 1312 | M70: 29914 | O70: 891391 | P70: 2016 | Q70: 0.01 | S70: 151536 | T70: 135581 | U70: 0.15 | V70: 176776 | Y70: 2024 | Z70: 1.159916788 | AA70: 1355284 | AB70: =IFERROR(IF(Table3[[#This Row],[Year provided (*)]]>2019,VLOOKUP(Table3[[#This Row],[Service Catchment]],'Catchment Demand - Pathway'!$C$8:$M$8,11,FALSE),""),"") -> 0.4045644831 | AC70: =_xlfn.IFS(Table3[[#This Row],[Year provided (*)]]=2019,0,Table3[[#This Row],[Year provided (*)]]=2024,Table3[[#This Row],[Gross Cost of the trunk infrastructure]]/SUMIFS($AH$17:$AH$107,$Y$17:$Y$107,"2024",$E$17:$E$107,Table3[[#This Row],[Service Catchment]])) -> 0.007043521689 | AD70: =IF(AND(Table3[[#This Row],[Spare Capacity %]]>30%,Table3[[#This Row],[Share of the total Cost with the same year of provision %]]>20%),(1-Table3[[#This Row],[Spare Capacity %]]),1) -> 1 | AE70: =IF(Table3[[#This Row],[ Terminal Value Analysis]]<0,0,Table3[[#This Row],[ Terminal Value Analysis]]) -> 1 | AF70: 1385198 | AG70: 1608464 | AH70: 1016051 | AI70: =Table3[[#This Row],[Present Day Value]]*Table3[[#This Row],[Final Terminal value adjustment %]] -> 1016051 | AJ70: 1016051 | AK70: =Table3[[#This Row],[Present Day Value]]*Table3[[#This Row],[Final Terminal value adjustment %]] -> 1016051
B71: APT271 | C71: OXY-SP-006 | D71: Cycle Route (Secondary) | E71: Citywide | F71: Oxley Creek Bikeway (Lawson Street Park to Ipswich Motorway) | H71: 1048 | M71: 44638 | O71: 711803 | P71: 2016 | Q71: 0.01 | S71: 121007 | T71: 108265 | U71: 0.15 | V71: 141161 | Y71: 2024 | Z71: 1.159916788 | AA71: 1082236 | AB71: =IFERROR(IF(Table3[[#This Row],[Year provided (*)]]>2019,VLOOKUP(Table3[[#This Row],[Service Catchment]],'Catchment Demand - Pathway'!$C$8:$M$8,11,FALSE),""),"") -> 0.4045644831 | AC71: =_xlfn.IFS(Table3[[#This Row],[Year provided (*)]]=2019,0,Table3[[#This Row],[Year provided (*)]]=2024,Table3[[#This Row],[Gross Cost of the trunk infrastructure]]/SUMIFS($AH$17:$AH$107,$Y$17:$Y$107,"2024",$E$17:$E$107,Table3[[#This Row],[Service Catchment]])) -> 0.005729983338 | AD71: =IF(AND(Table3[[#This Row],[Spare Capacity %]]>30%,Table3[[#This Row],[Share of the total Cost with the same year of provision %]]>20%),(1-Table3[[#This Row],[Spare Capacity %]]),1) -> 1 | AE71: =IF(Table3[[#This Row],[ Terminal Value Analysis]]<0,0,Table3[[#This Row],[ Terminal Value Analysis]]) -> 1 | AF71: 1126874 | AG71: 1309691 | AH71: 827319 | AI71: =Table3[[#This Row],[Present Day Value]]*Table3[[#This Row],[Final Terminal value adjustment %]] -> 827319 | AJ71: 827319 | AK71: =Table3[[#This Row],[Present Day Value]]*Table3[[#This Row],[Final Terminal value adjustment %]] -> 827319
B72: APT290 | C72: RIC-SP-002 | D72: Cycle Route (Secondary) | E72: Citywide | F72: Bullockhead Creek Bikeway (eastern side of Bullockhead Creek to Garden Road) | H72: 100 | M72: 18421 | O72: 75465 | P72: 2016 | Q72: 0.01 | S72: 12829 | T72: 11478 | U72: 0.15 | V72: 14966 | Y72: 2024 | Z72: 1.159916788 | AA72: 114738 | AB72: =IFERROR(IF(Table3[[#This Row],[Year provided (*)]]>2019,VLOOKUP(Table3[[#This Row],[Service Catchment]],'Catchment Demand - Pathway'!$C$8:$M$8,11,FALSE),""),"") -> 0.4045644831 | AC72: =_xlfn.IFS(Table3[[#This Row],[Year provided (*)]]=2019,0,Table3[[#This Row],[Year provided (*)]]=2024,Table3[[#This Row],[Gross Cost of the trunk infrastructure]]/SUMIFS($AH$17:$AH$107,$Y$17:$Y$107,"2024",$E$17:$E$107,Table3[[#This Row],[Service Catchment]])) -> 0.0006770933142 | AD72: =IF(AND(Table3[[#This Row],[Spare Capacity %]]>30%,Table3[[#This Row],[Share of the total Cost with the same year of provision %]]>20%),(1-Table3[[#This Row],[Spare Capacity %]]),1) -> 1 | AE72: =IF(Table3[[#This Row],[ Terminal Value Analysis]]<0,0,Table3[[#This Row],[ Terminal Value Analysis]]) -> 1 | AF72: 133159 | AG72: 155531 | AH72: 98247 | AI72: =Table3[[#This Row],[Present Day Value]]*Table3[[#This Row],[Final Terminal value adjustment %]] -> 98247 | AJ72: 98247 | AK72: =Table3[[#This Row],[Present Day Value]]*Table3[[#This Row],[Final Terminal value adjustment %]] -> 98247
B73: APT290 | C73: RIC-SP-003 | D73: Cycle Route (Secondary) | E73: Citywide | F73: Richlands Bikeway (Natalie Street to Eugenia Street) | H73: 478 | M73: 226301 | O73: 324507 | P73: 2016 | Q73: 0.01 | S73: 55166 | T73: 49357 | U73: 0.075 | V73: 32177 | Y73: 2019 | Z73: 1.05720708 | AA73: 461207 | AB73: =IFERROR(IF(Table3[[#This Row],[Year provided (*)]]>2019,VLOOKUP(Table3[[#This Row],[Service Catchment]],'Catchment Demand - Pathway'!$C$8:$M$8,11,FALSE),""),"") ->  | AC73: =_xlfn.IFS(Table3[[#This Row],[Year provided (*)]]=2019,0,Table3[[#This Row],[Year provided (*)]]=2024,Table3[[#This Row],[Gross Cost of the trunk infrastructure]]/SUMIFS($AH$17:$AH$107,$Y$17:$Y$107,"2024",$E$17:$E$107,Table3[[#This Row],[Service Catchment]])) -> 0 | AD73: =IF(AND(Table3[[#This Row],[Spare Capacity %]]>30%,Table3[[#This Row],[Share of the total Cost with the same year of provision %]]>20%),(1-Table3[[#This Row],[Spare Capacity %]]),1) -> 1 | AE73: =IF(Table3[[#This Row],[ Terminal Value Analysis]]<0,0,Table3[[#This Row],[ Terminal Value Analysis]]) -> 1 | AF73: 687508 | AG73: 731293 | AH73: 615574 | AI73: =Table3[[#This Row],[Present Day Value]]*Table3[[#This Row],[Final Terminal value adjustment %]] -> 615574 | AJ73: 615574 | AK73: =Table3[[#This Row],[Present Day Value]]*Table3[[#This Row],[Final Terminal value adjustment %]] -> 615574
B74: APT290 | C74: RIC-SP-004 | D74: Cycle Route (Secondary) | E74: Citywide | F74: Bullockhead Creek Bikeway (proposed park on eastern side of creek to Garden Road) | H74: 171 | M74: 127779 | O74: 128493 | P74: 2016 | Q74: 0.01 | S74: 21844 | T74: 19544 | U74: 0.075 | V74: 12741 | Y74: 2019 | Z74: 1.05720708 | AA74: 182622 | AB74: =IFERROR(IF(Table3[[#This Row],[Year provided (*)]]>2019,VLOOKUP(Table3[[#This Row],[Service Catchment]],'Catchment Demand - Pathway'!$C$8:$M$8,11,FALSE),""),"") ->  | AC74: =_xlfn.IFS(Table3[[#This Row],[Year provided (*)]]=2019,0,Table3[[#This Row],[Year provided (*)]]=2024,Table3[[#This Row],[Gross Cost of the trunk infrastructure]]/SUMIFS($AH$17:$AH$107,$Y$17:$Y$107,"2024",$E$17:$E$107,Table3[[#This Row],[Service Catchment]])) -> 0 | AD74: =IF(AND(Table3[[#This Row],[Spare Capacity %]]>30%,Table3[[#This Row],[Share of the total Cost with the same year of provision %]]>20%),(1-Table3[[#This Row],[Spare Capacity %]]),1) -> 1 | AE74: =IF(Table3[[#This Row],[ Terminal Value Analysis]]<0,0,Table3[[#This Row],[ Terminal Value Analysis]]) -> 1 | AF74: 310401 | AG74: 330673 | AH74: 278348 | AI74: =Table3[[#This Row],[Present Day Value]]*Table3[[#This Row],[Final Terminal value adjustment %]] -> 278348 | AJ74: 278348 | AK74: =Table3[[#This Row],[Present Day Value]]*Table3[[#This Row],[Final Terminal value adjustment %]] -> 278348
B75: APT290 | C75: RIC-SP-005 | D75: Cycle Route (Secondary) | E75: Citywide | F75: Bullockhead Creek Bikeway (eastern side of creek along proposed park boundary) | H75: 167 | M75: 455703 | O75: 125476 | P75: 2016 | Q75: 0.01 | S75: 21331 | T75: 19085 | U75: 0.075 | V75: 12442 | Y75: 2019 | Z75: 1.05720708 | AA75: 178334 | AB75: =IFERROR(IF(Table3[[#This Row],[Year provided (*)]]>2019,VLOOKUP(Table3[[#This Row],[Service Catchment]],'Catchment Demand - Pathway'!$C$8:$M$8,11,FALSE),""),"") ->  | AC75: =_xlfn.IFS(Table3[[#This Row],[Year provided (*)]]=2019,0,Table3[[#This Row],[Year provided (*)]]=2024,Table3[[#This Row],[Gross Cost of the trunk infrastructure]]/SUMIFS($AH$17:$AH$107,$Y$17:$Y$107,"2024",$E$17:$E$107,Table3[[#This Row],[Service Catchment]])) -> 0 | AD75: =IF(AND(Table3[[#This Row],[Spare Capacity %]]>30%,Table3[[#This Row],[Share of the total Cost with the same year of provision %]]>20%),(1-Table3[[#This Row],[Spare Capacity %]]),1) -> 1 | AE75: =IF(Table3[[#This Row],[ Terminal Value Analysis]]<0,0,Table3[[#This Row],[ Terminal Value Analysis]]) -> 1 | AF75: 634037 | AG75: 679278 | AH75: 571790 | AI75: =Table3[[#This Row],[Present Day Value]]*Table3[[#This Row],[Final Terminal value adjustment %]] -> 571790 | AJ75: 571790 | AK75: =Table3[[#This Row],[Present Day Value]]*Table3[[#This Row],[Final Terminal value adjustment %]] -> 571790
B76: APT290 | C76: RIC-SP-006 | D76: Cycle Route (Secondary) | E76: Citywide | F76: Bullockhead Creek Bikeway (southern side of Bullockhead Creek to Pine Road) | H76: 54 | M76: 4032 | O76: 49933 | P76: 2016 | Q76: 0.01 | S76: 8489 | T76: 7595 | U76: 0.075 | V76: 4951 | Y76: 2019 | Z76: 1.05720708 | AA76: 70968 | AB76: =IFERROR(IF(Table3[[#This Row],[Year provided (*)]]>2019,VLOOKUP(Table3[[#This Row],[Service Catchment]],'Catchment Demand - Pathway'!$C$8:$M$8,11,FALSE),""),"") ->  | AC76: =_xlfn.IFS(Table3[[#This Row],[Year provided (*)]]=2019,0,Table3[[#This Row],[Year provided (*)]]=2024,Table3[[#This Row],[Gross Cost of the trunk infrastructure]]/SUMIFS($AH$17:$AH$107,$Y$17:$Y$107,"2024",$E$17:$E$107,Table3[[#This Row],[Service Catchment]])) -> 0 | AD76: =IF(AND(Table3[[#This Row],[Spare Capacity %]]>30%,Table3[[#This Row],[Share of the total Cost with the same year of provision %]]>20%),(1-Table3[[#This Row],[Spare Capacity %]]),1) -> 1 | AE76: =IF(Table3[[#This Row],[ Terminal Value Analysis]]<0,0,Table3[[#This Row],[ Terminal Value Analysis]]) -> 1 | AF76: 75000 | AG76: 79370 | AH76: 66811 | AI76: =Table3[[#This Row],[Present Day Value]]*Table3[[#This Row],[Final Terminal value adjustment %]] -> 66811 | AJ76: 66811 | AK76: =Table3[[#This Row],[Present Day Value]]*Table3[[#This Row],[Final Terminal value adjustment %]] -> 66811
B77: APT269, APT268 | C77: RIV-SP-001 | D77: Cycle Route (Secondary) | E77: Citywide | F77: Wolston Creek Bikeway (Wacol Station Road to Sumners Road) | H77: 2071 | M77: 73826 | O77: 1406734 | P77: 2016 | Q77: 0.01 | S77: 239145 | T77: 213964 | U77: 0.075 | V77: 139488 | Y77: 2019 | Z77: 1.05720708 | AA77: 1999331 | AB77: =IFERROR(IF(Table3[[#This Row],[Year provided (*)]]>2019,VLOOKUP(Table3[[#This Row],[Service Catchment]],'Catchment Demand - Pathway'!$C$8:$M$8,11,FALSE),""),"") ->  | AC77: =_xlfn.IFS(Table3[[#This Row],[Year provided (*)]]=2019,0,Table3[[#This Row],[Year provided (*)]]=2024,Table3[[#This Row],[Gross Cost of the trunk infrastructure]]/SUMIFS($AH$17:$AH$107,$Y$17:$Y$107,"2024",$E$17:$E$107,Table3[[#This Row],[Service Catchment]])) -> 0 | AD77: =IF(AND(Table3[[#This Row],[Spare Capacity %]]>30%,Table3[[#This Row],[Share of the total Cost with the same year of provision %]]>20%),(1-Table3[[#This Row],[Spare Capacity %]]),1) -> 1 | AE77: =IF(Table3[[#This Row],[ Terminal Value Analysis]]<0,0,Table3[[#This Row],[ Terminal Value Analysis]]) -> 1 | AF77: 2073157 | AG77: 2193209 | AH77: 1846159 | AI77: =Table3[[#This Row],[Present Day Value]]*Table3[[#This Row],[Final Terminal value adjustment %]] -> 1846159 | AJ77: 1846159 | AK77: =Table3[[#This Row],[Present Day Value]]*Table3[[#This Row],[Final Terminal value adjustment %]] -> 1846159
B78: APT275 | C78: ROC-SP-002 | D78: Cycle Route (Primary) | E78: Citywide | F78: Rochedale Bikeway (Cooper Crescent to Prebble Street plus link to Gardner Road) | H78: 437 | M78: 522131 | O78: 297149 | P78: 2016 | Q78: 0.01 | S78: 50515 | T78: 45196 | U78: 0.15 | V78: 58929 | Y78: 2024 | Z78: 1.159916788 | AA78: 451789 | AB78: =IFERROR(IF(Table3[[#This Row],[Year provided (*)]]>2019,VLOOKUP(Table3[[#This Row],[Service Catchment]],'Catchment Demand - Pathway'!$C$8:$M$8,11,FALSE),""),"") -> 0.4045644831 | AC78: =_xlfn.IFS(Table3[[#This Row],[Year provided (*)]]=2019,0,Table3[[#This Row],[Year provided (*)]]=2024,Table3[[#This Row],[Gross Cost of the trunk infrastructure]]/SUMIFS($AH$17:$AH$107,$Y$17:$Y$107,"2024",$E$17:$E$107,Table3[[#This Row],[Service Catchment]])) -> 0.004952235452 | AD78: =IF(AND(Table3[[#This Row],[Spare Capacity %]]>30%,Table3[[#This Row],[Share of the total Cost with the same year of provision %]]>20%),(1-Table3[[#This Row],[Spare Capacity %]]),1) -> 1 | AE78: =IF(Table3[[#This Row],[ Terminal Value Analysis]]<0,0,Table3[[#This Row],[ Terminal Value Analysis]]) -> 1 | AF78: 973920 | AG78: 1160204 | AH78: 732890 | AI78: =Table3[[#This Row],[Present Day Value]]*Table3[[#This Row],[Final Terminal value adjustment %]] -> 732890 | AJ78: 732890 | AK78: =Table3[[#This Row],[Present Day Value]]*Table3[[#This Row],[Final Terminal value adjustment %]] -> 732890
B79: APT276, APT275 | C79: ROC-SP-004 | D79: Cycle Route (Secondary) | E79: Citywide | F79: Rochedale Bikeway (future road to Rochedale Road) | H79: 847 | M79: 482233 | O79: 575328 | P79: 2016 | Q79: 0.01 | S79: 97806 | T79: 87507 | U79: 0.15 | V79: 114096 | Y79: 2024 | Z79: 1.159916788 | AA79: 874737 | AB79: =IFERROR(IF(Table3[[#This Row],[Year provided (*)]]>2019,VLOOKUP(Table3[[#This Row],[Service Catchment]],'Catchment Demand - Pathway'!$C$8:$M$8,11,FALSE),""),"") -> 0.4045644831 | AC79: =_xlfn.IFS(Table3[[#This Row],[Year provided (*)]]=2019,0,Table3[[#This Row],[Year provided (*)]]=2024,Table3[[#This Row],[Gross Cost of the trunk infrastructure]]/SUMIFS($AH$17:$AH$107,$Y$17:$Y$107,"2024",$E$17:$E$107,Table3[[#This Row],[Service Catchment]])) -> 0.006899986592 | AD79: =IF(AND(Table3[[#This Row],[Spare Capacity %]]>30%,Table3[[#This Row],[Share of the total Cost with the same year of provision %]]>20%),(1-Table3[[#This Row],[Spare Capacity %]]),1) -> 1 | AE79: =IF(Table3[[#This Row],[ Terminal Value Analysis]]<0,0,Table3[[#This Row],[ Terminal Value Analysis]]) -> 1 | AF79: 1356970 | AG79: 1602176 | AH79: 1012079 | AI79: =Table3[[#This Row],[Present Day Value]]*Table3[[#This Row],[Final Terminal value adjustment %]] -> 1012079 | AJ79: 1012079 | AK79: =Table3[[#This Row],[Present Day Value]]*Table3[[#This Row],[Final Terminal value adjustment %]] -> 1012079
B80: APT276 | C80: ROC-SP-005 | D80: Cycle Route (Secondary) | E80: Citywide | F80: Rochedale Bikeway (future road to Rochedale Road ) | H80: 886 | M80: 1148853 | O80: 601819 | P80: 2016 | Q80: 0.01 | S80: 102309 | T80: 91537 | U80: =IF(Y80="","",IF(Y80<=YEAR+5,0.075,IF(AND(Y80>YEAR+5,Y80<=YEAR+10),0.15,IF(AND(Y80>YEAR+10,Y80<=YEAR+20),0.2,IF(Y80>YEAR+20,0.25,""))))) -> 0.15 | V80: 119350 | Y80: 2024 | Z80: =(1+PPI)^(Y80-YEAR) -> 1.159916788 | AA80: 915015 | AB80: =IFERROR(IF(Table3[[#This Row],[Year provided (*)]]>2019,VLOOKUP(Table3[[#This Row],[Service Catchment]],'Catchment Demand - Pathway'!$C$8:$M$8,11,FALSE),""),"") -> 0.4045644831 | AC80: =_xlfn.IFS(Table3[[#This Row],[Year provided (*)]]=2019,0,Table3[[#This Row],[Year provided (*)]]=2024,Table3[[#This Row],[Gross Cost of the trunk infrastructure]]/SUMIFS($AH$17:$AH$107,$Y$17:$Y$107,"2024",$E$17:$E$107,Table3[[#This Row],[Service Catchment]])) -> 0.01049445568 | AD80: =IF(AND(Table3[[#This Row],[Spare Capacity %]]>30%,Table3[[#This Row],[Share of the total Cost with the same year of provision %]]>20%),(1-Table3[[#This Row],[Spare Capacity %]]),1) -> 1 | AE80: =IF(Table3[[#This Row],[ Terminal Value Analysis]]<0,0,Table3[[#This Row],[ Terminal Value Analysis]]) -> 1 | AF80: 2063868 | AG80: 2461107 | AH80: 1554658 | AI80: =Table3[[#This Row],[Present Day Value]]*Table3[[#This Row],[Final Terminal value adjustment %]] -> 1554658 | AJ80: 1554658 | AK80: =Table3[[#This Row],[Present Day Value]]*Table3[[#This Row],[Final Terminal value adjustment %]] -> 1554658
B81: APT295 | C81: ROC-SP-012 | D81: Cycle Route (Secondary) | E81: Citywide | F81: Rochedale Bikeway (future road to Priestdale Road) | H81: 1037 | M81: 1219080 | O81: 704386 | P81: 2016 | Q81: 0.01 | S81: 119746 | T81: 107137 | U81: 0.15 | V81: 139690 | Y81: 2024 | Z81: 1.159916788 | AA81: 1070959 | AB81: =IFERROR(IF(Table3[[#This Row],[Year provided (*)]]>2019,VLOOKUP(Table3[[#This Row],[Service Catchment]],'Catchment Demand - Pathway'!$C$8:$M$8,11,FALSE),""),"") -> 0.4045644831 | AC81: =_xlfn.IFS(Table3[[#This Row],[Year provided (*)]]=2019,0,Table3[[#This Row],[Year provided (*)]]=2024,Table3[[#This Row],[Gross Cost of the trunk infrastructure]]/SUMIFS($AH$17:$AH$107,$Y$17:$Y$107,"2024",$E$17:$E$107,Table3[[#This Row],[Service Catchment]])) -> 0.01164450091 | AD81: =IF(AND(Table3[[#This Row],[Spare Capacity %]]>30%,Table3[[#This Row],[Share of the total Cost with the same year of provision %]]>20%),(1-Table3[[#This Row],[Spare Capacity %]]),1) -> 1 | AE81: =IF(Table3[[#This Row],[ Terminal Value Analysis]]<0,0,Table3[[#This Row],[ Terminal Value Analysis]]) -> 1 | AF81: =ROUND(AA81+M81,0) -> 2290039 | AG81: =IFERROR(ROUND((AA81*Z81+(M81*((1+Landind)^(Y81-YEAR)))),0),0) -> 2727554 | AH81: =ROUND((AG81*(1/(1+WACC))^(Y81-YEAR)),0) -> 1722970 | AI81: =Table3[[#This Row],[Present Day Value]]*Table3[[#This Row],[Final Terminal value adjustment %]] -> 1722970 | AJ81: =AH81 -> 1722970 | AK81: =Table3[[#This Row],[Present Day Value]]*Table3[[#This Row],[Final Terminal value adjustment %]] -> 1722970
B82: APT275 | C82: ROC-SP-015 | D82: Cycle Route (Primary) | E82: Citywide | F82: Rochedale Bikeway (Miles Platting Road to future road) | H82: 324 | M82: 492723 | O82: 220078 | P82: 2016 | Q82: 0.01 | S82: =ROUND(O82*17%,0) -> 37413 | T82: =ROUND((O82+S82)*13%,0) -> 33474 | U82: 0.075 | V82: =ROUND((O82+S82+T82)*U82,0) -> 21822 | Y82: 2019 | Z82: 1.05720708 | AA82: =ROUND(V82+T82+S82+O82,0) -> 312787 | AB82: =IFERROR(IF(Table3[[#This Row],[Year provided (*)]]>2019,VLOOKUP(Table3[[#This Row],[Service Catchment]],'Catchment Demand - Pathway'!$C$8:$M$8,11,FALSE),""),"") ->  | AC82: =_xlfn.IFS(Table3[[#This Row],[Year provided (*)]]=2019,0,Table3[[#This Row],[Year provided (*)]]=2024,Table3[[#This Row],[Gross Cost of the trunk infrastructure]]/SUMIFS($AH$17:$AH$107,$Y$17:$Y$107,"2024",$E$17:$E$107,Table3[[#This Row],[Service Catchment]])) -> 0 | AD82: =IF(AND(Table3[[#This Row],[Spare Capacity %]]>30%,Table3[[#This Row],[Share of the total Cost with the same year of provision %]]>20%),(1-Table3[[#This Row],[Spare Capacity %]]),1) -> 1 | AE82: =IF(Table3[[#This Row],[ Terminal Value Analysis]]<0,0,Table3[[#This Row],[ Terminal Value Analysis]]) -> 1 | AF82: 805510 | AG82: 861289 | AH82: 725000 | AI82: =Table3[[#This Row],[Present Day Value]]*Table3[[#This Row],[Final Terminal value adjustment %]] -> 725000 | AJ82: 725000 | AK82: =Table3[[#This Row],[Present Day Value]]*Table3[[#This Row],[Final Terminal value adjustment %]] -> 725000
B83: APT294 | C83: RUN-SP-002 | D83: Cycle Route (Primary) | E83: Citywide | F83: Runcorn Bikeway (Glenefer Street to Beenleigh Road) | H83: 736 | M83: 78435 | O83: 499801 | P83: 2016 | Q83: 0.01 | S83: 84966 | T83: 76020 | U83: 0.075 | V83: 49559 | Y83: 2019 | Z83: 1.05720708 | AA83: 710346 | AB83: =IFERROR(IF(Table3[[#This Row],[Year provided (*)]]>2019,VLOOKUP(Table3[[#This Row],[Service Catchment]],'Catchment Demand - Pathway'!$C$8:$M$8,11,FALSE),""),"") ->  | AC83: =_xlfn.IFS(Table3[[#This Row],[Year provided (*)]]=2019,0,Table3[[#This Row],[Year provided (*)]]=2024,Table3[[#This Row],[Gross Cost of the trunk infrastructure]]/SUMIFS($AH$17:$AH$107,$Y$17:$Y$107,"2024",$E$17:$E$107,Table3[[#This Row],[Service Catchment]])) -> 0 | AD83: =IF(AND(Table3[[#This Row],[Spare Capacity %]]>30%,Table3[[#This Row],[Share of the total Cost with the same year of provision %]]>20%),(1-Table3[[#This Row],[Spare Capacity %]]),1) -> 1 | AE83: =IF(Table3[[#This Row],[ Terminal Value Analysis]]<0,0,Table3[[#This Row],[ Terminal Value Analysis]]) -> 1 | AF83: 788781 | AG83: 835449 | AH83: 703249 | AI83: =Table3[[#This Row],[Present Day Value]]*Table3[[#This Row],[Final Terminal value adjustment %]] -> 703249 | AJ83: 703249 | AK83: =Table3[[#This Row],[Present Day Value]]*Table3[[#This Row],[Final Terminal value adjustment %]] -> 703249
B84: APT295, APT294 | C84: RUN-SP-003 | D84: Cycle Route (Primary) | E84: Citywide | F84: Bulimba Creek Bikeway (Corella Place to Underwood Road) | H84: 1209 | M84: 512551 | O84: 821224 | P84: 2016 | Q84: 0.01 | S84: 139608 | T84: 124908 | U84: 0.15 | V84: 162861 | Y84: 2024 | Z84: 1.159916788 | AA84: 1248601 | AB84: =IFERROR(IF(Table3[[#This Row],[Year provided (*)]]>2019,VLOOKUP(Table3[[#This Row],[Service Catchment]],'Catchment Demand - Pathway'!$C$8:$M$8,11,FALSE),""),"") -> 0.4045644831 | AC84: =_xlfn.IFS(Table3[[#This Row],[Year provided (*)]]=2019,0,Table3[[#This Row],[Year provided (*)]]=2024,Table3[[#This Row],[Gross Cost of the trunk infrastructure]]/SUMIFS($AH$17:$AH$107,$Y$17:$Y$107,"2024",$E$17:$E$107,Table3[[#This Row],[Service Catchment]])) -> 0.008955190746 | AD84: =IF(AND(Table3[[#This Row],[Spare Capacity %]]>30%,Table3[[#This Row],[Share of the total Cost with the same year of provision %]]>20%),(1-Table3[[#This Row],[Spare Capacity %]]),1) -> 1 | AE84: =IF(Table3[[#This Row],[ Terminal Value Analysis]]<0,0,Table3[[#This Row],[ Terminal Value Analysis]]) -> 1 | AF84: 1761152 | AG84: 2072767 | AH84: 1309347 | AI84: =Table3[[#This Row],[Present Day Value]]*Table3[[#This Row],[Final Terminal value adjustment %]] -> 1309347 | AJ84: 1309347 | AK84: =Table3[[#This Row],[Present Day Value]]*Table3[[#This Row],[Final Terminal value adjustment %]] -> 1309347
B85: APT294, APT295 | C85: RUN-SP-004 | D85: Cycle Route (Primary) | E85: Citywide | F85: Bulimba Creek Bikeway (Warrigal Road to Bulimba Creek Bikeway) | H85: 860 | M85: 1138143 | O85: 584436 | P85: 2016 | Q85: 0.01 | S85: 99354 | T85: 88893 | U85: 0.15 | V85: 115902 | Y85: 2024 | Z85: 1.159916788 | AA85: 888585 | AB85: =IFERROR(IF(Table3[[#This Row],[Year provided (*)]]>2019,VLOOKUP(Table3[[#This Row],[Service Catchment]],'Catchment Demand - Pathway'!$C$8:$M$8,11,FALSE),""),"") -> 0.4045644831 | AC85: =_xlfn.IFS(Table3[[#This Row],[Year provided (*)]]=2019,0,Table3[[#This Row],[Year provided (*)]]=2024,Table3[[#This Row],[Gross Cost of the trunk infrastructure]]/SUMIFS($AH$17:$AH$107,$Y$17:$Y$107,"2024",$E$17:$E$107,Table3[[#This Row],[Service Catchment]])) -> 0.01030560442 | AD85: =IF(AND(Table3[[#This Row],[Spare Capacity %]]>30%,Table3[[#This Row],[Share of the total Cost with the same year of provision %]]>20%),(1-Table3[[#This Row],[Spare Capacity %]]),1) -> 1 | AE85: =IF(Table3[[#This Row],[ Terminal Value Analysis]]<0,0,Table3[[#This Row],[ Terminal Value Analysis]]) -> 1 | AF85: 2026728 | AG85: 2417401 | AH85: 1527049 | AI85: =Table3[[#This Row],[Present Day Value]]*Table3[[#This Row],[Final Terminal value adjustment %]] -> 1527049 | AJ85: 1527049 | AK85: =Table3[[#This Row],[Present Day Value]]*Table3[[#This Row],[Final Terminal value adjustment %]] -> 1527049
B86: APT253, APT252 | C86: SAL-SP-002 | D86: Cycle Route (Secondary) | E86: Citywide | F86: Rocky Water Holes Creek Bikeway (McCarthy Road to Precision Street) | H86: 400 | M86: 72042 | O86: 271701 | P86: 2016 | Q86: 0.01 | S86: 46189 | T86: 41326 | U86: 0.15 | V86: 53882 | Y86: 2024 | Z86: 1.159916788 | AA86: 413098 | AB86: =IFERROR(IF(Table3[[#This Row],[Year provided (*)]]>2019,VLOOKUP(Table3[[#This Row],[Service Catchment]],'Catchment Demand - Pathway'!$C$8:$M$8,11,FALSE),""),"") -> 0.4045644831 | AC86: =_xlfn.IFS(Table3[[#This Row],[Year provided (*)]]=2019,0,Table3[[#This Row],[Year provided (*)]]=2024,Table3[[#This Row],[Gross Cost of the trunk infrastructure]]/SUMIFS($AH$17:$AH$107,$Y$17:$Y$107,"2024",$E$17:$E$107,Table3[[#This Row],[Service Catchment]])) -> 0.002466863302 | AD86: =IF(AND(Table3[[#This Row],[Spare Capacity %]]>30%,Table3[[#This Row],[Share of the total Cost with the same year of provision %]]>20%),(1-Table3[[#This Row],[Spare Capacity %]]),1) -> 1 | AE86: =IF(Table3[[#This Row],[ Terminal Value Analysis]]<0,0,Table3[[#This Row],[ Terminal Value Analysis]]) -> 1 | AF86: 485140 | AG86: 566935 | AH86: 358127 | AI86: =Table3[[#This Row],[Present Day Value]]*Table3[[#This Row],[Final Terminal value adjustment %]] -> 358127 | AJ86: 358127 | AK86: =Table3[[#This Row],[Present Day Value]]*Table3[[#This Row],[Final Terminal value adjustment %]] -> 358127
B87: APT252 | C87: SAL-SP-003 | D87: Cycle Route (Secondary) | E87: Citywide | F87: Rocky Water Holes Creek Bikeway (Precision Street to Assembly Street) | H87: 347 | M87: 164481 | O87: 235701 | P87: 2016 | Q87: 0.01 | S87: 40069 | T87: 35850 | U87: 0.15 | V87: 46743 | Y87: 2024 | Z87: 1.159916788 | AA87: 358363 | AB87: =IFERROR(IF(Table3[[#This Row],[Year provided (*)]]>2019,VLOOKUP(Table3[[#This Row],[Service Catchment]],'Catchment Demand - Pathway'!$C$8:$M$8,11,FALSE),""),"") -> 0.4045644831 | AC87: =_xlfn.IFS(Table3[[#This Row],[Year provided (*)]]=2019,0,Table3[[#This Row],[Year provided (*)]]=2024,Table3[[#This Row],[Gross Cost of the trunk infrastructure]]/SUMIFS($AH$17:$AH$107,$Y$17:$Y$107,"2024",$E$17:$E$107,Table3[[#This Row],[Service Catchment]])) -> 0.002658582422 | AD87: =IF(AND(Table3[[#This Row],[Spare Capacity %]]>30%,Table3[[#This Row],[Share of the total Cost with the same year of provision %]]>20%),(1-Table3[[#This Row],[Spare Capacity %]]),1) -> 1 | AE87: =IF(Table3[[#This Row],[ Terminal Value Analysis]]<0,0,Table3[[#This Row],[ Terminal Value Analysis]]) -> 1 | AF87: 522844 | AG87: 616075 | AH87: 389169 | AI87: =Table3[[#This Row],[Present Day Value]]*Table3[[#This Row],[Final Terminal value adjustment %]] -> 389169 | AJ87: 389169 | AK87: =Table3[[#This Row],[Present Day Value]]*Table3[[#This Row],[Final Terminal value adjustment %]] -> 389169
B88: APT252 | C88: SAL-SP-004 | D88: Cycle Route (Secondary) | E88: Citywide | F88: Rocky Water Holes Creek Bikeway (Assembly Street to Beaudesert Road) | H88: 814 | M88: 115290 | O88: 552912 | P88: 2016 | Q88: 0.01 | S88: 93995 | T88: 84098 | U88: 0.15 | V88: 109651 | Y88: 2024 | Z88: 1.159916788 | AA88: 840656 | AB88: =IFERROR(IF(Table3[[#This Row],[Year provided (*)]]>2019,VLOOKUP(Table3[[#This Row],[Service Catchment]],'Catchment Demand - Pathway'!$C$8:$M$8,11,FALSE),""),"") -> 0.4045644831 | AC88: =_xlfn.IFS(Table3[[#This Row],[Year provided (*)]]=2019,0,Table3[[#This Row],[Year provided (*)]]=2024,Table3[[#This Row],[Gross Cost of the trunk infrastructure]]/SUMIFS($AH$17:$AH$107,$Y$17:$Y$107,"2024",$E$17:$E$107,Table3[[#This Row],[Service Catchment]])) -> 0.004860840389 | AD88: =IF(AND(Table3[[#This Row],[Spare Capacity %]]>30%,Table3[[#This Row],[Share of the total Cost with the same year of provision %]]>20%),(1-Table3[[#This Row],[Spare Capacity %]]),1) -> 1 | AE88: =IF(Table3[[#This Row],[ Terminal Value Analysis]]<0,0,Table3[[#This Row],[ Terminal Value Analysis]]) -> 1 | AF88: 955946 | AG88: 1115561 | AH88: 704689 | AI88: =Table3[[#This Row],[Present Day Value]]*Table3[[#This Row],[Final Terminal value adjustment %]] -> 704689 | AJ88: 704689 | AK88: =Table3[[#This Row],[Present Day Value]]*Table3[[#This Row],[Final Terminal value adjustment %]] -> 704689
B89: APT250 | C89: SIP-SB-001 | D89: Cycle Route (Secondary) | E89: Citywide | F89: Jindalee Creek Bikeway (Bridge over Jindalee Creek) | H89: 70 | M89: 6635 | O89: 840000 | P89: 2016 | Q89: 0.01 | S89: 142800 | T89: 127764 | U89: 0.15 | V89: 166585 | Y89: 2024 | Z89: 1.159916788 | AA89: 1277149 | AB89: =IFERROR(IF(Table3[[#This Row],[Year provided (*)]]>2019,VLOOKUP(Table3[[#This Row],[Service Catchment]],'Catchment Demand - Pathway'!$C$8:$M$8,11,FALSE),""),"") -> 0.4045644831 | AC89: =_xlfn.IFS(Table3[[#This Row],[Year provided (*)]]=2019,0,Table3[[#This Row],[Year provided (*)]]=2024,Table3[[#This Row],[Gross Cost of the trunk infrastructure]]/SUMIFS($AH$17:$AH$107,$Y$17:$Y$107,"2024",$E$17:$E$107,Table3[[#This Row],[Service Catchment]])) -> 0.006527846884 | AD89: =IF(AND(Table3[[#This Row],[Spare Capacity %]]>30%,Table3[[#This Row],[Share of the total Cost with the same year of provision %]]>20%),(1-Table3[[#This Row],[Spare Capacity %]]),1) -> 1 | AE89: =IF(Table3[[#This Row],[ Terminal Value Analysis]]<0,0,Table3[[#This Row],[ Terminal Value Analysis]]) -> 1 | AF89: 1283784 | AG89: 1489471 | AH89: 940884 | AI89: =Table3[[#This Row],[Present Day Value]]*Table3[[#This Row],[Final Terminal value adjustment %]] -> 940884 | AJ89: 940884 | AK89: =Table3[[#This Row],[Present Day Value]]*Table3[[#This Row],[Final Terminal value adjustment %]] -> 940884
B90: APT250 | C90: SIP-SP-001 | D90: Cycle Route (Secondary) | E90: Citywide | F90: Jindalee Creek Bikeway (Oldfield Road to Centenary Motorway) | H90: 526 | M90: 292746 | O90: 357287 | P90: 2016 | Q90: 0.01 | S90: 60739 | T90: 54343 | U90: 0.075 | V90: 35428 | Y90: 2019 | Z90: 1.05720708 | AA90: 507797 | AB90: =IFERROR(IF(Table3[[#This Row],[Year provided (*)]]>2019,VLOOKUP(Table3[[#This Row],[Service Catchment]],'Catchment Demand - Pathway'!$C$8:$M$8,11,FALSE),""),"") ->  | AC90: =_xlfn.IFS(Table3[[#This Row],[Year provided (*)]]=2019,0,Table3[[#This Row],[Year provided (*)]]=2024,Table3[[#This Row],[Gross Cost of the trunk infrastructure]]/SUMIFS($AH$17:$AH$107,$Y$17:$Y$107,"2024",$E$17:$E$107,Table3[[#This Row],[Service Catchment]])) -> 0 | AD90: =IF(AND(Table3[[#This Row],[Spare Capacity %]]>30%,Table3[[#This Row],[Share of the total Cost with the same year of provision %]]>20%),(1-Table3[[#This Row],[Spare Capacity %]]),1) -> 1 | AE90: =IF(Table3[[#This Row],[ Terminal Value Analysis]]<0,0,Table3[[#This Row],[ Terminal Value Analysis]]) -> 1 | AF90: 800543 | AG90: 852102 | AH90: 717267 | AI90: =Table3[[#This Row],[Present Day Value]]*Table3[[#This Row],[Final Terminal value adjustment %]] -> 717267 | AJ90: 717267 | AK90: =Table3[[#This Row],[Present Day Value]]*Table3[[#This Row],[Final Terminal value adjustment %]] -> 717267
B91: APT250 | C91: SIP-SP-002 | D91: Cycle Route (Secondary) | E91: Citywide | F91: Jindalee Creek Bikeway (Oldfield Road (west) to Jindalee Creek) | H91: 207 | M91: 183983 | O91: 155806 | P91: 2016 | Q91: 0.01 | S91: 26487 | T91: 23698 | U91: 0.075 | V91: 15449 | Y91: 2019 | Z91: 1.05720708 | AA91: 221440 | AB91: =IFERROR(IF(Table3[[#This Row],[Year provided (*)]]>2019,VLOOKUP(Table3[[#This Row],[Service Catchment]],'Catchment Demand - Pathway'!$C$8:$M$8,11,FALSE),""),"") ->  | AC91: =_xlfn.IFS(Table3[[#This Row],[Year provided (*)]]=2019,0,Table3[[#This Row],[Year provided (*)]]=2024,Table3[[#This Row],[Gross Cost of the trunk infrastructure]]/SUMIFS($AH$17:$AH$107,$Y$17:$Y$107,"2024",$E$17:$E$107,Table3[[#This Row],[Service Catchment]])) -> 0 | AD91: =IF(AND(Table3[[#This Row],[Spare Capacity %]]>30%,Table3[[#This Row],[Share of the total Cost with the same year of provision %]]>20%),(1-Table3[[#This Row],[Spare Capacity %]]),1) -> 1 | AE91: =IF(Table3[[#This Row],[ Terminal Value Analysis]]<0,0,Table3[[#This Row],[ Terminal Value Analysis]]) -> 1 | AF91: 405423 | AG91: 432238 | AH91: 363841 | AI91: =Table3[[#This Row],[Present Day Value]]*Table3[[#This Row],[Final Terminal value adjustment %]] -> 363841 | AJ91: 363841 | AK91: =Table3[[#This Row],[Present Day Value]]*Table3[[#This Row],[Final Terminal value adjustment %]] -> 363841
B92: APT250 | C92: SIP-SP-003 | D92: Cycle Route (Secondary) | E92: Citywide | F92: Jindalee Creek Bikeway (Jindalee Creek to Seventeen Mile Rocks Road) | H92: 172 | M92: 587345 | O92: 129462 | P92: 2016 | Q92: 0.01 | S92: 22009 | T92: 19691 | U92: 0.075 | V92: 12837 | Y92: 2019 | Z92: 1.05720708 | AA92: 183999 | AB92: =IFERROR(IF(Table3[[#This Row],[Year provided (*)]]>2019,VLOOKUP(Table3[[#This Row],[Service Catchment]],'Catchment Demand - Pathway'!$C$8:$M$8,11,FALSE),""),"") ->  | AC92: =_xlfn.IFS(Table3[[#This Row],[Year provided (*)]]=2019,0,Table3[[#This Row],[Year provided (*)]]=2024,Table3[[#This Row],[Gross Cost of the trunk infrastructure]]/SUMIFS($AH$17:$AH$107,$Y$17:$Y$107,"2024",$E$17:$E$107,Table3[[#This Row],[Service Catchment]])) -> 0 | AD92: =IF(AND(Table3[[#This Row],[Spare Capacity %]]>30%,Table3[[#This Row],[Share of the total Cost with the same year of provision %]]>20%),(1-Table3[[#This Row],[Spare Capacity %]]),1) -> 1 | AE92: =IF(Table3[[#This Row],[ Terminal Value Analysis]]<0,0,Table3[[#This Row],[ Terminal Value Analysis]]) -> 1 | AF92: 771344 | AG92: 827031 | AH92: 696163 | AI92: =Table3[[#This Row],[Present Day Value]]*Table3[[#This Row],[Final Terminal value adjustment %]] -> 696163 | AJ92: 696163 | AK92: =Table3[[#This Row],[Present Day Value]]*Table3[[#This Row],[Final Terminal value adjustment %]] -> 696163
B93: APT250 | C93: SIP-SP-004 | D93: Cycle Route (Secondary) | E93: Citywide | F93: Jindalee Creek Bikeway (McPherson Road Park to Oldfield Road Park) | H93: 796 | M93: 40410 | O93: 540686 | P93: 2016 | Q93: 0.01 | S93: 91917 | T93: 82238 | U93: 0.15 | V93: 107226 | Y93: 2024 | Z93: 1.159916788 | AA93: 822067 | AB93: =IFERROR(IF(Table3[[#This Row],[Year provided (*)]]>2019,VLOOKUP(Table3[[#This Row],[Service Catchment]],'Catchment Demand - Pathway'!$C$8:$M$8,11,FALSE),""),"") -> 0.4045644831 | AC93: =_xlfn.IFS(Table3[[#This Row],[Year provided (*)]]=2019,0,Table3[[#This Row],[Year provided (*)]]=2024,Table3[[#This Row],[Gross Cost of the trunk infrastructure]]/SUMIFS($AH$17:$AH$107,$Y$17:$Y$107,"2024",$E$17:$E$107,Table3[[#This Row],[Service Catchment]])) -> 0.004385564703 | AD93: =IF(AND(Table3[[#This Row],[Spare Capacity %]]>30%,Table3[[#This Row],[Share of the total Cost with the same year of provision %]]>20%),(1-Table3[[#This Row],[Spare Capacity %]]),1) -> 1 | AE93: =IF(Table3[[#This Row],[ Terminal Value Analysis]]<0,0,Table3[[#This Row],[ Terminal Value Analysis]]) -> 1 | AF93: 862477 | AG93: 1002765 | AH93: 633437 | AI93: =Table3[[#This Row],[Present Day Value]]*Table3[[#This Row],[Final Terminal value adjustment %]] -> 633437 | AJ93: 633437 | AK93: =Table3[[#This Row],[Present Day Value]]*Table3[[#This Row],[Final Terminal value adjustment %]] -> 633437
B94: APT211 | C94: SLU-SP-001 | D94: Cycle Route (Primary) | E94: Citywide | F94: Gailey Road Bikeway (Sandford Street to Gailey Road) | H94: 41 | M94: 168259 | O94: 43786 | P94: 2016 | Q94: 0.01 | S94: 7444 | T94: 6660 | U94: 0.075 | V94: 4342 | Y94: 2019 | Z94: 1.05720708 | AA94: 62232 | AB94: =IFERROR(IF(Table3[[#This Row],[Year provided (*)]]>2019,VLOOKUP(Table3[[#This Row],[Service Catchment]],'Catchment Demand - Pathway'!$C$8:$M$8,11,FALSE),""),"") ->  | AC94: =_xlfn.IFS(Table3[[#This Row],[Year provided (*)]]=2019,0,Table3[[#This Row],[Year provided (*)]]=2024,Table3[[#This Row],[Gross Cost of the trunk infrastructure]]/SUMIFS($AH$17:$AH$107,$Y$17:$Y$107,"2024",$E$17:$E$107,Table3[[#This Row],[Service Catchment]])) -> 0 | AD94: =IF(AND(Table3[[#This Row],[Spare Capacity %]]>30%,Table3[[#This Row],[Share of the total Cost with the same year of provision %]]>20%),(1-Table3[[#This Row],[Spare Capacity %]]),1) -> 1 | AE94: =IF(Table3[[#This Row],[ Terminal Value Analysis]]<0,0,Table3[[#This Row],[ Terminal Value Analysis]]) -> 1 | AF94: 230491 | AG94: 246989 | AH94: 207906 | AI94: =Table3[[#This Row],[Present Day Value]]*Table3[[#This Row],[Final Terminal value adjustment %]] -> 207906 | AJ94: 207906 | AK94: =Table3[[#This Row],[Present Day Value]]*Table3[[#This Row],[Final Terminal value adjustment %]] -> 207906
B95: APT132 | C95: STF-SP-001 | D95: Cycle Route (Secondary) | E95: Citywide | F95: Kedron Brook Bikeway (Shand Street Park to Bilston Street Park) | H95: 1501 | M95: 29826 | O95: 1019559 | P95: 2016 | Q95: 0.01 | S95: 173325 | T95: 155075 | U95: 0.075 | V95: 101097 | Y95: 2019 | Z95: 1.05720708 | AA95: 1449056 | AB95: =IFERROR(IF(Table3[[#This Row],[Year provided (*)]]>2019,VLOOKUP(Table3[[#This Row],[Service Catchment]],'Catchment Demand - Pathway'!$C$8:$M$8,11,FALSE),""),"") ->  | AC95: =_xlfn.IFS(Table3[[#This Row],[Year provided (*)]]=2019,0,Table3[[#This Row],[Year provided (*)]]=2024,Table3[[#This Row],[Gross Cost of the trunk infrastructure]]/SUMIFS($AH$17:$AH$107,$Y$17:$Y$107,"2024",$E$17:$E$107,Table3[[#This Row],[Service Catchment]])) -> 0 | AD95: =IF(AND(Table3[[#This Row],[Spare Capacity %]]>30%,Table3[[#This Row],[Share of the total Cost with the same year of provision %]]>20%),(1-Table3[[#This Row],[Spare Capacity %]]),1) -> 1 | AE95: =IF(Table3[[#This Row],[ Terminal Value Analysis]]<0,0,Table3[[#This Row],[ Terminal Value Analysis]]) -> 1 | AF95: 1478882 | AG95: 1564072 | AH95: 1316576 | AI95: =Table3[[#This Row],[Present Day Value]]*Table3[[#This Row],[Final Terminal value adjustment %]] -> 1316576 | AJ95: 1316576 | AK95: =Table3[[#This Row],[Present Day Value]]*Table3[[#This Row],[Final Terminal value adjustment %]] -> 1316576
B96: APT194 | C96: SVH-SP-001 | D96: Cycle Route (Secondary) | E96: Citywide | F96: Perrin Creek Bikeway (Darcy Road to Foxton Street) | H96: 701 | M96: 65040 | O96: 476157 | P96: 2016 | Q96: 0.01 | S96: 80947 | T96: 72424 | U96: 0.15 | V96: 94429 | Y96: 2024 | Z96: 1.159916788 | AA96: 723957 | AB96: =IFERROR(IF(Table3[[#This Row],[Year provided (*)]]>2019,VLOOKUP(Table3[[#This Row],[Service Catchment]],'Catchment Demand - Pathway'!$C$8:$M$8,11,FALSE),""),"") -> 0.4045644831 | AC96: =_xlfn.IFS(Table3[[#This Row],[Year provided (*)]]=2019,0,Table3[[#This Row],[Year provided (*)]]=2024,Table3[[#This Row],[Gross Cost of the trunk infrastructure]]/SUMIFS($AH$17:$AH$107,$Y$17:$Y$107,"2024",$E$17:$E$107,Table3[[#This Row],[Service Catchment]])) -> 0.004011930051 | AD96: =IF(AND(Table3[[#This Row],[Spare Capacity %]]>30%,Table3[[#This Row],[Share of the total Cost with the same year of provision %]]>20%),(1-Table3[[#This Row],[Spare Capacity %]]),1) -> 1 | AE96: =IF(Table3[[#This Row],[ Terminal Value Analysis]]<0,0,Table3[[#This Row],[ Terminal Value Analysis]]) -> 1 | AF96: 788997 | AG96: 918975 | AH96: 580508 | AI96: =Table3[[#This Row],[Present Day Value]]*Table3[[#This Row],[Final Terminal value adjustment %]] -> 580508 | AJ96: 580508 | AK96: =Table3[[#This Row],[Present Day Value]]*Table3[[#This Row],[Final Terminal value adjustment %]] -> 580508
B97: APT73 | C97: TAI-SP-004 | D97: Cycle Route (Secondary) | E97: Citywide | F97: Cabbage Tree Creek Bikeway (Roghan Road Park (no. 335) to Taigum Place Park) | H97: 204 | M97: 31056 | O97: 153744 | P97: 2016 | Q97: 0.01 | S97: 26136 | T97: 23384 | U97: 0.15 | V97: 30490 | Y97: 2024 | Z97: 1.159916788 | AA97: 233754 | AB97: =IFERROR(IF(Table3[[#This Row],[Year provided (*)]]>2019,VLOOKUP(Table3[[#This Row],[Service Catchment]],'Catchment Demand - Pathway'!$C$8:$M$8,11,FALSE),""),"") -> 0.4045644831 | AC97: =_xlfn.IFS(Table3[[#This Row],[Year provided (*)]]=2019,0,Table3[[#This Row],[Year provided (*)]]=2024,Table3[[#This Row],[Gross Cost of the trunk infrastructure]]/SUMIFS($AH$17:$AH$107,$Y$17:$Y$107,"2024",$E$17:$E$107,Table3[[#This Row],[Service Catchment]])) -> 0.001346518677 | AD97: =IF(AND(Table3[[#This Row],[Spare Capacity %]]>30%,Table3[[#This Row],[Share of the total Cost with the same year of provision %]]>20%),(1-Table3[[#This Row],[Spare Capacity %]]),1) -> 1 | AE97: =IF(Table3[[#This Row],[ Terminal Value Analysis]]<0,0,Table3[[#This Row],[ Terminal Value Analysis]]) -> 1 | AF97: 264810 | AG97: 308974 | AH97: 195176 | AI97: =Table3[[#This Row],[Present Day Value]]*Table3[[#This Row],[Final Terminal value adjustment %]] -> 195176 | AJ97: 195176 | AK97: =Table3[[#This Row],[Present Day Value]]*Table3[[#This Row],[Final Terminal value adjustment %]] -> 195176
B98: APT191 | C98: TOO-SP-002 | D98: Cycle Route (Primary) | E98: Citywide | F98: Bicentennial Bikeway - Stage 5 (Regatta Park to Glen Road) | H98: 457 | M98: 5447302 | O98: 310419 | P98: 2016 | Q98: 0.01 | S98: 52771 | T98: 47215 | U98: 0.075 | V98: 30780 | Y98: 2019 | Z98: 1.05720708 | AA98: 441185 | AB98: =IFERROR(IF(Table3[[#This Row],[Year provided (*)]]>2019,VLOOKUP(Table3[[#This Row],[Service Catchment]],'Catchment Demand - Pathway'!$C$8:$M$8,11,FALSE),""),"") ->  | AC98: =_xlfn.IFS(Table3[[#This Row],[Year provided (*)]]=2019,0,Table3[[#This Row],[Year provided (*)]]=2024,Table3[[#This Row],[Gross Cost of the trunk infrastructure]]/SUMIFS($AH$17:$AH$107,$Y$17:$Y$107,"2024",$E$17:$E$107,Table3[[#This Row],[Service Catchment]])) -> 0 | AD98: =IF(AND(Table3[[#This Row],[Spare Capacity %]]>30%,Table3[[#This Row],[Share of the total Cost with the same year of provision %]]>20%),(1-Table3[[#This Row],[Spare Capacity %]]),1) -> 1 | AE98: =IF(Table3[[#This Row],[ Terminal Value Analysis]]<0,0,Table3[[#This Row],[ Terminal Value Analysis]]) -> 1 | AF98: 5888487 | AG98: 6332572 | AH98: 5330516 | AI98: =Table3[[#This Row],[Present Day Value]]*Table3[[#This Row],[Final Terminal value adjustment %]] -> 5330516 | AJ98: 5330516 | AK98: =Table3[[#This Row],[Present Day Value]]*Table3[[#This Row],[Final Terminal value adjustment %]] -> 5330516
B99: APT173 | C99: TRF-RW-001 | D99: RiverWalk | E99: Citywide | F99: Teneriffe (Riverside of 17-37 Skyring Terrace, Teneriffe) | H99: 220 | M99: 0 | O99: 639196 | P99: 2016 | Q99: 0.01 | S99: 108663 | T99: 97222 | U99: 0.15 | V99: 126762 | Y99: 2024 | Z99: 1.159916788 | AA99: 971843 | AB99: =IFERROR(IF(Table3[[#This Row],[Year provided (*)]]>2019,VLOOKUP(Table3[[#This Row],[Service Catchment]],'Catchment Demand - Pathway'!$C$8:$M$8,11,FALSE),""),"") -> 0.4045644831 | AC99: =_xlfn.IFS(Table3[[#This Row],[Year provided (*)]]=2019,0,Table3[[#This Row],[Year provided (*)]]=2024,Table3[[#This Row],[Gross Cost of the trunk infrastructure]]/SUMIFS($AH$17:$AH$107,$Y$17:$Y$107,"2024",$E$17:$E$107,Table3[[#This Row],[Service Catchment]])) -> 0.004941674222 | AD99: =IF(AND(Table3[[#This Row],[Spare Capacity %]]>30%,Table3[[#This Row],[Share of the total Cost with the same year of provision %]]>20%),(1-Table3[[#This Row],[Spare Capacity %]]),1) -> 1 | AE99: =IF(Table3[[#This Row],[ Terminal Value Analysis]]<0,0,Table3[[#This Row],[ Terminal Value Analysis]]) -> 1 | AF99: 971843 | AG99: 1127257 | AH99: 712077 | AI99: =Table3[[#This Row],[Present Day Value]]*Table3[[#This Row],[Final Terminal value adjustment %]] -> 712077 | AJ99: 712077 | AK99: =Table3[[#This Row],[Present Day Value]]*Table3[[#This Row],[Final Terminal value adjustment %]] -> 712077
B100: APT254 | C100: UMG-SP-002 | D100: Cycle Route (Secondary) | E100: Citywide | F100: Mimosa Creek Bikeway (Hibiscus Sports Centre to Klumpp Road/Mains Road intersection) | H100: 594 | M100: 35062 | O100: 403597 | P100: 2016 | Q100: 0.01 | S100: 68611 | T100: 61387 | U100: 0.15 | V100: 80039 | Y100: 2024 | Z100: 1.159916788 | AA100: 613634 | AB100: =IFERROR(IF(Table3[[#This Row],[Year provided (*)]]>2019,VLOOKUP(Table3[[#This Row],[Service Catchment]],'Catchment Demand - Pathway'!$C$8:$M$8,11,FALSE),""),"") -> 0.4045644831 | AC100: =_xlfn.IFS(Table3[[#This Row],[Year provided (*)]]=2019,0,Table3[[#This Row],[Year provided (*)]]=2024,Table3[[#This Row],[Gross Cost of the trunk infrastructure]]/SUMIFS($AH$17:$AH$107,$Y$17:$Y$107,"2024",$E$17:$E$107,Table3[[#This Row],[Service Catchment]])) -> 0.00329852075 | AD100: =IF(AND(Table3[[#This Row],[Spare Capacity %]]>30%,Table3[[#This Row],[Share of the total Cost with the same year of provision %]]>20%),(1-Table3[[#This Row],[Spare Capacity %]]),1) -> 1 | AE100: =IF(Table3[[#This Row],[ Terminal Value Analysis]]<0,0,Table3[[#This Row],[ Terminal Value Analysis]]) -> 1 | AF100: 648696 | AG100: 754484 | AH100: 476600 | AI100: =Table3[[#This Row],[Present Day Value]]*Table3[[#This Row],[Final Terminal value adjustment %]] -> 476600 | AJ100: 476600 | AK100: =Table3[[#This Row],[Present Day Value]]*Table3[[#This Row],[Final Terminal value adjustment %]] -> 476600
B101: APT289 | C101: WCL-SP-004 | D101: Cycle Route (Secondary) | E101: Citywide | F101: Bullockhead Creek Bikeway (Ipswich Motorway ramp to Boundary Road) | H101: 676 | M101: 630986 | O101: 459180 | P101: 2016 | Q101: 0.01 | S101: 78061 | T101: 69841 | U101: 0.15 | V101: 91062 | Y101: 2024 | Z101: 1.159916788 | AA101: 698144 | AB101: =IFERROR(IF(Table3[[#This Row],[Year provided (*)]]>2019,VLOOKUP(Table3[[#This Row],[Service Catchment]],'Catchment Demand - Pathway'!$C$8:$M$8,11,FALSE),""),"") -> 0.4045644831 | AC101: =_xlfn.IFS(Table3[[#This Row],[Year provided (*)]]=2019,0,Table3[[#This Row],[Year provided (*)]]=2024,Table3[[#This Row],[Gross Cost of the trunk infrastructure]]/SUMIFS($AH$17:$AH$107,$Y$17:$Y$107,"2024",$E$17:$E$107,Table3[[#This Row],[Service Catchment]])) -> 0.006758424415 | AD101: =IF(AND(Table3[[#This Row],[Spare Capacity %]]>30%,Table3[[#This Row],[Share of the total Cost with the same year of provision %]]>20%),(1-Table3[[#This Row],[Spare Capacity %]]),1) -> 1 | AE101: =IF(Table3[[#This Row],[ Terminal Value Analysis]]<0,0,Table3[[#This Row],[ Terminal Value Analysis]]) -> 1 | AF101: 1329130 | AG101: 1578584 | AH101: 997176 | AI101: =Table3[[#This Row],[Present Day Value]]*Table3[[#This Row],[Final Terminal value adjustment %]] -> 997176 | AJ101: 997176 | AK101: =Table3[[#This Row],[Present Day Value]]*Table3[[#This Row],[Final Terminal value adjustment %]] -> 997176
B102: APT173 | C102: WSR-SP-001 | D102: Cycle Route (Primary) | E102: Citywide | F102: Enoggera Creek Bikeway (Under ICB Bridge to Lutwyche Road) | H102: 183 | M102: 25458 | O102: 137516 | P102: 2016 | Q102: 0.01 | S102: 23378 | T102: 20916 | U102: 0.075 | V102: 13636 | Y102: 2019 | Z102: 1.05720708 | AA102: 195446 | AB102: =IFERROR(IF(Table3[[#This Row],[Year provided (*)]]>2019,VLOOKUP(Table3[[#This Row],[Service Catchment]],'Catchment Demand - Pathway'!$C$8:$M$8,11,FALSE),""),"") ->  | AC102: =_xlfn.IFS(Table3[[#This Row],[Year provided (*)]]=2019,0,Table3[[#This Row],[Year provided (*)]]=2024,Table3[[#This Row],[Gross Cost of the trunk infrastructure]]/SUMIFS($AH$17:$AH$107,$Y$17:$Y$107,"2024",$E$17:$E$107,Table3[[#This Row],[Service Catchment]])) -> 0 | AD102: =IF(AND(Table3[[#This Row],[Spare Capacity %]]>30%,Table3[[#This Row],[Share of the total Cost with the same year of provision %]]>20%),(1-Table3[[#This Row],[Spare Capacity %]]),1) -> 1 | AE102: =IF(Table3[[#This Row],[ Terminal Value Analysis]]<0,0,Table3[[#This Row],[ Terminal Value Analysis]]) -> 1 | AF102: 220904 | AG102: 234042 | AH102: 197008 | AI102: =Table3[[#This Row],[Present Day Value]]*Table3[[#This Row],[Final Terminal value adjustment %]] -> 197008 | AJ102: 197008 | AK102: =Table3[[#This Row],[Present Day Value]]*Table3[[#This Row],[Final Terminal value adjustment %]] -> 197008
B103: APT193 | C103: KAN-GB-001 | D103: Cycle Route (Primary) | E103: Citywide | F103: Kangaroo Point Green Bridge | H103: 410 | M103: 0 | N103: 225289 | O103: =ROUND(N103*H103,0) -> 92368490 | P103: 2016 | Q103: 0.01 | S103: 15702643 | T103: 14049247 | U103: 0.15 | V103: 18318057 | Y103: 2024 | Z103: 1.159916788 | AA103: 140438437 | AB103: =IFERROR(IF(Table3[[#This Row],[Year provided (*)]]>2019,VLOOKUP(Table3[[#This Row],[Service Catchment]],'Catchment Demand - Pathway'!$C$8:$M$8,11,FALSE),""),"") -> 0.4045644831 | AC103: =_xlfn.IFS(Table3[[#This Row],[Year provided (*)]]=2019,0,Table3[[#This Row],[Year provided (*)]]=2024,Table3[[#This Row],[Gross Cost of the trunk infrastructure]]/SUMIFS($AH$17:$AH$107,$Y$17:$Y$107,"2024",$E$17:$E$107,Table3[[#This Row],[Service Catchment]])) -> 0.714108147 | AD103: =IF(AND(Table3[[#This Row],[Spare Capacity %]]>30%,Table3[[#This Row],[Share of the total Cost with the same year of provision %]]>20%),(1-Table3[[#This Row],[Spare Capacity %]]),1) -> 0.5954355169 | AE103: =IF(Table3[[#This Row],[ Terminal Value Analysis]]<0,0,Table3[[#This Row],[ Terminal Value Analysis]]) -> 0.5954355169 | AF103: 140438437 | AG103: 162896901 | AH103: 102900404 | AI103: =Table3[[#This Row],[Present Day Value]]*Table3[[#This Row],[Final Terminal value adjustment %]] -> 61270555.25 | AJ103: 102900404 | AK103: =Table3[[#This Row],[Present Day Value]]*Table3[[#This Row],[Final Terminal value adjustment %]] -> 61270555.25
B104: APT153 | C104: NWS-GB-001 | D104: Cycle Route (Primary) | E104: Citywide | F104: Breakfast Creek Green Bridge | H104: 123 | M104: 0 | N104: 133646 | O104: =ROUND(N104*H104,0) -> 16438458 | P104: 2016 | Q104: 0.01 | S104: 2794538 | T104: 2500289 | U104: 0.15 | V104: 3259993 | Y104: 2024 | Z104: 1.159916788 | AA104: 24993278 | AB104: =IFERROR(IF(Table3[[#This Row],[Year provided (*)]]>2019,VLOOKUP(Table3[[#This Row],[Service Catchment]],'Catchment Demand - Pathway'!$C$8:$M$8,11,FALSE),""),"") -> 0.4045644831 | AC104: =_xlfn.IFS(Table3[[#This Row],[Year provided (*)]]=2019,0,Table3[[#This Row],[Year provided (*)]]=2024,Table3[[#This Row],[Gross Cost of the trunk infrastructure]]/SUMIFS($AH$17:$AH$107,$Y$17:$Y$107,"2024",$E$17:$E$107,Table3[[#This Row],[Service Catchment]])) -> 0.127087027 | AD104: =IF(AND(Table3[[#This Row],[Spare Capacity %]]>30%,Table3[[#This Row],[Share of the total Cost with the same year of provision %]]>20%),(1-Table3[[#This Row],[Spare Capacity %]]),1) -> 1 | AE104: =IF(Table3[[#This Row],[ Terminal Value Analysis]]<0,0,Table3[[#This Row],[ Terminal Value Analysis]]) -> 1 | AF104: 24993278 | AG104: 28990123 | AH104: 18312782 | AI104: =Table3[[#This Row],[Present Day Value]]*Table3[[#This Row],[Final Terminal value adjustment %]] -> 18312782 | AJ104: 18312782 | AK104: =Table3[[#This Row],[Present Day Value]]*Table3[[#This Row],[Final Terminal value adjustment %]] -> 18312782
B105: APT211, APT210 | C105: IND-RW-001 | D105: RiverWalk | E105: Citywide | F105: Indooroopilly Riverwalk (Witton Road to Witton Barracks) | H105: 692 | M105: 0 | N105: 42349 | O105: =ROUND(N105*H105,0) -> 29305508 | P105: 2016 | Q105: 0.01 | S105: 4981936 | T105: 4457368 | U105: 0.15 | V105: 5811722 | Y105: 2024 | Z105: 1.159916788 | AA105: 44556534 | AB105: =IFERROR(IF(Table3[[#This Row],[Year provided (*)]]>2019,VLOOKUP(Table3[[#This Row],[Service Catchment]],'Catchment Demand - Pathway'!$C$8:$M$8,11,FALSE),""),"") -> 0.4045644831 | AC105: =_xlfn.IFS(Table3[[#This Row],[Year provided (*)]]=2019,0,Table3[[#This Row],[Year provided (*)]]=2024,Table3[[#This Row],[Gross Cost of the trunk infrastructure]]/SUMIFS($AH$17:$AH$107,$Y$17:$Y$107,"2024",$E$17:$E$107,Table3[[#This Row],[Service Catchment]])) -> 0.226563216 | AD105: =IF(AND(Table3[[#This Row],[Spare Capacity %]]>30%,Table3[[#This Row],[Share of the total Cost with the same year of provision %]]>20%),(1-Table3[[#This Row],[Spare Capacity %]]),1) -> 0.5954355169 | AE105: =IF(Table3[[#This Row],[ Terminal Value Analysis]]<0,0,Table3[[#This Row],[ Terminal Value Analysis]]) -> 0.5954355169 | AF105: 44556534 | AG105: 51681872 | AH105: 32646941 | AI105: =Table3[[#This Row],[Present Day Value]]*Table3[[#This Row],[Final Terminal value adjustment %]] -> 19439148.19 | AJ105: 32646941 | AK105: =Table3[[#This Row],[Present Day Value]]*Table3[[#This Row],[Final Terminal value adjustment %]] -> 19439148.19
B106: APT312 | C106: PAL-SP-001 | D106: Cycle Route (Secondary) | E106: Citywide | F106: Pallara Bikeway (Sweets Road to Vied Road) | H106: 441 | M106: 0 | N106: 679 | O106: =ROUND(N106*H106,0) -> 299439 | P106: 2016 | Q106: 0.01 | S106: 50905 | T106: 45545 | U106: 0.15 | V106: 59383 | Y106: 2024 | Z106: 1.159916788 | AA106: 455272 | AB106: =IFERROR(IF(Table3[[#This Row],[Year provided (*)]]>2019,VLOOKUP(Table3[[#This Row],[Service Catchment]],'Catchment Demand - Pathway'!$C$8:$M$8,11,FALSE),""),"") -> 0.4045644831 | AC106: =_xlfn.IFS(Table3[[#This Row],[Year provided (*)]]=2019,0,Table3[[#This Row],[Year provided (*)]]=2024,Table3[[#This Row],[Gross Cost of the trunk infrastructure]]/SUMIFS($AH$17:$AH$107,$Y$17:$Y$107,"2024",$E$17:$E$107,Table3[[#This Row],[Service Catchment]])) -> 0.002314989053 | AD106: =IF(AND(Table3[[#This Row],[Spare Capacity %]]>30%,Table3[[#This Row],[Share of the total Cost with the same year of provision %]]>20%),(1-Table3[[#This Row],[Spare Capacity %]]),1) -> 1 | AE106: =IF(Table3[[#This Row],[ Terminal Value Analysis]]<0,0,Table3[[#This Row],[ Terminal Value Analysis]]) -> 1 | AF106: 455272 | AG106: 528078 | AH106: 333582 | AI106: =Table3[[#This Row],[Present Day Value]]*Table3[[#This Row],[Final Terminal value adjustment %]] -> 333582 | AJ106: 333582 | AK106: =Table3[[#This Row],[Present Day Value]]*Table3[[#This Row],[Final Terminal value adjustment %]] -> 333582
B107: APT312 | C107: PAL-SP-002 | D107: Cycle Route (Secondary) | E107: Citywide | F107: Pallara Bikeway (Kraft Road to Sweets Road) | H107: 491 | M107: 38651 | N107: 679 | O107: =ROUND(N107*H107,0) -> 333389 | P107: 2016 | Q107: 0.01 | S107: 56676 | T107: 50708 | U107: 0.15 | V107: 66116 | Y107: 2024 | Z107: 1.159916788 | AA107: 506889 | AB107: =IFERROR(IF(Table3[[#This Row],[Year provided (*)]]>2019,VLOOKUP(Table3[[#This Row],[Service Catchment]],'Catchment Demand - Pathway'!$C$8:$M$8,11,FALSE),""),"") -> 0.4045644831 | AC107: =_xlfn.IFS(Table3[[#This Row],[Year provided (*)]]=2019,0,Table3[[#This Row],[Year provided (*)]]=2024,Table3[[#This Row],[Gross Cost of the trunk infrastructure]]/SUMIFS($AH$17:$AH$107,$Y$17:$Y$107,"2024",$E$17:$E$107,Table3[[#This Row],[Service Catchment]])) -> 0.002773988139 | AD107: =IF(AND(Table3[[#This Row],[Spare Capacity %]]>30%,Table3[[#This Row],[Share of the total Cost with the same year of provision %]]>20%),(1-Table3[[#This Row],[Spare Capacity %]]),1) -> 1 | AE107: =IF(Table3[[#This Row],[ Terminal Value Analysis]]<0,0,Table3[[#This Row],[ Terminal Value Analysis]]) -> 1 | AF107: 545540 | AG107: 635042 | AH107: 401150 | AI107: =Table3[[#This Row],[Present Day Value]]*Table3[[#This Row],[Final Terminal value adjustment %]] -> 401150 | AJ107: 401150 | AK107: =Table3[[#This Row],[Present Day Value]]*Table3[[#This Row],[Final Terminal value adjustment %]] -> 401150
AF108: =SUBTOTAL(109,AF16:AF107) -> 301074263 | AG108: =SUBTOTAL(109,AG16:AG107) -> 347211929 | AH108: =SUBTOTAL(109,AH16:AH107) -> 226868679 | AI108: =SUBTOTAL(109,AI16:AI107) -> 172031037.4 | AJ108: =SUBTOTAL(109,AJ16:AJ107) -> 226868679 | AK108: =SUM(AK17:AK107) -> 172031037.4

Sheet Future Trunk Assets - Ferry
B2: ='Navigation Pane'!B2 -> Brisbane City Council
B4: Transport
A5: Return to "Future Trunk Assets"
B6: Future Trunk Assets - Ferry
B9: Data Refernces | E9: Insert references to relevant data sources which support the scope, values and timing entered in the Spreadsheet below
B12: Land Valuation Type | D12: Location
H14: Asset Data | AL14: Catchment Asset Allocation | AN14: Asset Usage | AQ14: Cost Allocation | AS14: Cost Allocation for Service Cost Schedule
B15: Basic Asset Data | G15: Asset Attributes | J15: Land Attributes | N15: Basic Asset Valuation | AA15: Refined Asset Value | AL15: Citywide | AN15: =AL15 -> Citywide | AO15: TOTALS | AQ15: =AL15 -> Citywide | AS15: Citywide
B16: Asset ID | C16: LGIP ID | D16: Project Type | E16: Service Catchment | F16: Description | G16: Unit Rate Type (*) | H16: Length/unit (*) | I16: Hiercahy/name | J16: Land Location/Type | K16: Size of land (ha) (*) | L16: Unit Cost | M16: Land Value | N16: Unit Rate | O16: Baseline Valuation | P16: Valuation Year | Q16: Base Est Escalation | R16: Site/Condition | S16: Utility Rate | T16: Utility Cost | U16: Construction Contingency Rate | V16: Construction Contingency Cost ($) | W16: Indirect costs - indirect and overhead costs to deliver the project (17%of construction cost) ($) | X16: Project owners costs – master planning, survey, geotechnical, design, project management, environments (13% of indirect and construction costs) ($) | Y16: Grants and Subsidies ($) | Z16: Gross Value | AA16: Year provided (*) | AB16: Escalation | AC16: Discounting | AD16: % Renewal | AE16: Spare Capacity % | AF16: Share of the total Cost with the same year of provision % | AG16: Terminal Value Analysis | AH16: Final Terminal value adjustment % | AI16: Gross Cost (escalated) | AJ16: Present Day Value | AK16: NPV Total Asset Cost after Terminal Value Adjustment
B17: Councils ID (from GIS, FAR, AMA etc.) | C17: ID from the LGIP drawings | O17: May be calculated from unit rates OR unique values can be direct entered | AD17: % of cost which is renewal related | AE17: Applicable to project year of provision at 2024 | AH17: % of cost which is relevant for Summary Cost Calculation | AI17: Gross cost (used for CF forecasts) | AJ17: Adjusted Current Day Value | AK17: For Summary Cost Calculation
B18: APT193 | C18: BNE-FT-004 | D18: DDA compliance, flood resilience | E18: Citywide | F18: Eagle Street Pier Ferry Terminal | G18: Ferry terminal - upgrade | N18: =IFERROR(O18/H18,"") ->  | O18: 8020000 | P18: 2016 | Q18: 1 | R18: Existing unsignallised Int | S18: 0 | T18: =O18*S18 -> 0 | U18: =IF(AA18="","",IF(AA18<=YEAR+5,0.075,IF(AND(AA18>YEAR+5,AA18<=YEAR+10),0.15,IF(AND(AA18>YEAR+10,AA18<=YEAR+20),0.2,IF(AA18>YEAR+20,0.25,""))))) -> 0.15 | V18: =ROUND((O18+W18+X18)*U18,0) -> 1590486 | W18: =ROUND(O18*17%,0) -> 1363400 | X18: =ROUND((O18+W18)*13%,0) -> 1219842 | Z18: =ROUND((M18+O18+T18+V18+W18+X18-Y18),0) -> 12193728 | AA18: 2024 | AB18: =(1+PPI)^(AA18-YEAR) -> 1.159916788 | AC18: =IF(AA18<YEAR,1,IF('General Input Sheet'!$E$32="WACC1",1/(1+WACC1)^(AA18-YEAR), IF('General Input Sheet'!$E$32="WACC2",1/(1+WACC2)^(AA18-YEAR),"Check WACC Option in General Input Sheet"))) -> 0.6316903693 | AD18: 0 | AE18: =IFERROR(IF(AA18>2019,VLOOKUP(E18,'Catchment Demand - Ferry'!$C$9:$M$9,11,FALSE),""),"") -> 0.4042989042 | AF18: =_xlfn.IFS(AA18=2019,0,AA18=2024,Z18/SUMIFS($Z$18:$Z$27,$AA$18:$AA$27,"2024",$E$18:$E$27,E18)) -> 0.1761496975 | AG18: =IF(AND(AE18>30%,AF18>20%),(1-AE18),1) -> 1 | AH18: =IF(AG18<0,0,AG18) -> 1 | AI18: =IFERROR(ROUND((Z18*AB18*(1-AD18))+((1+Landind)^(AA18-YEAR)*M18),0),0) -> 14143710 | AJ18: =IFERROR(ROUND((AI18*AC18),0),0) -> 8934445 | AK18: =AJ18*AH18 -> 8934445 | AL18: Y | AN18: 1 | AO18: =SUM(AN18) -> 1 | AQ18: =IF(AN18="","",(AN18/AO18)*$AJ18) -> 8934445 | AS18: =IF(AN18="","",(AN18/AO18)*$AJ18)*AH18 -> 8934445
B19: APT193 | C19: EAB-FT-001 | D19: DDA compliance, flood resilience | E19: Citywide | F19: Mowbray Park Ferry Terminal | G19: Ferry terminal - upgrade | N19: =IFERROR(O19/H19,"") ->  | O19: 7740000 | P19: 2016 | Q19: 1 | R19: Existing signallised Int | S19: 0 | T19: =O19*S19 -> 0 | U19: 0.15 | V19: =ROUND((O19+W19+X19)*U19,0) -> 1534958 | W19: =ROUND(O19*17%,0) -> 1315800 | X19: =ROUND((O19+W19)*13%,0) -> 1177254 | Z19: =ROUND((M19+O19+T19+V19+W19+X19-Y19),0) -> 11768012 | AA19: 2024 | AB19: 1.159916788 | AC19: =IF(AA19<YEAR,1,IF('General Input Sheet'!$E$32="WACC1",1/(1+WACC1)^(AA19-YEAR), IF('General Input Sheet'!$E$32="WACC2",1/(1+WACC2)^(AA19-YEAR),"Check WACC Option in General Input Sheet"))) -> 0.6316903693 | AD19: 0 | AE19: =IFERROR(IF(AA19>2019,VLOOKUP(E19,'Catchment Demand - Ferry'!$C$9:$M$9,11,FALSE),""),"") -> 0.4042989042 | AF19: =_xlfn.IFS(AA19=2019,0,AA19=2024,Z19/SUMIFS($Z$18:$Z$27,$AA$18:$AA$27,"2024",$E$18:$E$27,E19)) -> 0.1699998355 | AG19: =IF(AND(AE19>30%,AF19>20%),(1-AE19),1) -> 1 | AH19: =IF(AG19<0,0,AG19) -> 1 | AI19: 13649915 | AJ19: 8622520 | AK19: =AJ19*AH19 -> 8622520 | AL19: Y | AN19: 1 | AO19: =SUM(AN19) -> 1 | AQ19: =IF(AN19="","",(AN19/AO19)*$AJ19) -> 8622520 | AS19: =IF(AN19="","",(AN19/AO19)*$AJ19)*AH19 -> 8622520
B20: APT193 | C20: KAN-FT-002 | D20: DDA compliance, flood resilience | E20: Citywide | F20: Thornton Street Ferry Terminal | G20: Ferry terminal - upgrade | O20: 8675000 | P20: 2016 | Q20: 1 | R20: Existing signallised Int | S20: 0 | T20: 0 | U20: 0.075 | V20: 860191 | W20: 1474750 | X20: 1319468 | Z20: =ROUND((M20+O20+T20+V20+W20+X20-Y20),0) -> 12329409 | AA20: 2019 | AB20: 1.05720708 | AC20: =IF(AA20<YEAR,1,IF('General Input Sheet'!$E$32="WACC1",1/(1+WACC1)^(AA20-YEAR), IF('General Input Sheet'!$E$32="WACC2",1/(1+WACC2)^(AA20-YEAR),"Check WACC Option in General Input Sheet"))) -> 0.8417615727 | AD20: 0 | AE20: =IFERROR(IF(AA20>2019,VLOOKUP(E20,'Catchment Demand - Ferry'!$C$9:$M$9,11,FALSE),""),"") ->  | AF20: =_xlfn.IFS(AA20=2019,0,AA20=2024,Z20/SUMIFS($Z$18:$Z$27,$AA$18:$AA$27,"2024",$E$18:$E$27,E20)) -> 0 | AG20: 1 | AH20: 1 | AI20: 13034738 | AJ20: 10972142 | AK20: 10972142 | AL20: Y | AN20: 1 | AO20: 1 | AQ20: 10972142 | AS20: 10972142
B21: APT193 | C21: KAN-FT-003 | D21: DDA compliance, flood resilience | E21: Citywide | F21: Dockside Ferry Terminal | G21: Ferry terminal - upgrade | O21: 8075000 | P21: 2016 | Q21: 1 | R21: Upgrade | S21: 0 | T21: 0 | U21: 0.15 | V21: 1601394 | W21: 1372750 | X21: 1228208 | Z21: =ROUND((M21+O21+T21+V21+W21+X21-Y21),0) -> 12277352 | AA21: 2024 | AB21: 1.159916788 | AC21: =IF(AA21<YEAR,1,IF('General Input Sheet'!$E$32="WACC1",1/(1+WACC1)^(AA21-YEAR), IF('General Input Sheet'!$E$32="WACC2",1/(1+WACC2)^(AA21-YEAR),"Check WACC Option in General Input Sheet"))) -> 0.6316903693 | AD21: 0 | AE21: =IFERROR(IF(AA21>2019,VLOOKUP(E21,'Catchment Demand - Ferry'!$C$9:$M$9,11,FALSE),""),"") -> 0.4042989042 | AF21: =_xlfn.IFS(AA21=2019,0,AA21=2024,Z21/SUMIFS($Z$18:$Z$27,$AA$18:$AA$27,"2024",$E$18:$E$27,E21)) -> 0.1773577236 | AG21: 1 | AH21: 1 | AI21: 14240707 | AJ21: 8995717 | AK21: 8995717 | AL21: Y | AN21: 1 | AO21: 1 | AQ21: 8995717 | AS21: 8995717
B22: APT193 | C22: NRP-FT-001 | D22: DDA compliance, flood resilience | E22: Citywide | F22: Norman Park Ferry Terminal | G22: Ferry terminal - upgrade | O22: 7865000 | P22: 2016 | Q22: 1 | R22: Upgrade | S22: 0 | T22: 0 | U22: 0.075 | V22: 779874 | W22: 1337050 | X22: 1196267 | Z22: =ROUND((M22+O22+T22+V22+W22+X22-Y22),0) -> 11178191 | AA22: 2019 | AB22: 1.05720708 | AC22: =IF(AA22<YEAR,1,IF('General Input Sheet'!$E$32="WACC1",1/(1+WACC1)^(AA22-YEAR), IF('General Input Sheet'!$E$32="WACC2",1/(1+WACC2)^(AA22-YEAR),"Check WACC Option in General Input Sheet"))) -> 0.8417615727 | AD22: 0 | AE22: =IFERROR(IF(AA22>2019,VLOOKUP(E22,'Catchment Demand - Ferry'!$C$9:$M$9,11,FALSE),""),"") ->  | AF22: =_xlfn.IFS(AA22=2019,0,AA22=2024,Z22/SUMIFS($Z$18:$Z$27,$AA$18:$AA$27,"2024",$E$18:$E$27,E22)) -> 0 | AG22: 1 | AH22: 1 | AI22: 11817663 | AJ22: 9947655 | AK22: 9947655 | AL22: Y | AN22: 1 | AO22: 1 | AQ22: 9947655 | AS22: 9947655
B23: APT193 | C23: NWF-FT-002 | D23: DDA compliance, flood resilience | E23: Citywide | F23: New Farm Park Ferry Terminal | G23: Ferry terminal - upgrade | O23: 7440000 | P23: 2016 | Q23: 1 | R23: Upgrade | S23: 0 | T23: 0 | U23: 0.075 | V23: 737732 | W23: 1264800 | X23: 1131624 | Z23: 10574156 | AA23: 2019 | AB23: 1.05720708 | AC23: =IF(AA23<YEAR,1,IF('General Input Sheet'!$E$32="WACC1",1/(1+WACC1)^(AA23-YEAR), IF('General Input Sheet'!$E$32="WACC2",1/(1+WACC2)^(AA23-YEAR),"Check WACC Option in General Input Sheet"))) -> 0.8417615727 | AD23: 0 | AE23: =IFERROR(IF(AA23>2019,VLOOKUP(E23,'Catchment Demand - Ferry'!$C$9:$M$9,11,FALSE),""),"") ->  | AF23: =_xlfn.IFS(AA23=2019,0,AA23=2024,Z23/SUMIFS($Z$18:$Z$27,$AA$18:$AA$27,"2024",$E$18:$E$27,E23)) -> 0 | AG23: 1 | AH23: 1 | AI23: 11179073 | AJ23: 9410114 | AK23: 9410114 | AL23: Y | AN23: 1 | AO23: 1 | AQ23: 9410114 | AS23: 9410114
B24: APT192 | C24: SBR-FT-002 | D24: DDA compliance, flood resilience | E24: Citywide | F24: South Bank 1 and 2 Ferry Terminal | G24: Ferry terminal - upgrade | O24: 9600000 | P24: 2016 | Q24: 1 | R24: Upgrade | S24: 0 | T24: 0 | U24: 0.15 | V24: 1903824 | W24: 1632000 | X24: 1460160 | Z24: =ROUND((M24+O24+T24+V24+W24+X24-Y24),0) -> 14595984 | AA24: 2024 | AB24: 1.159916788 | AC24: =IF(AA24<YEAR,1,IF('General Input Sheet'!$E$32="WACC1",1/(1+WACC1)^(AA24-YEAR), IF('General Input Sheet'!$E$32="WACC2",1/(1+WACC2)^(AA24-YEAR),"Check WACC Option in General Input Sheet"))) -> 0.6316903693 | AD24: 0 | AE24: =IFERROR(IF(AA24>2019,VLOOKUP(E24,'Catchment Demand - Ferry'!$C$9:$M$9,11,FALSE),""),"") -> 0.4042989042 | AF24: =_xlfn.IFS(AA24=2019,0,AA24=2024,Z24/SUMIFS($Z$18:$Z$27,$AA$18:$AA$27,"2024",$E$18:$E$27,E24)) -> 0.2108525109 | AG24: 0.5957010958 | AH24: 0.5957010958 | AI24: 16930127 | AJ24: 10694598 | AK24: 6370783.748 | AL24: Y | AN24: 1 | AO24: 1 | AQ24: 10694598 | AS24: 6370783.748
B25: APT192 | C25: SBR-FT-003 | D25: DDA compliance, flood resilience | E25: Citywide | F25: South Bank 3 Ferry Terminal | G25: Ferry terminal - upgrade | O25: 8100000 | P25: 2016 | Q25: 1 | R25: Existing signallised Int | S25: 0 | T25: 0 | U25: 0.075 | V25: 803176 | W25: 1377000 | X25: 1232010 | Z25: 11512186 | AA25: 2019 | AB25: 1.05720708 | AC25: =IF(AA25<YEAR,1,IF('General Input Sheet'!$E$32="WACC1",1/(1+WACC1)^(AA25-YEAR), IF('General Input Sheet'!$E$32="WACC2",1/(1+WACC2)^(AA25-YEAR),"Check WACC Option in General Input Sheet"))) -> 0.8417615727 | AD25: 0 | AE25: =IFERROR(IF(AA25>2019,VLOOKUP(E25,'Catchment Demand - Ferry'!$C$9:$M$9,11,FALSE),""),"") ->  | AF25: =_xlfn.IFS(AA25=2019,0,AA25=2024,Z25/SUMIFS($Z$18:$Z$27,$AA$18:$AA$27,"2024",$E$18:$E$27,E25)) -> 0 | AG25: 1 | AH25: 1 | AI25: 12170765 | AJ25: 10244882 | AK25: 10244882 | AL25: Y | AN25: 1 | AO25: 1 | AQ25: 10244882 | AS25: 10244882
B26: APT212 | C26: SLU-FT-002 | D26: DDA compliance, flood resilience | E26: Citywide | F26: Guyatt Park Ferry Terminal | G26: Ferry terminal - upgrade | O26: 7875000 | P26: 2016 | Q26: 1 | R26: Existing unsignallised Int | S26: 0 | T26: 0 | U26: 0.075 | V26: 780865 | W26: 1338750 | X26: 1197788 | Z26: 11192403 | AA26: 2019 | AB26: 1.05720708 | AC26: =IF(AA26<YEAR,1,IF('General Input Sheet'!$E$32="WACC1",1/(1+WACC1)^(AA26-YEAR), IF('General Input Sheet'!$E$32="WACC2",1/(1+WACC2)^(AA26-YEAR),"Check WACC Option in General Input Sheet"))) -> 0.8417615727 | AD26: 0 | AE26: =IFERROR(IF(AA26>2019,VLOOKUP(E26,'Catchment Demand - Ferry'!$C$9:$M$9,11,FALSE),""),"") ->  | AF26: =_xlfn.IFS(AA26=2019,0,AA26=2024,Z26/SUMIFS($Z$18:$Z$27,$AA$18:$AA$27,"2024",$E$18:$E$27,E26)) -> 0 | AG26: 1 | AH26: 1 | AI26: 11832688 | AJ26: 9960302 | AK26: 9960302 | AL26: Y | AN26: 1 | AO26: 1 | AQ26: 9960302 | AS26: 9960302
B27: APT173 | C27: FVA-FT-001 | D27: New Ferry terminal | E27: Citywide | F27: Howard Smith Wharves Ferry Terminal | G27: Ferry terminal - new | O27: 12094455 | P27: 2016 | Q27: 1 | R27: New | U27: 0.15 | V27: 2398512 | W27: 2056057 | X27: 1839567 | Z27: =ROUND((M27+O27+T27+V27+W27+X27-Y27),0) -> 18388591 | AA27: 2024 | AB27: 1.159916788 | AC27: =IF(AA27<YEAR,1,IF('General Input Sheet'!$E$32="WACC1",1/(1+WACC1)^(AA27-YEAR), IF('General Input Sheet'!$E$32="WACC2",1/(1+WACC2)^(AA27-YEAR),"Check WACC Option in General Input Sheet"))) -> 0.6316903693 | AD27: 0 | AE27: =IFERROR(IF(AA27>2019,VLOOKUP(E27,'Catchment Demand - Ferry'!$C$9:$M$9,11,FALSE),""),"") -> 0.4042989042 | AF27: =_xlfn.IFS(AA27=2019,0,AA27=2024,Z27/SUMIFS($Z$18:$Z$27,$AA$18:$AA$27,"2024",$E$18:$E$27,E27)) -> 0.2656402326 | AG27: 0.5957010958 | AH27: 0.5957010958 | AI27: 21329235 | AJ27: =IFERROR(ROUND((AI27*AC27),0),0) -> 13473472 | AK27: 8026162.035 | AL27: Y | AN27: 1 | AO27: 1 | AQ27: 13473472 | AS27: 8026162.035
V28: =(O28+W28+X28)*U28 -> 0 | W28: =SUM(W18:W27) -> 14532357 | X28: =SUM(X18:X27) -> 13002188 | Z28: =SUM(Z18:Z27) -> 126010012 | AC28: 1 | AI28: =SUM(AI18:AI27) -> 140328621 | AJ28: =SUM(AJ18:AJ27) -> 101255847 | AK28: =SUM(AK18:AK27) -> 91484722.78

Sheet Catchment Demand - Pathway
B2: ='Navigation Pane'!B2 -> Brisbane City Council
B3: Pathway network
B5: Catchment Demand (Person trips per day)
B7: Catchment No | C7: Catchment Name (*) | D7: 2016 | E7: =D7+5 -> 2021 | F7: =E7+5 -> 2026 | G7: 2031 | H7: 2036 | J7: ="NPV Future Demand ("&(D7+1)& " - " & F7 &")" -> NPV Future Demand (2017 - 2026) | L7: ="Ultimate Demand" -> Ultimate Demand | M7: Spare Capacity
B8: 1 | C8: Citywide | D8: 2886302 | E8: 3095529 | F8: 3302455 | J8: =NPV(5.91%,E43:N43) -> 307844.9812 | L8: 4638511 | M8: =(L8-F8)/F8 -> 0.4045644831
C38: Totals | D38: =SUM(D8:D37) -> 2886302 | E38: =SUM(E8:E37) -> 3095529 | F38: =SUM(F8:F37) -> 3302455 | G38: =SUM(G8:G37) -> 0 | J38: =SUM(J8:J37) -> 307844.9812
B41: DETAILED Forecast Demand Growth Profile (OPTIONAL)
B42: Catchment No | C42: Catchment Name | D42: 2016 | E42: =D42 +1 -> 2017 | F42: =E42 +1 -> 2018 | G42: 2019 | H42: 2020 | I42: 2021 | J42: 2022 | K42: 2023 | L42: 2024 | M42: 2025 | N42: 2026 | O42: 2027 | P42: 2028 | Q42: 2029 | R42: 2030 | S42: 2031 | T42: 2032 | U42: 2033 | V42: 2034 | W42: 2035 | X42: 2036 | Y42: 2037 | Z42: 2038 | AA42: 2039 | AB42: 2040 | AC42: 2041 | AD42: 2042 | AE42: 2043 | AF42: 2044 | AG42: 2045 | AH42: 2046
B43: =B8 -> 1 | C43: =C8 -> Citywide | E43: =(E8-D8)/5 -> 41845.4 | F43: =E43 -> 41845.4 | G43: =F43 -> 41845.4 | H43: 41845.4 | I43: 41845.4 | J43: =(F8-E8)/5 -> 41385.2 | K43: =J43 -> 41385.2 | L43: =K43 -> 41385.2 | M43: 41385.2 | N43: 41385.2
B48: =B13 -> 0 | C48: 0

Sheet Catchment Demand - Ferry
B2: ='Navigation Pane'!B2 -> Brisbane City Council
B4: Ferry network
B6: Catchment Demand (Person trips per day)
B8: Catchment No | C8: Catchment Name (*) | D8: 2016 | E8: =D8+5 -> 2021 | F8: =E8+5 -> 2026 | G8: 2031 | H8: 2036 | J8: ="NPV Future Demand ("&(D8+1)& " - " &H8+10&")" -> NPV Future Demand (2017 - 2046) | L8: ="Ultimate Demand" -> Ultimate Demand | M8: Spare Capacity
B9: 1 | C9: Citywide | D9: 89178 | E9: 95637 | F9: 102026 | J9: =NPV(5.91%,E18:N18) -> 9504.068783 | L9: 143275 | M9: =(L9-F9)/F9 -> 0.4042989042
C13: Totals | D13: =SUM(D9:D12) -> 89178 | E13: =SUM(E9:E12) -> 95637 | F13: =SUM(F9:F12) -> 102026 | G13: =SUM(G9:G12) -> 0 | J13: =SUM(J9:J12) -> 9504.068783 | L13: =SUM(L9:L12) -> 143275
B16: DETAILED Forecast Demand Growth Profile (OPTIONAL)
B17: Catchment No | C17: Catchment Name | D17: 2016 | E17: =D17 +1 -> 2017 | F17: =E17 +1 -> 2018 | G17: 2019 | H17: 2020 | I17: 2021 | J17: 2022 | K17: 2023 | L17: 2024 | M17: 2025 | N17: 2026 | O17: 2027 | P17: 2028 | Q17: 2029 | R17: 2030 | S17: 2031 | T17: 2032 | U17: 2033 | V17: 2034 | W17: 2035 | X17: 2036 | Y17: 2037 | Z17: 2038 | AA17: 2039 | AB17: 2040 | AC17: 2041 | AD17: 2042 | AE17: 2043 | AF17: 2044 | AG17: 2045 | AH17: 2046
B18: =B9 -> 1 | C18: =C9 -> Citywide | E18: =(E9-D9)/5 -> 1291.8 | F18: =E18 -> 1291.8 | G18: =F18 -> 1291.8 | H18: 1291.8 | I18: 1291.8 | J18: =(F9-E9)/5 -> 1277.8 | K18: =J18 -> 1277.8 | L18: =K18 -> 1277.8 | M18: 1277.8 | N18: 1277.8

Sheet Summary Cost Schedule
B2: ='Navigation Pane'!B2 -> Brisbane City Council
A4: Return to Navigation Pane
B5: Summary Cost Schedule
B7: Catchment | D7: Demand (trips) | G7: Cost of Trunk Infrastrcutrue | J7: Cost per Unit Demand (Average) | K7: Cost per Unit Demand (Marginal)
B8: No | C8: Name | D8: Existing (A) | E8: NPV Future (B) | F8: TOTAL (A)+ (B) | G8: Existing (C) | H8: NPV Future (D) | I8: TOTAL (C)+ (D)
B9: Ferry
B10: 1 | C10: Citywide | D10: =IFERROR(VLOOKUP($C10,'Catchment Demand - Ferry'!$C$9:$J$12,2,FALSE),"") -> 89178 | E10: =IFERROR(VLOOKUP($C10,'Catchment Demand - Ferry'!$C$9:$J$12,8,FALSE),"") -> 9504.068783 | F10: =IFERROR(D10+E10,"") -> 98682.06878 | G10: ='Exist Trunk Assets - Ferry'!N40 -> 136452500 | H10: ='Future Trunk Assets - Ferry'!AK28 -> 91484722.78 | I10: =G10+H10 -> 227937222.8 | J10: =IFERROR(I10/F10,0) -> 2309.813987 | K10: =H10/E10 -> 9625.848137
B13: Pathway
B14: ='Catchment Demand - Pathway'!B8 -> 1 | C14: ='Catchment Demand - Pathway'!C8 -> Citywide | D14: =IFERROR(VLOOKUP($C14,'Catchment Demand - Pathway'!$C$8:$J$37,2,FALSE),"") -> 2886302 | E14: =IFERROR(VLOOKUP($C14,'Catchment Demand - Pathway'!$C$8:$J$37,8,FALSE),"") -> 307844.9812 | F14: =IFERROR(D14+E14,"") -> 3194146.981 | G14: ='Existing Trunk Assets - Pathway'!U1538 -> 217143169.7 | H14: ='Future Trunk Assets - Pathway'!AI108 -> 172031037.4 | I14: =G14+H14 -> 389174207.1 | J14: =IFERROR(I14/F14,0) -> 121.839793 | K14: =H14/E14 -> 558.8235897
